Transaction Reference,Supplier Name,Line Value,Department,Category,Transaction Date,Year/Period,SME,Costs split between Babergh and Mid Suffolk District Councils Y/N,% of transaction apportioned to Mid Suffolk District Council
0010055569,SUFFOLK COUNTY COUNCIL,"8,050.00",C Parks General,Grounds & Site Maintenance,20 Mar 2023,2324/04,LGE,N,
0010057105,PRO-FLAT SPECIALIST SERVICES LTD,"3,659.00",Building Services,Repairs,18 May 2023,2324/04,SME,N,
0010057126,FELLBRIDGE BUILDING SERVICES,"1,231.89",Building Services,Repairs,22 May 2023,2324/04,SME,N,
0010057140,PUBLIC SEWER SERVICES,"2,081.38",Building Services,Repairs,23 May 2023,2324/04,SME,N,
0010057251,TANKCHANGE LTD,"1,945.00",Central Heating,Improvements,19 Sep 2019,2324/04,SME,N,
0010057252,TANKCHANGE LTD,"1,875.00",Central Heating,Improvements,16 Aug 2021,2324/04,SME,N,
0010057505,SUREFIX,"1,925.00",Window & Door Rplcmts,Repairs,02 Jun 2023,2324/04,SME,N,
0010057545,WADDINGTON BROWN LTD,979.68,Organisational Devt,Agency Staff,29 May 2023,2324/04,SME,Y,50%
0010057560,"DUNCAN, CAMERON AND HUTCHINSON LTD","26,614.08","11-12 Ipswich, Brantham",Major Contracts,01 Mar 2023,2324/04,SME,N,
0010057573,WEST DEVON BOROUGH COUNCIL,"3,119.55",Management Team,Subscriptions,05 Jun 2023,2324/04,LGE,Y,50%
0010057612,SUFFOLK COUNTY COUNCIL,"1,050.00",Land Chgs,Contracted Services,06 Jun 2023,2324/04,LGE,N,
0010057744,GHB ROOFING,"64,319.45",Roofing,Repairs,30 May 2023,2324/04,SME,N,
0010057769,WADDINGTON BROWN LTD,"1,205.76",Organisational Devt,Agency Staff,12 Jun 2023,2324/04,SME,Y,50%
0010057858,START AFRESH CLEANING LTD,750.67,Open Spaces,Grounds & Site Maintenance,31 Mar 2023,2324/04,SME,N,
0010057888,THE PLAY INSPECTION COMPANY LTD,"1,514.56",Open Spaces,"Equipment, Tools & Materials",20 Jun 2023,2324/04,SME,N,
0010057917,GREENACRE RECRUITMENT LTD,"1,950.00",Building Services,Agency Staff,21 Jun 2023,2324/04,SME,Y,50%
0010057921,SUFFOLK DOORS & WINDOWS LTD,"1,050.00",Building Services,Repairs,21 Jun 2023,2324/04,SME,N,
0010057951,VERTAS GROUP LTD,"12,573.80",Central Postal Serv,Postage,20 Jun 2023,2324/04,SME,Y,50%
0010057960,WADDINGTON BROWN LTD,"1,067.60",Organisational Devt,Agency Staff,19 Jun 2023,2324/04,SME,Y,50%
0010057980,L A C CLEANING CONTRACTORS LIMITED,"2,380.50",Voids Maintenance,Repairs,23 Jun 2023,2324/04,SME,N,
0010057984,START AFRESH CLEANING LTD,"1,000.43",Public Conveniences,Contracted Services,30 Apr 2023,2324/04,SME,N,
0010057989,SUREFIX,"1,025.00",Window & Door Rplcmts,Repairs,21 Jun 2023,2324/04,SME,N,
0010057996,CHAPPLE SIGNS LTD,523.95,Street & Major Road Cleansing,"Equipment, Tools & Materials",23 Jun 2023,2324/04,SME,N,
0010058001,ORSIS UK LTD,"6,304.20",PV Panels,Contracted Services,26 Jun 2023,2324/04,SME,N,
0010058008,WHYBROW PROPERTY SOLUTIONS LTD,"7,656.89",Major Imps,Repairs,22 Jun 2023,2324/04,SME,N,
0010058011,DALROD (UK) LTD,"6,800.00",Chilton Depot,Repairs,10 May 2023,2324/04,SME,N,
0010058015,AE WHITE SURFACING,"2,995.00",Building Services,Repairs,11 Apr 2023,2324/04,SME,N,
0010058023,L A C CLEANING CONTRACTORS LIMITED,691.77,Sheltered Accommodation,Contracted Services,26 Jun 2023,2324/04,SME,N,
0010058025,L A C CLEANING CONTRACTORS LIMITED,767.25,Wenham Depot TDP,General Cleaning,26 Jun 2023,2324/04,SME,Y,50%
0010058032,HAYS SPECIALIST RECRUITMENT LTD,982.85,Pld Maint/Enhncmts-Corp Bldgs,Agency Staff,26 Jun 2023,2324/04,LGE,Y,50%
0010058033,HAYS SPECIALIST RECRUITMENT LTD,"3,540.00",Financial Servs,Agency Staff,26 Jun 2023,2324/04,LGE,Y,50%
0010058035,BRITISH GAS TRADING LTD,"1,040.56",Voids Maintenance,Electricity,24 May 2023,2324/04,LGE,N,
0010058035,BRITISH GAS TRADING LTD,564.54,Voids Maintenance,Gas,24 May 2023,2324/04,LGE,N,
0010058037,APEX ROOFERS LTD,"1,350.00",Building Services,Repairs,20 Jun 2023,2324/04,SME,N,
0010058038,APEX ROOFERS LTD,"1,200.00",Building Services,Repairs,20 Jun 2023,2324/04,SME,N,
0010058040,APEX ROOFERS LTD,550.00,Building Services,Repairs,20 Jun 2023,2324/04,SME,N,
0010058044,APEX ROOFERS LTD,550.00,Building Services,Repairs,20 Jun 2023,2324/04,SME,N,
0010058051,VERTAS GROUP LTD,550.00,Endeavour House - HQ,Plant & Vehicle - Other costs,26 Jun 2023,2324/04,SME,Y,50%
0010058053,GB ADAPTIONS LTD,"6,183.00",Mand Disabled Facilities Grant,Grants,27 Jun 2023,2324/04,SME,N,
0010058058,PRECISE MEDIA MONITORING LIMITED,"3,400.00",Communications,Subscriptions,28 Feb 2023,2324/04,LGE,Y,50%
0010058070,KENDA-CLEAN,25.00,Chilton Depot,Window Cleaning,26 Jun 2023,2324/04,SME,Y,50%
0010058070,KENDA-CLEAN,"1,420.00",Sheltered Accommodation,Window Cleaning,26 Jun 2023,2324/04,SME,N,
0010058070,KENDA-CLEAN,15.00,Temporary Accommodation,Window Cleaning,26 Jun 2023,2324/04,SME,N,
0010058070,KENDA-CLEAN,227.00,Tenancy Services,Window Cleaning,26 Jun 2023,2324/04,SME,N,
0010058071,ANGLIA COMMERCIAL FLOORING LTD,575.49,Building Services,Repairs,27 Jun 2023,2324/04,SME,N,
0010058073,BELL DECORATING GROUP LTD,"16,800.00",Insulation Imps,Repairs,27 Jun 2023,2324/04,LGE,N,
0010058076,NEWSQUEST MEDIA GROUP,556.20,Footpaths,Advertising&mkting (non-staff),27 Jun 2023,2324/04,LGE,N,
0010058078,MERCURY BUILDING SERVICES LTD,"11,974.00",Pld Maint/Enhncmts-Kingfisher,Improvements,28 Jun 2023,2324/04,SME,N,
0010058079,GREENACRE RECRUITMENT LTD,"3,825.10",HRA General Management,Agency Staff,28 Jun 2023,2324/04,SME,Y,50%
0010058080,GREENACRE RECRUITMENT LTD,"2,400.00",Building Services,Agency Staff,28 Jun 2023,2324/04,SME,Y,50%
0010058082,GREENACRE RECRUITMENT LTD,"2,000.00",Building Services Compliance,Agency Staff,28 Jun 2023,2324/04,SME,Y,50%
0010058083,GREENACRE RECRUITMENT LTD,"1,422.00",Building Services,Agency Staff,28 Jun 2023,2324/04,SME,Y,50%
0010058084,GREENACRE RECRUITMENT LTD,"1,500.00",Building Services,Agency Staff,28 Jun 2023,2324/04,SME,Y,50%
0010058085,GREENACRE RECRUITMENT LTD,"3,127.50",Building Services,Agency Staff,28 Jun 2023,2324/04,SME,Y,50%
0010058086,HAYES DIGGINS BUILDERS,"12,783.00",Responsive maintenance,Repairs,28 Jun 2023,2324/04,SME,N,
0010058090,JMP SERVICES LTD,870.00,Street & Major Road Cleansing,Contracted Services,27 Jun 2023,2324/04,SME,N,
0010058091,REID PLUMBING & HEATING CONTRACTORS LTD,"4,988.90",Central Heating,Major Contracts,28 Jun 2023,2324/04,SME,N,
0010058092,HAYS SPECIALIST RECRUITMENT LTD,"1,826.85",ICT - Finance System,Agency Staff,28 Jun 2023,2324/04,LGE,Y,50%
0010058094,L A C CLEANING CONTRACTORS LIMITED,"1,398.50",Voids Maintenance,Repairs,29 Jun 2023,2324/04,SME,N,
0010058098,CIVICA ELECTION SERVICES,"1,485.40",Electoral Registration,Returning Officer Fees,16 Jun 2023,2324/04,LGE,N,
0010058099,CIVICA ELECTION SERVICES,"15,451.01",Electoral Registration,Returning Officer Fees,16 Jun 2023,2324/04,LGE,N,
0010058100,CIVICA ELECTION SERVICES,"4,404.95",Electoral Registration,Returning Officer Fees,16 Jun 2023,2324/04,LGE,N,
0010058101,CIVICA ELECTION SERVICES,"6,161.21",Electoral Registration,Returning Officer Fees,16 Jun 2023,2324/04,LGE,N,
0010058102,BINDER LTD,512.42,Sewage Treatment Works,Contracted Services,29 Jun 2023,2324/04,SME,N,
0010058103,SUFFOLK DOORS & WINDOWS LTD,"2,150.00",Building Services,Repairs,29 Jun 2023,2324/04,SME,N,
0010058106,LAW MORGAN LTD T/A MORGAN LAW,"4,024.30",Financial Servs,Agency Staff,29 Jun 2023,2324/04,SME,Y,50%
0010058108,A C LEIGH (NORWICH) LTD,645.12,Building Services,"Equipment, Tools & Materials",20 Jun 2023,2324/04,SME,N,
0010058109,LAW MORGAN LTD T/A MORGAN LAW,"2,300.00",Commissioning & Procurement,Agency Staff,29 Jun 2023,2324/04,SME,Y,50%
0010058112,LAW MORGAN LTD T/A MORGAN LAW,"3,025.00",Financial Servs,Agency Staff,29 Jun 2023,2324/04,SME,Y,50%
0010058114,MAXIM SPORTS COACHING,"4,750.00",Holiday Activity Funding,"Equipment, Tools & Materials",29 Jun 2023,2324/04,SME,N,
0010058115,OPUS PEOPLE SOLUTIONS LTD,334.88,Homeless Prevention Fund,Agency Staff,28 Jun 2023,2324/04,SME,N,
0010058115,OPUS PEOPLE SOLUTIONS LTD,395.90,Devt Management - Apps,Agency Staff,28 Jun 2023,2324/04,SME,N,
0010058115,OPUS PEOPLE SOLUTIONS LTD,507.38,Climate Change and Sustainabil,Agency Staff,28 Jun 2023,2324/04,SME,N,
0010058115,OPUS PEOPLE SOLUTIONS LTD,880.46,Organisational Devt,Agency Staff,28 Jun 2023,2324/04,SME,N,
0010058115,OPUS PEOPLE SOLUTIONS LTD,278.69,Health & Safety,Agency Staff,28 Jun 2023,2324/04,SME,N,
0010058115,OPUS PEOPLE SOLUTIONS LTD,342.74,Building Services,Agency Staff,28 Jun 2023,2324/04,SME,N,
0010058116,IPSERV LTD,"1,806.27",Communications,Commercial Printing,31 Mar 2023,2324/04,SME,N,
0010058116,IPSERV LTD,317.13,Central Printing,Commercial Printing,31 Mar 2023,2324/04,SME,N,
0010058119,PRECISION RESOURCE GROUP LTD T/A PANORAM,"1,875.00",Building Servs Tech Staff,Agency Staff,28 Jun 2023,2324/04,LGE,Y,50%
0010058120,PRECISION RESOURCE GROUP LTD T/A PANORAM,"2,700.00",Building Servs Tech Staff,Agency Staff,28 Jun 2023,2324/04,LGE,Y,50%
0010058121,WADDINGTON BROWN LTD,"1,092.72",Organisational Devt,Agency Staff,26 Jun 2023,2324/04,SME,Y,50%
0010058122,GCS COMPLIANCE LTD,"1,364.32",Building Services,Prof & Consultancy Fees,28 Jun 2023,2324/04,SME,N,
0010058124,FELLBRIDGE BUILDING SERVICES,"2,144.02",Building Services,Repairs,28 Jun 2023,2324/04,SME,N,
0010058126,REID PLUMBING & HEATING CONTRACTORS LTD,"3,978.00",Kitchens/Bathrooms,Improvements,29 Jun 2023,2324/04,SME,N,
0010058127,FELLBRIDGE BUILDING SERVICES,689.94,Building Services,Repairs,28 Jun 2023,2324/04,SME,N,
0010058128,FELLBRIDGE BUILDING SERVICES,769.49,Building Services,Repairs,28 Jun 2023,2324/04,SME,N,
0010058129,FELLBRIDGE BUILDING SERVICES,"6,735.43",Voids Maintenance,Repairs,28 Jun 2023,2324/04,SME,N,
0010058131,FELLBRIDGE BUILDING SERVICES,583.62,Building Services,Repairs,28 Jun 2023,2324/04,SME,N,
0010058132,PRECISION RESOURCE GROUP LTD T/A PANORAM,"2,812.50",Building Services Compliance,Agency Staff,28 Jun 2023,2324/04,LGE,Y,50%
0010058138,ENGLISH SECURITY,515.05,Tenancy Services,Fire Prevention,27 Jun 2023,2324/04,SME,N,
0010058140,ANGLIA COMMERCIAL FLOORING LTD,781.64,Voids Maintenance,Repairs,28 Jun 2023,2324/04,SME,N,
0010058141,SUFFOLK DOORS & WINDOWS LTD,725.00,Building Services,Repairs,28 Jun 2023,2324/04,SME,N,
0010058143,WHYBROW PROPERTY SOLUTIONS LTD,"4,000.00",Major Imps,Repairs,28 Jun 2023,2324/04,SME,N,
0010058146,SWITCH PROPERTY SERVICES LTD,"1,025.00",Guaranteed Rent Scheme,Rent Payable,03 Jul 2023,2324/04,SME,N,
0010058147,ADVANCEDSCAPE LTD,535.00,Street & Major Road Cleansing,Bins,29 Jun 2023,2324/04,SME,N,
0010058148,NEWSQUEST MEDIA GROUP,587.10,Footpaths,Advertising&mkting (non-staff),30 Jun 2023,2324/04,LGE,N,
0010058149,NEWSQUEST MEDIA GROUP,556.20,Footpaths,Advertising&mkting (non-staff),30 Jun 2023,2324/04,LGE,N,
0010058151,ANNETTE FEENEY,"2,314.00",Devt Policy & Local Plans,Prof & Consultancy Fees,30 Jun 2023,2324/04,ST,N,
0010058152,TOTALMOBILE LTD,"1,166.40",Health & Safety,"Equipment, Tools & Materials",30 Jun 2023,2324/04,SME,Y,50%
0010058153,TOTALMOBILE LTD,777.60,Health & Safety,"Equipment, Tools & Materials",30 Jun 2023,2324/04,SME,Y,50%
0010058155,WINDIMAN LTD,700.00,Window & Door Rplcmts,Repairs,29 Jun 2023,2324/04,SME,N,
0010058157,ARLINGCLOSE LTD,"7,980.00",Treasury Management,Contracted Services,29 Jun 2023,2324/04,SME,Y,50%
0010058158,ANGLIA SPORTS MANAGEMENT LTD,"10,158.33",Holiday Activity Funding,"Equipment, Tools & Materials",29 Jun 2023,2324/04,SME,N,
0010058161,APTL ENTERPRISES LTD,"5,506.67",PV Panels,Contracted Services,30 Jun 2023,2324/04,SME,N,
0010058162,HAYS SPECIALIST RECRUITMENT LTD,"3,540.00",Financial Servs,Agency Staff,03 Jul 2023,2324/04,LGE,Y,50%
0010058163,SUFFOLK DOORS & WINDOWS LTD,550.00,Building Services,Repairs,29 Jun 2023,2324/04,SME,N,
0010058165,KEYWAYS THE LOCKSMITHS LTD,862.50,Temporary Accommodation,Misc Premises Costs,30 Jun 2023,2324/04,SME,N,
0010058182,LITTLE MUSKETEERS LTD,"5,520.00",Holiday Activity Funding,"Equipment, Tools & Materials",29 Jun 2023,2324/04,SME,N,
0010058184,WORKWEAR (EAST ANGLIA) LTD,524.40,Open Spaces,Protective clothing,23 Jun 2023,2324/04,SME,N,
0010058184,WORKWEAR (EAST ANGLIA) LTD,524.40,Street & Major Road Cleansing,Protective clothing,23 Jun 2023,2324/04,SME,N,
0010058186,SUDBURYS,825.00,Guaranteed Rent Scheme,Rent Payable,03 Jul 2023,2324/04,SME,N,
0010058187,WILLIAM H BROWN ESTATE AGENTS - SUDBURY,925.00,Guaranteed Rent Scheme,Rent Payable,03 Jul 2023,2324/04,SME,N,
0010058190,TIAA LTD,"5,000.00",Internal Audit,Contracted Services,03 Jul 2023,2324/04,SME,Y,50%
0010058191,PRIVATE LANDLORD,"1,000.00",Guaranteed Rent Scheme,Rent Payable,03 Jul 2023,2324/04,ST,N,
0010058192,UNIT 4 BUSINESS SOFTWARE LIMITED,"29,409.29",ICT - Finance System,Contracted Services,30 Jun 2023,2324/04,LGE,Y,50%
0010058193,HOME TO RENT LTD,975.00,Guaranteed Rent Scheme,Rent Payable,03 Jul 2023,2324/04,SME,N,
0010058194,STUDLEY CAPITAL LIMITED,"1,662.50",Hamilton Road Regeneration,Prof & Consultancy Fees,03 Jul 2023,2324/04,ST,N,
0010058199,PRIVATE LANDLORD,710.00,Guaranteed Rent Scheme,Rent Payable,03 Jul 2023,2324/04,ST,N,
0010058200,PRIVATE LANDLORD,575.00,Guaranteed Rent Scheme,Rent Payable,03 Jul 2023,2324/04,ST,N,
0010058201,PRIVATE LANDLORD,787.00,Guaranteed Rent Scheme,Rent Payable,03 Jul 2023,2324/04,ST,N,
0010058202,ABLEWORLD,"1,995.00",Mand Disabled Facilities Grant,Grants,30 Jun 2023,2324/04,SME,N,
0010058203,GB ADAPTIONS LTD,"1,795.00",Mand Disabled Facilities Grant,Grants,30 Jun 2023,2324/04,SME,N,
0010058204,POLSTEAD VILLAGE HALL MGMT COMMITTEE,610.04,Grants & Contrbns,Contributions & Donations,28 Jun 2023,2324/04,SME,N,
0010058205,WHYBROW PROPERTY SOLUTIONS LTD,"17,278.46",Major Imps,Repairs,30 Jun 2023,2324/04,SME,N,
0010058208,THE PLANNING INSPECTORATE,"1,896.63",Local Plans,Prof & Consultancy Fees,04 Jul 2023,2324/04,LGE,Y,100%
0010058208,THE PLANNING INSPECTORATE,"1,896.63",Devt Policy & Local Plans,Prof & Consultancy Fees,04 Jul 2023,2324/04,LGE,N,
0010058216,SIGNIX LTD,"1,019.00",Sheltered Accommodation,Repairs,30 Jun 2023,2324/04,SME,N,
0010058229,SIGNIX LTD,719.00,Tenancy Services,Repairs,30 Jun 2023,2324/04,SME,N,
0010058230,SIGNIX LTD,"2,692.00",Tenancy Services,Repairs,30 Jun 2023,2324/04,SME,N,
0010058232,MERCURY BUILDING SERVICES LTD,"9,889.00",Kingfisher Leisure Centre,Repairs,30 Jun 2023,2324/04,SME,N,
0010058235,UNIVERSITY OF ESSEX,"25,000.00",Economy & Business,Prof & Consultancy Fees,26 May 2023,2324/04,LGE,Y,50%
0010058236,COLLINS SKIP HIRE,840.00,Building Services,Waste Disposal,30 Jun 2023,2324/04,SME,Y,50%
0010058242,EDMUNDSON ELECTRICAL LTD (IPSWICH),818.49,Building Services,"Equipment, Tools & Materials",09 Jun 2023,2324/04,LGE,N,
0010058250,FAITHORN FARRELL TIMMS,"2,600.00",Sewage Treatment Works,Repairs,30 Jun 2023,2324/04,SME,Y,50%
0010058253,KARCHER UK LTD,534.00,Open Spaces,"Equipment, Tools & Materials",03 Jul 2023,2324/04,LGE,N,
0010058254,GB ADAPTIONS LTD,"5,639.00",Mand Disabled Facilities Grant,Grants,03 Jul 2023,2324/04,SME,N,
0010058256,R H ENVIRONMENTAL LTD,"1,500.00",Housing Standards,Training,30 Jun 2023,2324/04,LGE,N,
0010058257,WINDIMAN LTD,800.00,Window & Door Rplcmts,Repairs,30 Jun 2023,2324/04,SME,N,
0010058260,PRINCIPLE CONSTRUCTION & MAINTENANCE LTD,"6,950.46",Council House Adaptions,Improvements,04 Jul 2023,2324/04,SME,N,
0010058261,BOWER FULLER,"1,108.80",Tenancy Services,Repairs,30 Jun 2023,2324/04,SME,N,
0010058263,BOWER FULLER,962.70,Tenancy Services,Repairs,30 Jun 2023,2324/04,SME,N,
0010058266,BOWER FULLER,"1,080.00",Tenancy Services,Fire Prevention,30 Jun 2023,2324/04,SME,N,
0010058270,J BRUNDLE BUILDING,"7,450.00",Mand Disabled Facilities Grant,Grants,04 Jul 2023,2324/04,SME,N,
0010058272,MERCURY BUILDING SERVICES LTD,"1,634.00",Kingfisher Leisure Centre,Repairs,04 Jul 2023,2324/04,SME,N,
0010058272,MERCURY BUILDING SERVICES LTD,776.00,Pld Maint/Enhncmts-Kingfisher,Improvements,04 Jul 2023,2324/04,SME,N,
0010058275,FAITHORN FARRELL TIMMS,"2,500.00",Building Servs Tech Staff,Contracted Services,30 Jun 2023,2324/04,SME,N,
0010058276,ARMSTRONG YORK ASBESTOS ENVIRONMENTAL,"21,679.86",Asbestos Survey & Reinspection,Prof & Consultancy Fees,30 Jun 2023,2324/04,SME,N,
0010058277,SUFFOLK COUNTY COUNCIL,"1,085.00",Land Chgs,Contracted Services,05 Jul 2023,2324/04,LGE,N,
0010058278,HAYS SPECIALIST RECRUITMENT LTD,"1,826.85",ICT - Finance System,Agency Staff,05 Jul 2023,2324/04,LGE,Y,50%
0010058282,PENNA PLC,"6,160.00",Management Team,Agency Staff,04 Jul 2023,2324/04,SME,Y,50%
0010058283,PENNA PLC,"8,640.00",Management Team,Agency Staff,04 Jul 2023,2324/04,SME,Y,50%
0010058285,WHYBROW PROPERTY SOLUTIONS LTD,"2,683.85",Voids Maintenance,Repairs,04 Jul 2023,2324/04,SME,N,
0010058286,BOTTOMLINE TECHNOLOGIES,736.27,ICT,Software Licnse (Line of Bus) ,30 Jun 2023,2324/04,LGE,Y,50%
0010058291,WHYBROW PROPERTY SOLUTIONS LTD,"5,000.00",Major Imps,Repairs,22 Jun 2023,2324/04,SME,N,
0010058292,FELLBRIDGE BUILDING SERVICES,"3,422.09",Building Services,Repairs,18 May 2023,2324/04,SME,N,
0010058293,FELLBRIDGE BUILDING SERVICES,"15,934.55",Major Imps,Repairs,05 Jul 2023,2324/04,SME,N,
0010058294,WHYBROW PROPERTY SOLUTIONS LTD,"8,617.83",Major Imps,Repairs,30 Jun 2023,2324/04,SME,N,
0010058295,FELLBRIDGE BUILDING SERVICES,"7,410.98",Major Imps,Repairs,05 Jul 2023,2324/04,SME,N,
0010058297,STEPHEN WALTERS & SONS LTD,"2,500.00",Business Innovation Grants,Grants,04 Jul 2023,2324/04,SME,N,
0010058299,GREENACRE RECRUITMENT LTD,"4,138.80",HRA General Management,Agency Staff,05 Jul 2023,2324/04,SME,Y,50%
0010058301,GREENACRE RECRUITMENT LTD,"2,400.00",Building Services,Agency Staff,05 Jul 2023,2324/04,SME,Y,50%
0010058302,4PRINCIPLES CONSTRUCTION LTD,"5,790.10",Mand Disabled Facilities Grant,Grants,05 Jul 2023,2324/04,SME,N,
0010058303,GREENACRE RECRUITMENT LTD,"3,475.00",Building Services,Agency Staff,05 Jul 2023,2324/04,SME,Y,50%
0010058304,FELGAINS CARE CENTRE,"7,018.00",Mand Disabled Facilities Grant,Grants,05 Jul 2023,2324/04,SME,N,
0010058305,GREENACRE RECRUITMENT LTD,600.00,Building Services,Agency Staff,05 Jul 2023,2324/04,SME,Y,50%
0010058307,GREENACRE RECRUITMENT LTD,"1,422.00",Building Services,Agency Staff,05 Jul 2023,2324/04,SME,Y,50%
0010058308,GREENACRE RECRUITMENT LTD,"2,000.00",Building Services Compliance,Agency Staff,05 Jul 2023,2324/04,SME,Y,50%
0010058312,CHIPSIDE LTD,533.17,C Parks General,Contracted Services,30 Jun 2023,2324/04,SME,N,
0010058314,NEWSQUEST MEDIA GROUP,630.36,Devt Management -Applications,Advertising&mkting (non-staff),05 Jul 2023,2324/04,LGE,N,
0010058315,PRECISION RESOURCE GROUP LTD T/A PANORAM,"2,812.50",Building Services Compliance,Agency Staff,05 Jul 2023,2324/04,LGE,Y,50%
0010058318,M & H CIVIL ENGINEERING LTD,750.00,Building Services,Repairs,04 Jul 2023,2324/04,SME,N,
0010058319,M & H CIVIL ENGINEERING LTD,750.00,Building Services,Repairs,04 Jul 2023,2324/04,SME,N,
0010058320,M & H CIVIL ENGINEERING LTD,675.00,Building Services,Repairs,04 Jul 2023,2324/04,SME,N,
0010058321,GAG414 LTD,"7,895.88",CIL,Misc Supplies & Services Costs,05 Jul 2023,2324/04,SME,N,
0010058323,STORETEC SERVICES LTD,600.30,ICT,"Equipment, Tools & Materials",30 Jun 2023,2324/04,SME,Y,50%
0010058326,ENGLISH SECURITY,"1,723.32",Sheltered Accommodation,Fire Prevention,06 Jul 2023,2324/04,SME,N,
0010058331,G4S CASH SOLUTIONS LTD,587.77,C Parks General,Contracted Services,30 Jun 2023,2324/04,LGE,N,
0010058333,RICHARD UTTING ASSOCIATES LLP,698.25,New Bld/acquisition,Purchase of Land & Buildings,30 Jun 2023,2324/04,SME,N,
0010058333,RICHARD UTTING ASSOCIATES LLP,501.75,"Wolsey Grange, Sproughton S106",Prof & Consultancy Fees,30 Jun 2023,2324/04,SME,N,
0010058334,OPUS PEOPLE SOLUTIONS LTD,305.66,Homeless Prevention Fund,Agency Staff,06 Jul 2023,2324/04,SME,N,
0010058334,OPUS PEOPLE SOLUTIONS LTD,484.29,Devt Management - Apps,Agency Staff,06 Jul 2023,2324/04,SME,N,
0010058334,OPUS PEOPLE SOLUTIONS LTD,445.50,Climate Change and Sustainabil,Agency Staff,06 Jul 2023,2324/04,SME,N,
0010058334,OPUS PEOPLE SOLUTIONS LTD,"1,880.09",Organisational Devt,Agency Staff,06 Jul 2023,2324/04,SME,N,
0010058334,OPUS PEOPLE SOLUTIONS LTD,352.13,Building Services,Agency Staff,06 Jul 2023,2324/04,SME,N,
0010058335,LAW MORGAN LTD T/A MORGAN LAW,"2,300.00",Commissioning & Procurement,Agency Staff,06 Jul 2023,2324/04,SME,Y,50%
0010058336,LAW MORGAN LTD T/A MORGAN LAW,"4,024.30",Financial Servs,Agency Staff,06 Jul 2023,2324/04,SME,Y,50%
0010058337,LAW MORGAN LTD T/A MORGAN LAW,"3,025.00",ICT - Finance System,Agency Staff,06 Jul 2023,2324/04,SME,Y,50%
0010058340,WADDINGTON BROWN LTD,"1,142.96",Organisational Devt,Agency Staff,03 Jul 2023,2324/04,SME,Y,50%
0010058342,FELLBRIDGE BUILDING SERVICES,797.26,Building Services,Repairs,05 Jul 2023,2324/04,SME,N,
0010058343,STAGE EVENT SECURITY LTD,"1,395.00",Open Spaces,Contracted Services,30 Jun 2023,2324/04,SME,N,
0010058348,MID SUFFOLK FENCING LTD,"15,766.00",Chilton Depot,Grounds & Site Maintenance,07 Jul 2023,2324/04,SME,Y,50%
0010058349,4PRINCIPLES CONSTRUCTION LTD,"10,624.80",Mand Disabled Facilities Grant,Grants,05 Jul 2023,2324/04,SME,N,
0010058353,MINI WASTE LTD,"1,192.00",Open Spaces,Waste Disposal,30 Jun 2023,2324/04,SME,N,
0010058355,SUREFIX,"1,025.00",Window & Door Rplcmts,Improvements,07 Jul 2023,2324/04,SME,N,
0010058356,SUREFIX,632.88,Voids Maintenance,Repairs,30 Jun 2023,2324/04,SME,N,
0010058357,SUREFIX,"1,365.33",Voids Maintenance,Repairs,07 Jul 2023,2324/04,SME,N,
0010058358,SUREFIX,"2,100.00",Window & Door Rplcmts,Repairs,26 Jun 2023,2324/04,SME,N,
0010058359,SUREFIX,900.00,Building Services,Repairs,29 Jun 2023,2324/04,SME,N,
0010058361,IPSERV LTD,"1,470.86",Communications,Commercial Printing,30 Jun 2023,2324/04,SME,N,
0010058361,IPSERV LTD,62.00,Central Printing,Commercial Printing,30 Jun 2023,2324/04,SME,N,
0010058362,WHYBROW PROPERTY SOLUTIONS LTD,"1,315.68",Council House Adaptions,Improvements,07 Jul 2023,2324/04,SME,N,
0010058381,HUGHES TRADE,522.10,Other Temp Accommodation,Furniture,10 Jul 2023,2324/04,LGE,N,
0010058383,SUDBURY OFFICE SUPPLIES,-81.68,Central Stationery & equip,Stationery,26 Jun 2023,2324/04,SME,N,
0010058384,APTL ENTERPRISES LTD,830.00,Building Services,Repairs,11 Jul 2023,2324/04,SME,N,
0010058385,MERCURY BUILDING SERVICES LTD,"3,215.00",Hadleigh Pool,Repairs,11 Jul 2023,2324/04,SME,N,
0010058388,WILLIAM H BROWN ESTATE AGENTS - SUDBURY,775.00,Guaranteed Rent Scheme,Rent Payable,11 Jul 2023,2324/04,SME,N,
0010058389,FROST AND PARTNERS,"1,100.00",Homes for Ukraine,Rent Payable,11 Jul 2023,2324/04,SME,N,
0010058390,PRIVATE LANDLORD,750.00,Guaranteed Rent Scheme,Rent Payable,11 Jul 2023,2324/04,ST,N,
0010058392,HQN LTD,995.00,Building Services,Training,30 Jun 2023,2324/04,SME,Y,50%
0010058397,URBAN FORESTRY (BSE) LTD,963.54,Building Services,Repairs,31 May 2023,2324/04,SME,N,
0010058397,URBAN FORESTRY (BSE) LTD,"1,398.21","Fences, Gates and Walls",Repairs,31 May 2023,2324/04,SME,N,
0010058398,ENVIROVENT LTD,531.30,Insulation Imps,Repairs,04 Jul 2023,2324/04,SME,N,
0010058401,ANGLIAN WATER,"2,249.78",Sheltered Accommodation,Water Rates - Metered,22 Jun 2023,2324/04,LGE,N,
0010058403,ENER-G SWITCH2 LTD,515.92,Homelessness Private Sector,Electricity,04 Jul 2023,2324/04,SME,N,
0010058406,BUCHER MUNICIPAL LTD,818.48,Street & Major Road Cleansing,Plant & Vehicle - Other costs,07 Jul 2023,2324/04,LGE,Y,50%
0010058407,BELL DECORATING GROUP LTD,"6,364.06",Planned Maint - Ext Painting,External Painting,27 Jun 2023,2324/04,LGE,N,
0010058408,BELL DECORATING GROUP LTD,"4,816.13",Planned Maint - Ext Painting,Major Contracts,27 Jun 2023,2324/04,LGE,N,
0010058411,EAST OF ENGLAND LGA,"10,507.36",Management Team,Subscriptions,13 Jun 2023,2324/04,SME,N,
0010058412,ORWELL HOUSING ASSOCIATION LTD,"4,375.00",Other Temp Accommodation,Contracted Services,09 Jan 2023,2324/04,LGE,N,
0010058413,ORWELL HOUSING ASSOCIATION LTD,"1,680.00",Other Temp Accommodation,Contracted Services,02 Dec 2022,2324/04,LGE,N,
0010058417,PRECISION RESOURCE GROUP LTD T/A PANORAM,"2,250.00",Building Services Compliance,Agency Staff,12 Jul 2023,2324/04,LGE,Y,50%
0010058418,BINDER LTD,"1,173.75",Sewage Treatment Works,Contracted Services,12 Jul 2023,2324/04,SME,N,
0010058421,GREENACRE RECRUITMENT LTD,"2,000.00",Building Services Compliance,Agency Staff,12 Jul 2023,2324/04,SME,Y,50%
0010058422,GREENACRE RECRUITMENT LTD,"1,098.90",Building Services,Agency Staff,12 Jul 2023,2324/04,SME,Y,50%
0010058424,GREENACRE RECRUITMENT LTD,"1,737.50",Building Services,Agency Staff,12 Jul 2023,2324/04,SME,Y,50%
0010058425,GREENACRE RECRUITMENT LTD,"3,511.85",HRA General Management,Agency Staff,12 Jul 2023,2324/04,SME,Y,50%
0010058426,START AFRESH CLEANING LTD,"1,472.73",Public Conveniences,Contracted Services,30 Jun 2023,2324/04,SME,N,
0010058427,MTM PLANT AND SALES LTD,770.00,Open Spaces,"Equipment, Tools & Materials",30 Jun 2023,2324/04,SME,N,
0010058429,REID PLUMBING & HEATING CONTRACTORS LTD,"5,265.31",Central Heating,Major Contracts,12 Jul 2023,2324/04,SME,N,
0010058445,HAYS SPECIALIST RECRUITMENT LTD,"3,540.00",Financial Servs,Agency Staff,11 Jul 2023,2324/04,LGE,Y,50%
0010058446,HAYS SPECIALIST RECRUITMENT LTD,755.12,Pld Maint/Enhncmts-Corp Bldgs,Agency Staff,11 Jul 2023,2324/04,LGE,Y,50%
0010058453,SOCITM ADVISORY LTD,"34,650.00",ICT - Finance System,Contracted Services,11 Jul 2023,2324/04,SME,Y,50%
0010058465,GREENACRE RECRUITMENT LTD,"2,160.00",Building Services,Agency Staff,12 Jul 2023,2324/04,SME,Y,50%
0010058466,PRIVATE LANDLORD,"1,320.00",Guaranteed Rent Scheme,Rent Payable,10 Jul 2023,2324/04,ST,N,
0010058467,SHELTERED HOUSING RENTALS LTD,660.00,Guaranteed Rent Scheme,Rent Payable,10 Jul 2023,2324/04,SME,N,
0010058468,KBM HOUSE SHARE & PROPERTY MANAGEMENT LT,600.00,Guaranteed Rent Scheme,Rent Payable,10 Jul 2023,2324/04,SME,N,
0010058469,PRIVATE LANDLORD,880.00,Guaranteed Rent Scheme,Rent Payable,10 Jul 2023,2324/04,ST,N,
0010058470,PRIVATE LANDLORD,835.00,Guaranteed Rent Scheme,Rent Payable,10 Jul 2023,2324/04,ST,N,
0010058471,CUTLERS WOOD LTD,750.00,Guaranteed Rent Scheme,Rent Payable,10 Jul 2023,2324/04,SME,N,
0010058472,PRIVATE LANDLORD,650.00,Guaranteed Rent Scheme,Rent Payable,10 Jul 2023,2324/04,ST,N,
0010058473,PRIVATE LANDLORD,675.00,Guaranteed Rent Scheme,Rent Payable,10 Jul 2023,2324/04,ST,N,
0010058474,PRIVATE LANDLORD,750.00,Guaranteed Rent Scheme,Rent Payable,10 Jul 2023,2324/04,ST,N,
0010058475,PRIVATE LANDLORD,715.00,Guaranteed Rent Scheme,Rent Payable,10 Jul 2023,2324/04,ST,N,
0010058482,MORE IQ LIMITED,"2,400.00",Building Services,Prof & Consultancy Fees,03 Jul 2023,2324/04,SME,Y,50%
0010058488,INSPIRE SUFFOLK LTD,817.68,Holiday Activity Funding,"Equipment, Tools & Materials",10 Jul 2023,2324/04,SME,N,
0010058491,WS TRAINING LTD,995.00,HRA General Management,Training,06 Jul 2023,2324/04,SME,Y,50%
0010058492,COUNTRYSTYLE RECYCLING LTD,"4,308.10",Bring Sites,Contracted Services,30 Jun 2023,2324/04,SME,N,
0010058500,ANGLIA COMMERCIAL FLOORING LTD,925.94,Voids Maintenance,Repairs,18 May 2023,2324/04,SME,N,
0010058503,ANGLIA COMMERCIAL FLOORING LTD,631.32,Building Services,Repairs,11 Jul 2023,2324/04,SME,N,
0010058506,ANGLIA COMMERCIAL FLOORING LTD,829.74,Building Services,Repairs,11 Jul 2023,2324/04,SME,N,
0010058508,PAY 360 LIMITED,"8,081.82",Bank Chgs,Bank Charges,12 Jul 2023,2324/04,LGE,N,
0010058509,TILLER (THE PADDOCKS) LTD,"87,420.00","The Paddocks, Lavenham",Purchase of Land & Buildings,10 Jul 2023,2324/04,SME,N,
0010058516,NEWSQUEST MEDIA GROUP,865.20,Devt Management -Applications,Advertising&mkting (non-staff),12 Jul 2023,2324/04,LGE,N,
0010058518,GO START COMMUNITY TRANSPORT,"2,000.00",Grants & Contrbns,Grants,12 Jul 2023,2324/04,SME,N,
0010058520,LAPWING SUFFOLK LTD,"38,400.00",Shared Prosperity Fund,Contributions & Donations,12 Jul 2023,2324/04,SME,N,
0010058521,KERSEY VILLAGE HALL,"10,000.00",Comm Devt Grants,Grants,12 Jul 2023,2324/04,SME,N,
0010058526,EDMUNDSON ELECTRICAL LTD (IPSWICH),967.97,Building Services,"Equipment, Tools & Materials",11 Jul 2023,2324/04,LGE,N,
0010058528,EDMUNDSON ELECTRICAL LTD (IPSWICH),"1,092.96",Building Services,"Equipment, Tools & Materials",11 Jul 2023,2324/04,LGE,N,
0010058529,IPSWICH BOROUGH COUNCIL,"11,596.02",Shared Revenues Partnership,Contributions to other Bodies,11 Jul 2023,2324/04,LGE,N,
0010058531,HAYS SPECIALIST RECRUITMENT LTD,"1,826.85",ICT - Finance System,Agency Staff,12 Jul 2023,2324/04,LGE,Y,50%
0010058532,IPSWICH BOROUGH COUNCIL,"-1,431.77",Shared Revenues Partnership,Contributions to other Bodies,11 Jul 2023,2324/04,LGE,N,
0010058533,LAW MORGAN LTD T/A MORGAN LAW,"1,512.50",ICT - Finance System,Agency Staff,13 Jul 2023,2324/04,SME,Y,50%
0010058534,LAW MORGAN LTD T/A MORGAN LAW,"2,300.00",Commissioning & Procurement,Agency Staff,13 Jul 2023,2324/04,SME,Y,50%
0010058535,LAW MORGAN LTD T/A MORGAN LAW,"4,024.30",Financial Servs,Agency Staff,13 Jul 2023,2324/04,SME,Y,50%
0010058537,PRECISION RESOURCE GROUP LTD T/A PANORAM,"2,700.00",Building Servs Tech Staff,Agency Staff,05 Jul 2023,2324/04,LGE,Y,50%
0010058538,PRECISION RESOURCE GROUP LTD T/A PANORAM,"2,700.00",Building Servs Tech Staff,Agency Staff,12 Jul 2023,2324/04,LGE,Y,50%
0010058539,PRECISION RESOURCE GROUP LTD T/A PANORAM,"1,875.00",Building Servs Tech Staff,Agency Staff,05 Jul 2023,2324/04,LGE,Y,50%
0010058540,PRECISION RESOURCE GROUP LTD T/A PANORAM,"1,875.00",Building Servs Tech Staff,Agency Staff,12 Jul 2023,2324/04,LGE,Y,50%
0010058564,SPALDINGS LTD,628.03,Open Spaces,"Equipment, Tools & Materials",28 Jun 2023,2324/04,SME,N,
0010058565,BOWER FULLER,"3,223.00",Tenancy Services,Fire Prevention,13 Jul 2023,2324/04,SME,N,
0010058566,BOWER FULLER,"2,015.75",Open Spaces,Grounds & Site Maintenance,13 Jul 2023,2324/04,SME,N,
0010058568,THE BRIDGE PROJECT SUDBURY,"7,200.00",Grants & Contrbns,Grants,13 Jul 2023,2324/04,SME,N,
0010058569,IPSERV LTD,"2,786.86",Communications,Commercial Printing,30 Jun 2023,2324/04,SME,N,
0010058570,THE STOWMARKET GLASS COMPANY LTD,"2,925.00",Building Services,Repairs,15 May 2023,2324/04,SME,N,
0010058575,EDMUNDSON ELECTRICAL LTD (IPSWICH),-20.01,Building Services,"Equipment, Tools & Materials",11 Jul 2023,2324/04,LGE,N,
0010058576,D W ADAMS LTD,"4,824.00",Council House Adaptions,Improvements,14 Jul 2023,2324/04,SME,N,
0010058579,MIXBROW LTD,"6,217.00",Council House Adaptions,Improvements,12 Jul 2023,2324/04,SME,N,
0010058581,WHYBROW PROPERTY SOLUTIONS LTD,"2,309.04",Voids Maintenance,Repairs,04 Jul 2023,2324/04,SME,N,
0010058582,4PRINCIPLES CONSTRUCTION LTD,"7,054.61",Mand Disabled Facilities Grant,Grants,14 Jul 2023,2324/04,SME,N,
0010058587,MONTHIND CLEAN LTD,720.21,Jnt Waste Contract,General Cleaning,15 Jul 2023,2324/04,LGE,Y,50%
0010058597,WHYBROW PROPERTY SOLUTIONS LTD,"12,892.47",Major Imps,Repairs,13 Jul 2023,2324/04,SME,N,
0010058599,PRIVATE LANDLORD,675.00,Guaranteed Rent Scheme,Rent Payable,17 Jul 2023,2324/04,ST,N,
0010058600,PRIVATE LANDLORD,725.00,Guaranteed Rent Scheme,Rent Payable,17 Jul 2023,2324/04,ST,N,
0010058602,PRIVATE LANDLORD,650.00,Guaranteed Rent Scheme,Rent Payable,17 Jul 2023,2324/04,ST,N,
0010058603,PRIVATE LANDLORD,550.00,Guaranteed Rent Scheme,Rent Payable,17 Jul 2023,2324/04,ST,N,
0010058605,SSI SCHAEFER PLASTICS UK LTD,"18,614.00",Bins,Bins,17 Jul 2023,2324/04,SME,N,
0010058607,CLARKE FENCING LTD,897.33,Open Spaces,"Equipment, Tools & Materials",12 Jul 2023,2324/04,SME,N,
0010058611,AQUASAMPLERS,"1,139.00",Water Sampling,Sampling & Analysis,31 May 2023,2324/04,SME,N,
0010058613,FELLBRIDGE BUILDING SERVICES,"15,843.59",Major Imps,Repairs,17 Jul 2023,2324/04,SME,N,
0010058615,MERCURY BUILDING SERVICES LTD,"11,922.00",Pld Maint/Enhncmts-Kingfisher,Improvements,17 Jul 2023,2324/04,SME,N,
0010058616,HAYS SPECIALIST RECRUITMENT LTD,"3,540.00",Financial Servs,Agency Staff,17 Jul 2023,2324/04,LGE,Y,50%
0010058619,REID PLUMBING & HEATING CONTRACTORS LTD,"10,879.28",Central Heating,Major Contracts,18 Jul 2023,2324/04,SME,N,
0010058620,JPK TRADE SUPPLIES LTD,"1,400.00",Street & Major Road Cleansing,"Equipment, Tools & Materials",17 Jul 2023,2324/04,SME,N,
0010058621,ASPECT CONTRACTS LTD,"1,253.00",Asbestos,Improvements,18 Jul 2023,2324/04,LGE,N,
0010058626,JDi SOLUTIONS LTD,"8,170.00",ICT,Software Licnse (Line of Bus) ,18 Jul 2023,2324/04,SME,Y,50%
0010058628,PAY 360 LIMITED,"1,029.90",Bank Chgs,Bank Charges,06 Jul 2023,2324/04,LGE,N,
0010058639,CARE PLUS STAFFORDSHIRE LTD,58.37,Homelessness Private Sector,Telephone Costs,01 Jul 2023,2324/04,SME,N,
0010058639,CARE PLUS STAFFORDSHIRE LTD,496.15,Building Services,Telephone Costs,01 Jul 2023,2324/04,SME,N,
0010058639,CARE PLUS STAFFORDSHIRE LTD,58.37,Other Public Health Matters,Telephone Costs,01 Jul 2023,2324/04,SME,N,
0010058639,CARE PLUS STAFFORDSHIRE LTD,58.37,Bldg Control Commercial Income,Telephone Costs,01 Jul 2023,2324/04,SME,N,
0010058639,CARE PLUS STAFFORDSHIRE LTD,58.37,Civil Protection & Emerg Plg,Telephone Costs,01 Jul 2023,2324/04,SME,N,
0010058639,CARE PLUS STAFFORDSHIRE LTD,"6,566.61",Sheltered General Mgmt,Community Alarm Costs,01 Jul 2023,2324/04,SME,N,
0010058641,HAMILTON SMITH LETTINGS,670.00,Guaranteed Rent Scheme,Rent Payable,18 Jul 2023,2324/04,SME,N,
0010058650,4PRINCIPLES CONSTRUCTION LTD,"6,885.23",Mand Disabled Facilities Grant,Grants,19 Jul 2023,2324/04,SME,N,
0010058652,METRIC GROUP LTD,-137.97,C Parks General,Contracted Services,17 Jul 2023,2324/04,SME,N,
0010058653,M & H CIVIL ENGINEERING LTD,637.20,Voids Maintenance,Repairs,12 Jul 2023,2324/04,SME,N,
0010058655,M & H CIVIL ENGINEERING LTD,750.00,Building Services,Repairs,17 Jul 2023,2324/04,SME,N,
0010058659,URBAN FORESTRY (BSE) LTD,"10,458.03","Fences, Gates and Walls",Repairs,29 Jun 2023,2324/04,SME,N,
0010058664,EDMUNDSON ELECTRICAL LTD (IPSWICH),"1,215.37",Building Services,"Equipment, Tools & Materials",11 Jul 2023,2324/04,LGE,N,
0010058666,SUFFOLK DOORS & WINDOWS LTD,"1,952.00",Building Services,Repairs,19 Jul 2023,2324/04,SME,N,
0010058667,GREENACRE RECRUITMENT LTD,"2,400.00",Building Services,Agency Staff,19 Jul 2023,2324/04,SME,Y,50%
0010058668,GREENACRE RECRUITMENT LTD,"2,780.00",Building Services,Agency Staff,19 Jul 2023,2324/04,SME,Y,50%
0010058669,GREENACRE RECRUITMENT LTD,"1,650.00",Building Services,Agency Staff,19 Jul 2023,2324/04,SME,Y,50%
0010058670,GREENACRE RECRUITMENT LTD,"2,000.00",Building Services Compliance,Agency Staff,19 Jul 2023,2324/04,SME,Y,50%
0010058672,GREENACRE RECRUITMENT LTD,"1,413.00",Building Services,Agency Staff,19 Jul 2023,2324/04,SME,Y,50%
0010058673,PRECISION RESOURCE GROUP LTD T/A PANORAM,"2,812.50",Building Services Compliance,Agency Staff,19 Jul 2023,2324/04,LGE,Y,50%
0010058674,FLEURETS LIMITED,"3,500.00",Devt Management -Applications,Viability,16 Jun 2023,2324/04,SME,N,
0010058676,ROSE BUILDERS LTD,"9,711.90",Pld Maint/Enhncmts-Hadl Pool,Repairs,19 Jul 2023,2324/04,SME,N,
0010058678,SACKERS LTD,-160.00,Chilton Depot,Grounds & Site Maintenance,18 Jul 2023,2324/04,SME,Y,50%
0010058685,CORNERSTONE BARRISTERS,"3,000.00",Devt Management -Applications,Legal Expenses,10 Jul 2023,2324/04,SME,N,
0010058686,NEWSQUEST MEDIA GROUP,824.00,Devt Management -Applications,Advertising&mkting (non-staff),18 Jul 2023,2324/04,LGE,N,
0010058689,HAYS SPECIALIST RECRUITMENT LTD,"1,826.85",ICT - Finance System,Agency Staff,19 Jul 2023,2324/04,LGE,Y,50%
0010058694,SWECO UK LTD,"2,200.00",Public Sector Decarbonisation,Prof & Consultancy Fees,23 May 2023,2324/04,LGE,Y,50%
0010058695,LAW MORGAN LTD T/A MORGAN LAW,"3,025.00",ICT - Finance System,Agency Staff,20 Jul 2023,2324/04,SME,Y,50%
0010058696,LAW MORGAN LTD T/A MORGAN LAW,"4,024.30",Financial Servs,Agency Staff,20 Jul 2023,2324/04,SME,Y,50%
0010058697,LAW MORGAN LTD T/A MORGAN LAW,"2,300.00",Commissioning & Procurement,Agency Staff,20 Jul 2023,2324/04,SME,Y,50%
0010058698,THREE POINT FIVE LTD,"2,500.00",Organisational Devt,Training,20 Jul 2023,2324/04,SME,Y,50%
0010058699,SUFFOLK MARKET EVENTS,937.50,RHSSF,Prof & Consultancy Fees,20 Jul 2023,2324/04,SME,N,
0010058700,NEWSQUEST MEDIA GROUP,618.00,Devt Management -Applications,Advertising&mkting (non-staff),19 Jul 2023,2324/04,LGE,N,
0010058706,SIGNIX LTD,"12,152.18",Smoke Alarms (Bbgh Standard),Major Contracts,14 Jul 2023,2324/04,SME,N,
0010058707,SIGNIX LTD,"9,463.74",Smoke Alarms (Bbgh Standard),Major Contracts,14 Jul 2023,2324/04,SME,N,
0010058710,ECOSYSTEMS TREE & GROUNDS CARE,750.00,Amenity Areas,Tree felling/maintenance,21 Jul 2023,2324/04,SME,N,
0010058712,ECOSYSTEMS TREE & GROUNDS CARE,700.00,Public Tree Programme,Tree felling/maintenance,21 Jul 2023,2324/04,SME,N,
0010058715,ECOSYSTEMS TREE & GROUNDS CARE,700.00,Public Tree Programme,Tree felling/maintenance,21 Jul 2023,2324/04,SME,N,
0010058717,ECOSYSTEMS TREE & GROUNDS CARE,"2,000.00",Public Tree Programme,Tree felling/maintenance,21 Jul 2023,2324/04,SME,N,
0010058718,ECOSYSTEMS TREE & GROUNDS CARE,"3,125.00",Public Tree Programme,Tree felling/maintenance,21 Jul 2023,2324/04,SME,N,
0010058719,ECOSYSTEMS TREE & GROUNDS CARE,"3,250.00",Public Tree Programme,Tree felling/maintenance,21 Jul 2023,2324/04,SME,N,
0010058724,WHYBROW PROPERTY SOLUTIONS LTD,"8,251.00",Building Services,Repairs,20 Jul 2023,2324/04,SME,N,
0010058727,SIGNIX LTD,"6,301.66",Smoke Alarms (Bbgh Standard),Major Contracts,21 Jul 2023,2324/04,SME,N,
0010058730,M & H CIVIL ENGINEERING LTD,"1,789.46",Building Services,Repairs,05 Jun 2023,2324/04,SME,N,
0010058734,FLAGSHIP HOUSING GROUP LTD-RENT ACCOUNT,700.00,Homeless Prevention Fund,Misc Supplies & Services Costs,21 Jul 2023,2324/04,LGE,N,
0010058735,SUFFOLK DOORS & WINDOWS LTD,"1,490.00",Building Services,Repairs,21 Jul 2023,2324/04,SME,N,
0010058740,SUREFIX,"1,925.00",Building Services,Repairs,20 Jul 2023,2324/04,SME,N,
0010058742,SUREFIX,725.00,Building Services,Repairs,19 Jul 2023,2324/04,SME,N,
0010058743,SUREFIX,950.00,Window & Door Rplcmts,Repairs,21 Jul 2023,2324/04,SME,N,
0010058744,SUFFOLK COUNTY COUNCIL,"15,000.00",Climate Change and Sustainabil,Contributions to other Bodies,21 Jul 2023,2324/04,LGE,N,
0010058761,PRECISION RESOURCE GROUP LTD T/A PANORAM,600.00,Building Servs Tech Staff,Agency Staff,19 Jul 2023,2324/04,LGE,Y,50%
0010058762,PRECISION RESOURCE GROUP LTD T/A PANORAM,"1,875.00",Building Servs Tech Staff,Agency Staff,19 Jul 2023,2324/04,LGE,Y,50%
0010058764,SUFFOLK MARKET EVENTS,682.50,Hadleigh Market,Contracted Services,20 Jul 2023,2324/04,SME,N,
0010058771,PRIVATE LANDLORD,650.00,Guaranteed Rent Scheme,Rent Payable,24 Jul 2023,2324/04,ST,Y,50%
0010058776,PRIVATE LANDLORD,700.00,Guaranteed Rent Scheme,Rent Payable,24 Jul 2023,2324/04,ST,N,
0010058777,STUTTON COMMUNITY ASSOCIATION,"14,535.00",CIL Funded REFCUS,Grants,21 Jul 2023,2324/04,SME,N,
0010058778,SEQUENCE UK LTD (WILLIAM H BROWN),"1,500.00",Homeless Prevention Fund,Misc Supplies & Services Costs,21 Jul 2023,2324/04,LGE,N,
0010058780,REEFER PROPERTIES LTD,695.00,Guaranteed Rent Scheme,Rent Payable,24 Jul 2023,2324/04,SME,N,
0010058782,PRIVATE LANDLORD,575.00,Guaranteed Rent Scheme,Rent Payable,24 Jul 2023,2324/04,ST,N,
0010058783,SUFFOLK COUNTY COUNCIL,601.18,ICT,Desktop Software,21 Jul 2023,2324/04,LGE,N,
0010058784,SUFFOLK COUNTY COUNCIL,601.18,ICT,Desktop Software,21 Jul 2023,2324/04,LGE,Y,50%
0010058787,PRIVATE LANDLORD,575.00,Guaranteed Rent Scheme,Rent Payable,24 Jul 2023,2324/04,ST,N,
0010058789,PRIVATE LANDLORD,550.00,Guaranteed Rent Scheme,Rent Payable,24 Jul 2023,2324/04,ST,N,
0010058793,DAVID BURR LETTINGS,750.00,Guaranteed Rent Scheme,Rent Payable,27 Jul 2023,2324/04,SME,N,
0010058794,PRIVATE LANDLORD,"1,198.00",Guaranteed Rent Scheme,Rent Payable,24 Jul 2023,2324/04,ST,N,
0010058795,LOCAL GOVERNMENT ASSOCIATION,-505.90,Management Team,Conference Expenses,21 Jul 2023,2324/04,LGE,Y,50%
0010058795,LOCAL GOVERNMENT ASSOCIATION,"-1,011.80",Cost of Democracy,Member's Courses & Conferences,21 Jul 2023,2324/04,LGE,N,
0010058796,LOCAL GOVERNMENT ASSOCIATION,"1,813.50",Cost of Democracy,Member's Courses & Conferences,13 Jun 2023,2324/04,LGE,N,
0010058796,LOCAL GOVERNMENT ASSOCIATION,505.90,Management Team,Conference Expenses,13 Jun 2023,2324/04,LGE,Y,50%
0010058797,SUFFOLK COUNTY COUNCIL,"27,780.12",Garden Waste,Garden Waste Disposal,21 Jul 2023,2324/04,LGE,Y,50%
0010058797,SUFFOLK COUNTY COUNCIL,"24,072.84",Domestic Waste,MRF Disposal,21 Jul 2023,2324/04,LGE,N,
0010058800,PRIVATE LANDLORD,595.00,Guaranteed Rent Scheme,Rent Payable,24 Jul 2023,2324/04,ST,N,
0010058801,HONEYBEE PROPERTY LTD,664.42,Guaranteed Rent Scheme,Rent Payable,24 Jul 2023,2324/04,SME,N,
0010058808,HAYS SPECIALIST RECRUITMENT LTD,"3,540.00",Financial Servs,Agency Staff,24 Jul 2023,2324/04,LGE,Y,50%
0010058812,ARAN INSULATION LTD,"2,022.96",Insulation Imps,Repairs,13 Jul 2023,2324/04,SME,N,
0010058832,CHILDCARE VOUCHER LTD EDENRED (UK GROUP),547.75,Health & Safety,Misc Employee Costs,26 Jul 2023,2324/04,SME,Y,50%
0010058837,SUFFOLK TREE SERVICES LTD,"2,650.00",Public Tree Programme,Tree felling/maintenance,26 Jul 2023,2324/04,SME,N,
0010058846,GIPPING OCCUPATIONAL HEALTH LTD,622.24,Health & Safety,Contracted Services,26 Jul 2023,2324/04,SME,Y,50%
0010058852,ORWELL HOUSING ASSOCIATION LTD,"5,197.78",Other Temp Accommodation,Contracted Services,25 Jul 2023,2324/04,LGE,N,
0010058853,NEWSQUEST MEDIA GROUP,741.60,Devt Management -Applications,Advertising&mkting (non-staff),26 Jul 2023,2324/04,LGE,N,
0010058864,CHARISMA SPATIAL PLANNING LTD T/A ANN SK,"7,540.95",Nghbrhd Plan Designations,Prof & Consultancy Fees,26 Jul 2023,2324/04,SME,N,
0010058877,FAUN ZOELLER (UK) LTD,"159,385.00",Rplcmt Ref Freighters-Jnt Schm,Plant & Vehicle - Purchase,12 Jul 2023,2324/04,SME,N,
0010058887,CAPITA IB SOLUTIONS LTD,"89,948.49",ICT - Finance System,Contracted Services,28 Jul 2023,2324/04,LGE,Y,50%
0010058890,THE PLANNING INSPECTORATE,"7,720.58",Devt Policy & Local Plans,Prof & Consultancy Fees,27 Jul 2023,2324/04,LGE,N,
0010058890,THE PLANNING INSPECTORATE,"7,720.57",Local Plans,Prof & Consultancy Fees,27 Jul 2023,2324/04,LGE,Y,100%
0010058893,IPSWICH BOROUGH COUNCIL,"508,885.59",Shared Revenues Partnership,Major Contracts,05 Jul 2023,2324/04,LGE,N,
0010058898,THE LETTING DEPARTMENT,"1,780.00",Homeless Prevention Fund,Misc Supplies & Services Costs,28 Jul 2023,2324/04,SME,N,
0010058899,KEW LAW LLP SOLICITORS,"1,320.00",Mand Disabled Facilities Grant,Grants,28 Jul 2023,2324/04,SME,N,
0010058900,BRITISH GAS TRADING LTD,273.89,Voids Maintenance,Gas,26 Jul 2023,2324/04,LGE,N,
0010058900,BRITISH GAS TRADING LTD,585.76,Voids Maintenance,Electricity,26 Jul 2023,2324/04,LGE,N,
0020028563,AARON SERVICES LTD,"5,093.01",Current Liabilities,Cert IBS Creditors Holding ac,28 Jun 2023,2324/04,SME,N,
0020028565,FROST AND PARTNERS,"1,819.00",Homes for Ukraine,Rent Payable,05 Jul 2023,2324/04,SME,N,
0020028568,RIX PETROLEUM (EAST ANGLIA) LTD,"2,991.84",Open Spaces,Plant & Vehicle Fuel,04 Jul 2023,2324/04,SME,Y,50%
0020028568,RIX PETROLEUM (EAST ANGLIA) LTD,"2,104.83",Tenancy Services,Heating Oil,04 Jul 2023,2324/04,SME,N,
0020028571,EAST BERGHOLT PARISH COUNCIL,"1,354.60",Street & Major Road Cleansing,Contributions & Donations,12 Jul 2023,2324/04,SME,N,
0020028572,HOLBROOK PARISH COUNCIL,880.49,Street & Major Road Cleansing,Contributions & Donations,12 Jul 2023,2324/04,SME,N,
0020028574,LAVENHAM PARISH COUNCIL,"2,844.66",Street & Major Road Cleansing,Contributions & Donations,12 Jul 2023,2324/04,SME,N,
0020028575,LONG MELFORD PARISH COUNCIL,"1,219.14",Street & Major Road Cleansing,Contributions & Donations,12 Jul 2023,2324/04,SME,N,
0020028577,EAST LINKS RESIDENTIAL LETTINGS LTD,"2,405.00",Homes for Ukraine,Rent Payable,17 Jul 2023,2324/04,SME,N,
0020028578,AARON SERVICES LTD,"4,915.58",Current Liabilities,Cert IBS Creditors Holding ac,19 Jul 2023,2324/04,SME,N,
0020028579,GPC BARCLAYS,"8,393.80",Current Assets,Barclaycard Control,16 Jul 2023,2324/04,LGE,Y,28.5%
0020028580,HM COURTS & TRIBUNALS SERVICE  (DD ONLY),664.00,Building Servs Tech Staff,Legal Expenses,18 Jul 2023,2324/04,LGE,N,
0020028580,HM COURTS & TRIBUNALS SERVICE  (DD ONLY),226.00,Devt Management -Applications,Legal Expenses,18 Jul 2023,2324/04,LGE,N,
0020028582,HM COURTS & TRIBUNALS SERVICE  (DD ONLY),996.00,Building Servs Tech Staff,Legal Expenses,25 Jul 2023,2324/04,LGE,N,
0020028583,PIGHTLES DEVELOPMENTS LTD,925.00,Guaranteed Rent Scheme,Rent Payable,26 Jul 2023,2324/04,SME,N,
0020028583,PIGHTLES DEVELOPMENTS LTD,"1,000.00",Guaranteed Rent Scheme,Misc Supplies & Services Costs,26 Jul 2023,2324/04,SME,N,
0000000317,G4S CASH SOLUTIONS LTD,-40.72,C Parks General,Contracted Services,26 Jul 2023,2324/04,LGE,N,
0000000318,G4S CASH SOLUTIONS LTD,-40.72,C Parks General,Contracted Services,26 Jul 2023,2324/04,LGE,N,
0000001127,HADLEIGH TOWN COUNCIL,"-5,995.00",Headquarters General,Rent Payable,30 Jun 2023,2324/04,SME,N,
0000001130,FIRE RISK ASSESSMENT CONSULTANCY UK LTD,"-11,070.00",Current Assets,LLOYDS GENERAL PAYMENTS,26 Jul 2023,2324/04,SME,N,
0010057975,SPALDINGS LTD,525.34,Open Spaces,"Equipment, Tools & Materials",21 Jun 2023,2324/05,SME,N,
0010058034,PEOPLE FOCUSED TRAINING & SOLUTIONS LTD,"2,040.00",Community Safety-General,Contributions & Donations,26 Jun 2023,2324/05,ST,N,
0010058287,ARAN INSULATION LTD,"5,459.97",Insulation Imps,Repairs,30 Jun 2023,2324/05,SME,N,
0010058288,ARAN INSULATION LTD,"3,775.98",Insulation Imps,Repairs,30 Jul 2023,2324/05,SME,N,
0010058360,SUREFIX,"4,225.00",Insulation Imps,Repairs,30 Jun 2023,2324/05,SME,N,
0010058375,ARAN INSULATION LTD,"15,759.50",Insulation Imps,Repairs,19 Jun 2023,2324/05,SME,N,
0010058376,ARAN INSULATION LTD,"15,759.50",Insulation Imps,Repairs,26 Jun 2023,2324/05,SME,N,
0010058409,ABBEYCROFT LEISURE,"24,294.00",Leisure Contract,Major Contracts,03 Apr 2023,2324/05,LGE,N,
0010058409,ABBEYCROFT LEISURE,"36,441.00",Leisure Contract,Major Contracts,03 Apr 2023,2324/05,LGE,N,
0010058624,SUFFOLK DOORS & WINDOWS LTD,"4,778.00",Window & Door Rplcmts,Repairs,18 Jul 2023,2324/05,SME,N,
0010058725,WHYBROW PROPERTY SOLUTIONS LTD,"1,368.00",C Parks General,Contracted Services,20 Jul 2023,2324/05,SME,N,
0010058728,ABBEYCROFT LEISURE,"3,180.00",HAF Family Fun Days,Contributions & Donations,21 Jul 2023,2324/05,LGE,N,
0010058759,FOURWAYS VEHICLE SOLUTIONS LTD,"1,092.00",Building Services,Lease Cars - Payment,05 Jul 2023,2324/05,SME,Y,50%
0010058760,D W ADAMS LTD,"5,411.00",Council House Adaptions,Improvements,21 Jul 2023,2324/05,SME,N,
0010058773,COLLINS SKIP HIRE,550.00,Building Services,Waste Disposal,24 Jul 2023,2324/05,SME,Y,50%
0010058775,GHB ROOFING,"61,606.52",Roofing,Repairs,30 Jun 2023,2324/05,SME,N,
0010058779,KEN GRIME & SON LTD,"3,129.35",Voids Maintenance,Repairs,24 Jul 2023,2324/05,SME,N,
0010058802,GUNNERCOOKE LLP,"4,000.00",HRA General Management,Specialist Legal Expenses,14 Jun 2023,2324/05,SME,Y,50%
0010058803,BECCA BOURNE FACE PAINTER,880.00,HAF Family Fun Days,Contributions & Donations,20 Jul 2023,2324/05,ST,N,
0010058806,PEOPLE FOCUSED TRAINING & SOLUTIONS LTD,"2,289.99",Community Safety-General,Contributions & Donations,24 Jul 2023,2324/05,ST,N,
0010058810,EDMUNDSON ELECTRICAL LTD (IPSWICH),698.81,Building Services,"Equipment, Tools & Materials",21 Jul 2023,2324/05,LGE,N,
0010058811,PRINCIPLE CONSTRUCTION & MAINTENANCE LTD,"7,056.69",Council House Adaptions,Improvements,17 Jul 2023,2324/05,SME,N,
0010058813,AARON SERVICES LTD,"30,330.64",Planned Maint - Heating,Property Servicing,24 Jul 2023,2324/05,SME,N,
0010058820,NORTHUMBRIAN WATER LTD,121.98,Building Services,Legionella Testing,24 Jul 2023,2324/05,LGE,N,
0010058820,NORTHUMBRIAN WATER LTD,75.09,Chilton Depot,Legionella Testing,24 Jul 2023,2324/05,LGE,Y,50%
0010058820,NORTHUMBRIAN WATER LTD,"1,080.18",Public Conveniences,Legionella Testing,24 Jul 2023,2324/05,LGE,N,
0010058820,NORTHUMBRIAN WATER LTD,403.53,Sheltered Accommodation,Legionella Testing,24 Jul 2023,2324/05,LGE,M,
0010058820,NORTHUMBRIAN WATER LTD,121.98,Sheltered Accommodation,Fire Prevention,24 Jul 2023,2324/05,LGE,N,
0010058820,NORTHUMBRIAN WATER LTD,540.12,Temporary Accommodation,Legionella Testing,24 Jul 2023,2324/05,LGE,N,
0010058820,NORTHUMBRIAN WATER LTD,103.23,Wenham Depot,Legionella Testing,24 Jul 2023,2324/05,LGE,Y,50%
0010058828,GREENACRE RECRUITMENT LTD,"1,130.00",HRA General Management,Agency Staff,18 Jul 2023,2324/05,SME,Y,50%
0010058829,ANGLIA COMMERCIAL FLOORING LTD,618.20,Voids Maintenance,Repairs,25 Jul 2023,2324/05,SME,N,
0010058830,WHYBROW PROPERTY SOLUTIONS LTD,"21,001.21",Major Imps,Repairs,24 Jul 2023,2324/05,SME,N,
0010058831,WHYBROW PROPERTY SOLUTIONS LTD,672.00,Major Imps,Repairs,24 Jul 2023,2324/05,SME,N,
0010058835,LAUREN HOLDING,"2,500.00",Business Innovation Grants,Grants,26 Jul 2023,2324/05,SME,N,
0010058839,GREENACRE RECRUITMENT LTD,"3,818.80",HRA General Management,Agency Staff,26 Jul 2023,2324/05,SME,Y,50%
0010058840,GREENACRE RECRUITMENT LTD,"2,204.10",Building Services,Agency Staff,26 Jul 2023,2324/05,SME,Y,50%
0010058841,GREENACRE RECRUITMENT LTD,"2,780.00",Building Services,Agency Staff,26 Jul 2023,2324/05,SME,Y,50%
0010058842,GREENACRE RECRUITMENT LTD,"2,700.00",Building Services,Agency Staff,26 Jul 2023,2324/05,SME,Y,50%
0010058843,GREENACRE RECRUITMENT LTD,"1,413.00",Building Services,Agency Staff,26 Jul 2023,2324/05,SME,Y,50%
0010058844,GREENACRE RECRUITMENT LTD,"2,000.00",Building Services Compliance,Agency Staff,26 Jul 2023,2324/05,SME,Y,50%
0010058845,PRECISION RESOURCE GROUP LTD T/A PANORAM,"2,812.50",Building Services Compliance,Agency Staff,26 Jul 2023,2324/05,LGE,Y,50%
0010058849,MR BEAN ENTERTAINMENTS,"1,275.00",HAF Family Fun Days,Contributions & Donations,26 Jul 2023,2324/05,SME,N,
0010058851,NORTHUMBRIAN WATER LTD,40.66,Building Services,Legionella Testing,26 Jul 2023,2324/05,LGE,N,
0010058851,NORTHUMBRIAN WATER LTD,25.03,Chilton Depot,Legionella Testing,26 Jul 2023,2324/05,LGE,Y,50%
0010058851,NORTHUMBRIAN WATER LTD,360.06,Public Conveniences,Legionella Testing,26 Jul 2023,2324/05,LGE,N,
0010058851,NORTHUMBRIAN WATER LTD,134.51,Sheltered Accommodation,Legionella Testing,26 Jul 2023,2324/05,LGE,N,
0010058851,NORTHUMBRIAN WATER LTD,40.66,Sheltered Accommodation,Fire Prevention,26 Jul 2023,2324/05,LGE,N,
0010058851,NORTHUMBRIAN WATER LTD,180.04,Temporary Accommodation,Legionella Testing,26 Jul 2023,2324/05,LGE,N,
0010058851,NORTHUMBRIAN WATER LTD,34.41,Wenham Depot,Legionella Testing,26 Jul 2023,2324/05,LGE,Y,50%
0010058857,THE DISRUPTIVE HR AGENCY LTD,"1,500.00",Organisational Devt,Professional Subs (Staff),28 Jun 2023,2324/05,SME,Y,50%
0010058860,HAYS SPECIALIST RECRUITMENT LTD,"1,826.85",ICT - Finance System,Agency Staff,26 Jul 2023,2324/05,LGE,Y,50%
0010058873,LAW MORGAN LTD T/A MORGAN LAW,"3,025.00",ICT - Finance System,Agency Staff,27 Jul 2023,2324/05,SME,Y,50%
0010058874,LAW MORGAN LTD T/A MORGAN LAW,"4,024.30",Financial Servs,Agency Staff,27 Jul 2023,2324/05,SME,Y,50%
0010058875,LAW MORGAN LTD T/A MORGAN LAW,"2,300.00",Commissioning & Procurement,Agency Staff,27 Jul 2023,2324/05,SME,Y,50%
0010058879,BELL CONTAINER TRADING LTD,695.27,Public Realm TransitionProject,"Equipment, Tools & Materials",24 Jul 2023,2324/05,SME,N,
0010058882,CLARKE FENCING LTD,"7,032.38",Open Spaces,Repairs,27 Jul 2023,2324/05,SME,N,
0010058888,WINDIMAN LTD,800.00,Building Services,Repairs,28 Jul 2023,2324/05,SME,N,
0010058896,SUREFIX,700.00,Building Services,Repairs,26 Jul 2023,2324/05,SME,N,
0010058897,SUREFIX,"2,826.29",Responsive maintenance,Repairs,27 Jul 2023,2324/05,SME,N,
0010058901,MIXBROW LTD,"5,030.00",Council House Adaptions,Improvements,27 Jul 2023,2324/05,SME,N,
0010058902,MIXBROW LTD,"6,222.38",Council House Adaptions,Improvements,27 Jul 2023,2324/05,SME,N,
0010058903,REID PLUMBING & HEATING CONTRACTORS LTD,"10,947.70",Central Heating,Major Contracts,28 Jul 2023,2324/05,SME,N,
0010058905,WHYBROW PROPERTY SOLUTIONS LTD,"15,000.00",Voids Maintenance,Repairs,28 Jul 2023,2324/05,SME,N,
0010058906,WHYBROW PROPERTY SOLUTIONS LTD,"9,520.00",Voids Maintenance,Repairs,28 Jul 2023,2324/05,SME,N,
0010058910,APTL ENTERPRISES LTD,"5,506.67",PV Panels,Contracted Services,31 Jul 2023,2324/05,SME,N,
0010058912,L A C CLEANING CONTRACTORS LIMITED,730.80,Wenham Depot TDP,General Cleaning,24 Jul 2023,2324/05,SME,Y,50%
0010058914,L A C CLEANING CONTRACTORS LIMITED,691.77,Sheltered Accommodation,Contracted Services,24 Jul 2023,2324/05,SME,N,
0010058923,L A C CLEANING CONTRACTORS LIMITED,"1,695.50",Voids Maintenance,Repairs,31 Jul 2023,2324/05,SME,N,
0010058925,PRIVATE LANDLORD,575.00,Guaranteed Rent Scheme,Rent Payable,31 Jul 2023,2324/05,ST,N,
0010058929,SUDBURYS,825.00,Guaranteed Rent Scheme,Rent Payable,31 Jul 2023,2324/05,SME,N,
0010058934,MERCURY BUILDING SERVICES LTD,"1,320.00",Kingfisher Leisure Centre,Repairs,31 Jul 2023,2324/05,SME,N,
0010058935,PRIVATE LANDLORD,710.00,Guaranteed Rent Scheme,Rent Payable,31 Jul 2023,2324/05,ST,N,
0010058936,FELLBRIDGE BUILDING SERVICES,"11,067.92",Major Imps,Repairs,31 Jul 2023,2324/05,SME,N,
0010058938,PRIVATE LANDLORD,750.00,Guaranteed Rent Scheme,Rent Payable,31 Jul 2023,2324/05,ST,N,
0010058942,APTL ENTERPRISES LTD,"12,565.00",PV Panels,Contracted Services,31 Jul 2023,2324/05,SME,N,
0010058944,PRIVATE LANDLORD,575.00,Guaranteed Rent Scheme,Rent Payable,31 Jul 2023,2324/05,ST,N,
0010058945,PAY 360 LIMITED,"10,500.00",ICT,Software Licnse (Line of Bus) ,28 Jul 2023,2324/05,LGE,Y,50%
0010058946,LAMBERT SMITH HAMPTON GROUP LTD,"3,465.00",Devt Policy & Local Plans,Prof & Consultancy Fees,31 Jul 2023,2324/05,LGE,Y,50%
0010058950,STUDLEY CAPITAL LIMITED,"2,968.75",Hamilton Road Regeneration,Prof & Consultancy Fees,01 Aug 2023,2324/05,ST,N,
0010058951,MIXBROW LTD,"7,350.00",Council House Adaptions,Improvements,31 Jul 2023,2324/05,SME,N,
0010058952,TIAA LTD,"5,000.00",Internal Audit,Contracted Services,01 Aug 2023,2324/05,SME,Y,50%
0010058953,SWITCH PROPERTY SERVICES LTD,"1,025.00",Guaranteed Rent Scheme,Rent Payable,01 Aug 2023,2324/05,SME,N,
0010058956,M & H CIVIL ENGINEERING LTD,955.10,Building Services,Repairs,01 Aug 2023,2324/05,SME,N,
0010058959,FAITHORN FARRELL TIMMS,"2,600.00",Sewage Treatment Works,Repairs,31 Jul 2023,2324/05,SME,Y,50%
0010058962,FAITHORN FARRELL TIMMS,"2,355.00",Building Servs Tech Staff,Prof & Consultancy Fees,31 Jul 2023,2324/05,SME,Y,50%
0010058963,TRADITION (UK) LTD,"11,939.72",Treasury Management,Prof & Consultancy Fees,31 Jul 2023,2324/05,LGE,N,
0010058964,SUFFOLK POWER EQUIPMENT,"1,887.28",Open Spaces,"Equipment, Tools & Materials",18 Jul 2023,2324/05,ST,N,
0010058965,EAST OF ENGLAND CO-OPERATIVE SOCIETY LTD,"13,150.50",Management Team,Conference Expenses,25 Jul 2023,2324/05,LGE,Y,50%
0010058967,THERMATECH,"1,800.00",Sheltered Accommodation,Fire Prevention,30 Jul 2023,2324/05,SME,N,
0010058970,SUDBURYS,"2,875.00",Homeless Prevention Fund,Misc Supplies & Services Costs,01 Aug 2023,2324/05,SME,N,
0010058971,LEADERS LETTING & ESTATE AGENTS,"1,395.00",Homeless Prevention Fund,Misc Supplies & Services Costs,01 Aug 2023,2324/05,SME,N,
0010058974,4PRINCIPLES CONSTRUCTION LTD,"1,442.44",Mand Disabled Facilities Grant,Grants,01 Aug 2023,2324/05,SME,N,
0010058976,AARON SERVICES LTD,"28,814.11",Planned Maint - Heating,Property Servicing,26 Jun 2023,2324/05,SME,N,
0010058978,AARON SERVICES LTD,"7,582.61",Planned Maint - Heating,Property Servicing,28 Jun 2023,2324/05,SME,N,
0010058979,RIX PETROLEUM (EAST ANGLIA) LTD,"1,940.28",Open Spaces,Plant & Vehicle Fuel,01 Aug 2023,2324/05,SME,N,
0010058981,COLLINS SKIP HIRE,550.00,Building Services,Waste Disposal,31 Jul 2023,2324/05,SME,Y,50%
0010058983,GREENACRE RECRUITMENT LTD,"2,000.00",Building Services Compliance,Agency Staff,02 Aug 2023,2324/05,SME,Y,50%
0010058984,GREENACRE RECRUITMENT LTD,"1,552.95",Building Services,Agency Staff,02 Aug 2023,2324/05,SME,Y,50%
0010058985,GREENACRE RECRUITMENT LTD,"2,900.25",Building Services,Agency Staff,02 Aug 2023,2324/05,SME,Y,50%
0010058986,GREENACRE RECRUITMENT LTD,"2,040.00",Building Services,Agency Staff,02 Aug 2023,2324/05,SME,Y,50%
0010058987,GREENACRE RECRUITMENT LTD,"3,966.65",HRA General Management,Agency Staff,02 Aug 2023,2324/05,SME,Y,50%
0010058988,PRECISION RESOURCE GROUP LTD T/A PANORAM,"2,812.50",Building Services Compliance,Agency Staff,02 Aug 2023,2324/05,LGE,Y,50%
0010058990,ENER-G SWITCH2 LTD,515.92,Homelessness Private Sector,Electricity,01 Aug 2023,2324/05,SME,N,
0010058993,COUNTRYSTYLE RECYCLING LTD,"4,135.18",Bring Sites,Contracted Services,31 Jul 2023,2324/05,SME,N,
0010058994,BYCHOICE LTD,950.00,Guaranteed Rent Scheme,Rent Payable,01 Aug 2023,2324/05,SME,N,
0010058995,MENTA,"5,625.00",Shared Prosperity Fund,Prof & Consultancy Fees,31 Jul 2023,2324/05,SME,N,
0010058996,HAYES DIGGINS BUILDERS,"25,449.00",Responsive maintenance,Repairs,02 Aug 2023,2324/05,SME,N,
0010058998,PRINCIPLE CONSTRUCTION & MAINTENANCE LTD,"9,072.27",Council House Adaptions,Improvements,02 Aug 2023,2324/05,SME,N,
0010059000,D W ADAMS LTD,557.00,Building Services,Repairs,02 Aug 2023,2324/05,SME,N,
0010059001,BOWER FULLER,"32,289.60",Planned Maint - Heating,Property Servicing,02 Aug 2023,2324/05,SME,N,
0010059002,WEST SUFFOLK COUNCIL,"143,111.49",Legal & Info Gov Services,Contributions to other Bodies,02 Aug 2023,2324/05,LGE,Y,50%
0010059004,PRIVATE LANDLORD,515.00,Guaranteed Rent Scheme,Rent Payable,01 Aug 2023,2324/05,ST,N,
0010059015,P & P PROPERTY MAINTENANCE,"6,100.00",Mand Disabled Facilities Grant,Grants,03 Aug 2023,2324/05,SME,N,
0010059016,GB ADAPTIONS LTD,"5,747.00",Mand Disabled Facilities Grant,Grants,03 Aug 2023,2324/05,SME,N,
0010059017,GCS COMPLIANCE LTD,"1,357.70",Building Services,Prof & Consultancy Fees,31 Jul 2023,2324/05,SME,N,
0010059025,HAYS SPECIALIST RECRUITMENT LTD,"3,540.00",Financial Servs,Agency Staff,01 Aug 2023,2324/05,LGE,Y,50%
0010059026,EDMUNDSON ELECTRICAL LTD (IPSWICH),"2,216.56",Building Services,"Equipment, Tools & Materials",31 Jul 2023,2324/05,LGE,N,
0010059030,STAGE EVENT SECURITY LTD,"1,441.50",Open Spaces,Contracted Services,01 Aug 2023,2324/05,SME,N,
0010059032,PUBLIC SEWER SERVICES,"1,691.15",Roads and Paths,Prof & Consultancy Fees,31 Jul 2023,2324/05,SME,N,
0010059035,BUCHER MUNICIPAL LTD,818.48,Street & Major Road Cleansing,Plant & Vehicle - Other costs,02 Aug 2023,2324/05,LGE,Y,50%
0010059039,NEWSQUEST MEDIA GROUP,700.40,Devt Management -Applications,Advertising&mkting (non-staff),02 Aug 2023,2324/05,LGE,N,
0010059040,HAYS SPECIALIST RECRUITMENT LTD,"1,826.85",ICT - Finance System,Agency Staff,02 Aug 2023,2324/05,LGE,Y,50%
0010059044,IPSWICH BOROUGH COUNCIL,"10,208.00",Shared Revenues Partnership,Contributions to other Bodies,31 Jul 2023,2324/05,LGE,N,
0010059045,FORE-MOST GARAGE DOORS LTD,"1,111.99",Building Services,Repairs,31 Jul 2023,2324/05,SME,N,
0010059045,FORE-MOST GARAGE DOORS LTD,51.00,Voids Maintenance,Repairs,31 Jul 2023,2324/05,SME,N,
0010059046,ARMSTRONG YORK ASBESTOS ENVIRONMENTAL,"16,334.14",Asbestos Survey & Reinspection,Prof & Consultancy Fees,31 Jul 2023,2324/05,SME,N,
0010059050,SUFFOLK COUNTY COUNCIL,"28,421.90",ICT-Hardware/Software Refresh,Computer Equpt Purchases,02 Aug 2023,2324/05,LGE,Y,50%
0010059052,PRO-FLAT SPECIALIST SERVICES LTD,"1,488.00","Garages, Forecourts & Stores",BMBS Repairs Work,01 Aug 2023,2324/05,SME,N,
0010059053,MORE IQ LIMITED,"3,200.00",Building Services,Prof & Consultancy Fees,31 Jul 2023,2324/05,SME,Y,50%
0010059054,SUPERSTRUCTURES LTD,750.00,Roads and Paths,Prof & Consultancy Fees,21 Dec 2022,2324/05,SME,N,
0010059055,BELL DECORATING GROUP LTD,"14,370.77",Planned Maint - Ext Painting,External Painting,25 Jul 2023,2324/05,LGE,N,
0010059058,URBAN FORESTRY (BSE) LTD,"9,855.14","Fences, Gates and Walls",Improvements,31 Jul 2023,2324/05,SME,N,
0010059059,LAW MORGAN LTD T/A MORGAN LAW,"4,024.30",Financial Servs,Agency Staff,03 Aug 2023,2324/05,SME,Y,50%
0010059060,LAW MORGAN LTD T/A MORGAN LAW,"3,025.00",ICT - Finance System,Agency Staff,03 Aug 2023,2324/05,SME,Y,50%
0010059061,LAW MORGAN LTD T/A MORGAN LAW,"2,300.00",Commissioning & Procurement,Agency Staff,03 Aug 2023,2324/05,SME,Y,50%
0010059062,CORNERSTONE BARRISTERS,"36,000.00",Devt Policy & Local Plans,Misc Legal Expenses,24 Jul 2023,2324/05,SME,Y,50%
0010059063,PENNA PLC,"4,400.00",Management Team,Agency Staff,02 Aug 2023,2324/05,SME,Y,50%
0010059064,PENNA PLC,"10,080.00",Management Team,Agency Staff,02 Aug 2023,2324/05,SME,Y,50%
0010059067,D W ADAMS LTD,"4,935.00",Council House Adaptions,Improvements,03 Aug 2023,2324/05,SME,N,
0010059070,BOTTOMLINE TECHNOLOGIES,736.27,ICT,Line of Business Applications,31 Jul 2023,2324/05,LGE,Y,50%
0010059075,EDMUNDSON ELECTRICAL LTD (IPSWICH),808.55,Building Services,"Equipment, Tools & Materials",03 Aug 2023,2324/05,LGE,N,
0010059077,SEAGER HOME SOLUTIONS,"67,641.53",Kitchens/Bathrooms,Major Contracts,03 Aug 2023,2324/05,SME,N,
0010059078,AE WHITE SURFACING,"3,925.00",Building Services,Repairs,27 Jun 2023,2324/05,SME,N,
0010059079,SUREFIX,"1,025.00",Major Imps,Repairs,03 Aug 2023,2324/05,SME,N,
0010059080,SUREFIX,"1,500.00",Building Services,Repairs,31 Jul 2023,2324/05,SME,N,
0010059081,SUREFIX,"6,950.00",Insulation Imps,Repairs,04 Aug 2023,2324/05,SME,N,
0010059082,PRIVATE LANDLORD,675.00,Guaranteed Rent Scheme,Rent Payable,04 Aug 2023,2324/05,ST,N,
0010059113,BOWER FULLER,954.00,Tenancy Services,Fire Prevention,31 Jul 2023,2324/05,SME,N,
0010059114,BOWER FULLER,"1,020.00",Tenancy Services,Fire Prevention,31 Jul 2023,2324/05,SME,N,
0010059116,CHIPSIDE LTD,526.67,C Parks General,Contracted Services,31 Jul 2023,2324/05,SME,N,
0010059117,BOWER FULLER,"1,164.89",Tenancy Services,Repairs,31 Jul 2023,2324/05,SME,N,
0010059121,BOWER FULLER,750.00,Sheltered Accommodation,Fire Prevention,31 Jul 2023,2324/05,SME,N,
0010059124,BOWER FULLER,"2,136.00",Tenancy Services,Fire Prevention,31 Jul 2023,2324/05,SME,N,
0010059125,BOWER FULLER,864.01,Building Services,Repairs,31 Jul 2023,2324/05,SME,N,
0010059130,HIREBASE (HUWS GRAY LTD),848.00,Open Spaces,"Equipment, Tools & Materials",28 Jul 2023,2324/05,LGE,N,
0010059131,WILLIAM H BROWN ESTATE AGENTS - SUDBURY,925.00,Guaranteed Rent Scheme,Rent Payable,04 Aug 2023,2324/05,SME,N,
0010059132,PAY 360 LIMITED,"1,061.71",Bank Chgs,Bank Charges,04 Aug 2023,2324/05,LGE,N,
0010059133,SUFFOLK COUNTY COUNCIL,"9,120.00",ICT,Computer Equpt Purchases,03 Aug 2023,2324/05,LGE,Y,50%
0010059135,LONDON BOROUGH OF LAMBETH,"55,000.00",Vehicle and Plant Renewals,Plant & Vehicle - Purchase,31 Jul 2023,2324/05,LGE,N,
0010059139,SERCO LTD,933.05,Open Spaces,Plant & Vehicle - Other costs,14 Jul 2023,2324/05,LGE,N,
0010059147,ERNEST DOE & SONS LTD,722.50,Open Spaces,"Equipment, Tools & Materials",10 Jul 2023,2324/05,LGE,N,
0010059148,PRIVATE LANDLORD,750.00,Guaranteed Rent Scheme,Rent Payable,04 Aug 2023,2324/05,ST,N,
0010059149,STORETEC SERVICES LTD,"1,234.42",ICT,"Equipment, Tools & Materials",31 Jul 2023,2324/05,SME,Y,50%
0010059158,KENDA-CLEAN,43.00,Chilton Depot,Window Cleaning,06 Aug 2023,2324/05,SME,Y,50%
0010059158,KENDA-CLEAN,"1,739.00",Sheltered Accommodation,Window Cleaning,06 Aug 2023,2324/05,SME,N,
0010059158,KENDA-CLEAN,27.00,Temporary Accommodation,Window Cleaning,06 Aug 2023,2324/05,SME,N,
0010059158,KENDA-CLEAN,375.00,Tenancy Services,Window Cleaning,06 Aug 2023,2324/05,SME,N,
0010059161,PRIVATE LANDLORD,"1,000.00",Guaranteed Rent Scheme,Rent Payable,07 Aug 2023,2324/05,ST,N,
0010059162,HOME TO RENT LTD,975.00,Guaranteed Rent Scheme,Rent Payable,07 Aug 2023,2324/05,SME,N,
0010059165,PRIVATE LANDLORD,880.00,Guaranteed Rent Scheme,Rent Payable,07 Aug 2023,2324/05,ST,N,
0010059166,PRIVATE LANDLORD,"1,320.00",Guaranteed Rent Scheme,Rent Payable,07 Aug 2023,2324/05,ST,N,
0010059169,WILKS HEAD AND EVE LLP,"4,650.00",Financial Servs,Prof & Consultancy Fees,01 Aug 2023,2324/05,SME,N,
0010059169,WILKS HEAD AND EVE LLP,"9,550.00",HRA Strategic Property,Prof & Consultancy Fees,01 Aug 2023,2324/05,SME,N,
0010059171,LONDON BOROUGH OF LAMBETH,"55,000.00",Rplcmt Ref Freighters-Jnt Schm,Plant & Vehicle - Purchase,31 Jul 2023,2324/05,LGE,N,
0010059172,SERCO LTD,610.11,Street & Major Road Cleansing,Plant & Vehicle - Other costs,04 Aug 2023,2324/05,LGE,N,
0010059172,SERCO LTD,274.66,Open Spaces,Plant & Vehicle - Other costs,04 Aug 2023,2324/05,LGE,N,
0010059173,PRIVATE LANDLORD,786.50,Guaranteed Rent Scheme,Rent Payable,07 Aug 2023,2324/05,ST,N,
0010059174,WILLIAM H BROWN ESTATE AGENTS - SUDBURY,775.00,Guaranteed Rent Scheme,Rent Payable,07 Aug 2023,2324/05,SME,N,
0010059175,FROST AND PARTNERS,"1,100.00",Homes for Ukraine,Rent Payable,07 Aug 2023,2324/05,SME,N,
0010059176,CUTLERS WOOD LTD,750.00,Guaranteed Rent Scheme,Rent Payable,07 Aug 2023,2324/05,SME,N,
0010059177,THE STOWMARKET GLASS COMPANY LTD,"1,040.00",Building Services,Repairs,05 Jul 2023,2324/05,SME,N,
0010059180,THE STOWMARKET GLASS COMPANY LTD,"2,730.00",Building Services,Repairs,18 Jul 2023,2324/05,SME,N,
0010059195,BT PAYMENT SERVICES,"5,400.71",ICT,Telephone Costs,04 Aug 2023,2324/05,LGE,N,
0010059201,REID PLUMBING & HEATING CONTRACTORS LTD,"3,816.55",Central Heating,Major Contracts,07 Aug 2023,2324/05,SME,N,
0010059205,HAYS SPECIALIST RECRUITMENT LTD,"3,540.00",Financial Servs,Agency Staff,07 Aug 2023,2324/05,LGE,Y,50%
0010059206,STANNAH STAIRLIFTS LTD,"6,382.00",Council House Adaptions,Improvements,08 Aug 2023,2324/05,LGE,N,
0010059207,STANNAH STAIRLIFTS LTD,"6,382.00",Council House Adaptions,Improvements,08 Aug 2023,2324/05,LGE,N,
0010059210,CHARISMA SPATIAL PLANNING LTD T/A ANN SK,"3,783.75",Nghbrhd Plan Designations,Prof & Consultancy Fees,02 Aug 2023,2324/05,SME,N,
0010059212,KEYWAYS THE LOCKSMITHS LTD,504.00,Open Spaces,"Equipment, Tools & Materials",08 Aug 2023,2324/05,SME,N,
0010059213,SUFFOLK COUNTY COUNCIL,"2,431.67",Pre App Charging,Highways  Consultancy,07 Aug 2023,2324/05,LGE,N,
0010059217,GHB ROOFING,"99,068.19",Roofing,Repairs,31 Jul 2023,2324/05,SME,N,
0010059222,HAYS SPECIALIST RECRUITMENT LTD,743.13,Pld Maint/Enhncmts-Corp Bldgs,Agency Staff,08 Aug 2023,2324/05,LGE,Y,50%
0010059223,HAYS SPECIALIST RECRUITMENT LTD,"1,558.18",Pld Maint/Enhncmts-Corp Bldgs,Agency Staff,08 Aug 2023,2324/05,LGE,Y,50%
0010059224,COLLINS SKIP HIRE,550.00,Building Services,Waste Disposal,07 Aug 2023,2324/05,SME,Y,50%
0010059228,FROST AND PARTNERS,850.00,Homes for Ukraine,Rent Payable,10 Aug 2023,2324/05,SME,N,
0010059236,BRITISH GAS (GAS),500.59,HRA Strategic Property,Gas,08 Jul 2023,2324/05,LGE,N,
0010059237,BRITISH GAS (GAS),651.56,HRA Strategic Property,Gas,08 Jul 2023,2324/05,LGE,N,
0010059241,BRITISH GAS (GAS),527.11,HRA Strategic Property,Gas,08 Jul 2023,2324/05,LGE,N,
0010059242,PRO-FLAT SPECIALIST SERVICES LTD,810.00,Building Services,Repairs,31 Jul 2023,2324/05,SME,N,
0010059244,ABBEYCROFT LEISURE,"60,735.00",Leisure Contract,Major Contracts,07 Aug 2023,2324/05,LGE,N,
0010059245,PRIVATE LANDLORD,"1,984.39",Homeless Prevention Fund,Misc Supplies & Services Costs,08 Aug 2023,2324/05,ST,N,
0010059246,INSPIRE SUFFOLK LTD,"2,600.00",Shared Prosperity Fund,Contributions & Donations,06 Aug 2023,2324/05,SME,N,
0010059247,HADLEIGH GRAND FEOFFMENT CHARITY,"3,078.00",Renovation/Home Repair Grants,Grants,09 Aug 2023,2324/05,SME,N,
0010059250,ENVIROVENT LTD,665.35,Insulation Imps,Repairs,03 Aug 2023,2324/05,SME,N,
0010059255,GREENACRE RECRUITMENT LTD,"2,000.00",Building Services Compliance,Agency Staff,09 Aug 2023,2324/05,SME,Y,50%
0010059256,GREENACRE RECRUITMENT LTD,945.00,Building Services,Agency Staff,09 Aug 2023,2324/05,SME,Y,50%
0010059257,GREENACRE RECRUITMENT LTD,"1,800.00",Building Services,Agency Staff,09 Aug 2023,2324/05,SME,Y,50%
0010059258,GREENACRE RECRUITMENT LTD,"1,530.00",Building Services,Agency Staff,09 Aug 2023,2324/05,SME,Y,50%
0010059259,GREENACRE RECRUITMENT LTD,"3,938.75",HRA General Management,Agency Staff,09 Aug 2023,2324/05,SME,Y,50%
0010059260,PRECISION RESOURCE GROUP LTD T/A PANORAM,"2,250.00",Building Services Compliance,Agency Staff,09 Aug 2023,2324/05,LGE,Y,50%
0010059261,SUFFOLK COUNTY COUNCIL,"25,262.70",Domestic Waste,MRF Disposal,08 Aug 2023,2324/05,LGE,N,
0010059261,SUFFOLK COUNTY COUNCIL,"21,919.56",Garden Waste,Garden Waste Disposal,08 Aug 2023,2324/05,LGE,N,
0010059265,NORTHUMBRIAN WATER LTD,"1,629.00",Water Sampling,Sampling & Analysis,08 Aug 2023,2324/05,LGE,N,
0010059266,IPSERV LTD,"1,755.75",Communications,Commercial Printing,31 Jul 2023,2324/05,SME,N,
0010059266,IPSERV LTD,161.95,Central Printing,Commercial Printing,31 Jul 2023,2324/05,SME,N,
0010059266,IPSERV LTD,12.03,Wellbeing CCG Funding,"Equipment, Tools & Materials",31 Jul 2023,2324/05,SME,N,
0010059272,MONKS ELEIGH PARISH COUNCIL,"37,971.22",CIL Funded REFCUS,Grants,08 Aug 2023,2324/05,SME,N,
0010059276,M & H CIVIL ENGINEERING LTD,799.67,Building Services,Repairs,07 Aug 2023,2324/05,SME,N,
0010059278,MINI WASTE LTD,"1,941.20",Open Spaces,Waste Disposal,31 Jul 2023,2324/05,SME,N,
0010059279,NEWSQUEST MEDIA GROUP,865.20,Devt Management -Applications,Advertising&mkting (non-staff),08 Aug 2023,2324/05,LGE,N,
0010059280,HAYS SPECIALIST RECRUITMENT LTD,"1,826.85",ICT - Finance System,Agency Staff,09 Aug 2023,2324/05,LGE,Y,50%
0010059284,EDMUNDSON ELECTRICAL LTD (IPSWICH),612.02,Building Services,"Equipment, Tools & Materials",07 Aug 2023,2324/05,LGE,N,
0010059287,STANNAH STAIRLIFTS LTD,"3,112.00",Council House Adaptions,Improvements,10 Aug 2023,2324/05,LGE,N,
0010059288,TAYLOR WIMPEY EAST ANGLIA,"18,445.11","Wolsey Grange, Sproughton S106",Purchase of Land & Buildings,04 Aug 2023,2324/05,SME,N,
0010059288,TAYLOR WIMPEY EAST ANGLIA,"23,506.02",Property Acquisition,Prof & Consultancy Fees,04 Aug 2023,2324/05,SME,N,
0010059290,THE STOWMARKET GLASS COMPANY LTD,"1,040.00",Building Services,Repairs,08 Aug 2023,2324/05,SME,N,
0010059291,UNIT 4 BUSINESS SOFTWARE LIMITED,"66,420.00",ICT - Finance System,Software Licnse (Line of Bus) ,09 Aug 2023,2324/05,LGE,Y,50%
0010059295,ASPECT CONTRACTS LTD,"2,797.00",Asbestos,Improvements,31 Jul 2023,2324/05,LGE,N,
0010059297,GREENHALGH KERR,"4,085.00",Shared Revenues Partnership,Misc Supplies & Services Costs,31 Jul 2023,2324/05,SME,N,
0010059298,GREENHALGH KERR,763.00,Shared Revenues Partnership,Misc Supplies & Services Costs,30 Jun 2023,2324/05,SME,N,
0010059300,SUREFIX,900.00,Building Services,Repairs,07 Aug 2023,2324/05,SME,N,
0010059301,SUREFIX,"1,110.63",Building Services,Repairs,11 Aug 2023,2324/05,SME,N,
0010059304,JACKSON LIFT SERVICES LTD,525.00,Sheltered Accommodation,Plant Maintenance,03 Aug 2023,2324/05,LGE,N,
0010059309,MIXBROW LTD,"7,306.07",Council House Adaptions,Improvements,08 Aug 2023,2324/05,SME,N,
0010059310,MIXBROW LTD,"7,780.29",Council House Adaptions,Improvements,10 Aug 2023,2324/05,SME,N,
0010059311,LAW MORGAN LTD T/A MORGAN LAW,"4,024.30",Financial Servs,Agency Staff,10 Aug 2023,2324/05,SME,Y,50%
0010059312,LAW MORGAN LTD T/A MORGAN LAW,"3,025.00",ICT - Finance System,Agency Staff,10 Aug 2023,2324/05,SME,Y,50%
0010059313,LAW MORGAN LTD T/A MORGAN LAW,"1,840.00",Commissioning & Procurement,Agency Staff,10 Aug 2023,2324/05,SME,Y,50%
0010059314,FELLBRIDGE BUILDING SERVICES,"11,530.42",Major Imps,Repairs,10 Jul 2023,2324/05,SME,N,
0010059315,FELLBRIDGE BUILDING SERVICES,589.60,Building Services,Repairs,10 Aug 2023,2324/05,SME,N,
0010059316,FELLBRIDGE BUILDING SERVICES,781.25,Building Services,Repairs,10 Aug 2023,2324/05,SME,N,
0010059319,PRECISION RESOURCE GROUP LTD T/A PANORAM,"2,400.00",Building Servs Tech Staff,Agency Staff,26 Jul 2023,2324/05,LGE,Y,50%
0010059320,PRECISION RESOURCE GROUP LTD T/A PANORAM,"1,875.00",Building Servs Tech Staff,Agency Staff,26 Jul 2023,2324/05,LGE,Y,50%
0010059321,PRECISION RESOURCE GROUP LTD T/A PANORAM,"2,700.00",Building Servs Tech Staff,Agency Staff,02 Aug 2023,2324/05,LGE,Y,50%
0010059322,PRECISION RESOURCE GROUP LTD T/A PANORAM,"1,875.00",Building Servs Tech Staff,Agency Staff,02 Aug 2023,2324/05,LGE,Y,50%
0010059323,PRECISION RESOURCE GROUP LTD T/A PANORAM,"1,875.00",Building Servs Tech Staff,Agency Staff,09 Aug 2023,2324/05,LGE,Y,50%
0010059324,PRECISION RESOURCE GROUP LTD T/A PANORAM,"2,700.00",Building Servs Tech Staff,Agency Staff,09 Aug 2023,2324/05,LGE,Y,50%
0010059325,D W ADAMS LTD,557.00,Building Services,Repairs,10 Aug 2023,2324/05,SME,N,
0010059326,D W ADAMS LTD,557.00,Building Services,Repairs,10 Aug 2023,2324/05,SME,N,
0010059356,OPUS PEOPLE SOLUTIONS LTD,892.63,Homeless Prevention Fund,Agency Staff,13 Jul 2023,2324/05,SME,N,
0010059356,OPUS PEOPLE SOLUTIONS LTD,541.40,Devt Management - Apps,Agency Staff,13 Jul 2023,2324/05,SME,N,
0010059356,OPUS PEOPLE SOLUTIONS LTD,594.00,Climate Change and Sustainabil,Agency Staff,13 Jul 2023,2324/05,SME,N,
0010059356,OPUS PEOPLE SOLUTIONS LTD,826.73,Organisational Devt,Agency Staff,13 Jul 2023,2324/05,SME,N,
0010059356,OPUS PEOPLE SOLUTIONS LTD,352.13,Building Services,Agency Staff,13 Jul 2023,2324/05,SME,N,
0010059357,OPUS PEOPLE SOLUTIONS LTD,611.47,Homeless Prevention Fund,Agency Staff,20 Jul 2023,2324/05,SME,N,
0010059357,OPUS PEOPLE SOLUTIONS LTD,570.73,Devt Management - Apps,Agency Staff,20 Jul 2023,2324/05,SME,N,
0010059357,OPUS PEOPLE SOLUTIONS LTD,569.25,Climate Change and Sustainabil,Agency Staff,20 Jul 2023,2324/05,SME,N,
0010059357,OPUS PEOPLE SOLUTIONS LTD,"2,007.77",Organisational Devt,Agency Staff,20 Jul 2023,2324/05,SME,N,
0010059357,OPUS PEOPLE SOLUTIONS LTD,251.72,Health & Safety,Agency Staff,20 Jul 2023,2324/05,SME,N,
0010059357,OPUS PEOPLE SOLUTIONS LTD,140.85,Building Services,Agency Staff,20 Jul 2023,2324/05,SME,N,
0010059371,SUREFIX,"2,080.00",Building Services,Repairs,10 Aug 2023,2324/05,SME,N,
0010059376,STUTTON COMMUNITY ASSOCIATION,"10,260.00",CIL Funded REFCUS,Grants,15 Aug 2023,2324/05,SME,N,
0010059378,PRIVATE LANDLORD,715.00,Guaranteed Rent Scheme,Rent Payable,14 Aug 2023,2324/05,ST,N,
0010059380,PRIVATE LANDLORD,650.00,Guaranteed Rent Scheme,Rent Payable,14 Aug 2023,2324/05,ST,N,
0010059381,KBM HOUSE SHARE & PROPERTY MANAGEMENT LT,600.00,Guaranteed Rent Scheme,Rent Payable,14 Aug 2023,2324/05,SME,N,
0010059382,PRIVATE LANDLORD,650.00,Guaranteed Rent Scheme,Rent Payable,14 Aug 2023,2324/05,ST,N,
0010059383,PRIVATE LANDLORD,550.00,Guaranteed Rent Scheme,Rent Payable,14 Aug 2023,2324/05,ST,N,
0010059384,PRIVATE LANDLORD,675.00,Guaranteed Rent Scheme,Rent Payable,14 Aug 2023,2324/05,ST,N,
0010059385,PRIVATE LANDLORD,725.00,Guaranteed Rent Scheme,Rent Payable,14 Aug 2023,2324/05,ST,N,
0010059386,SHELTERED HOUSING RENTALS LTD,660.00,Guaranteed Rent Scheme,Rent Payable,14 Aug 2023,2324/05,SME,N,
0010059388,COEL PLUMBING & MECHANICAL SERVS LTD,"29,610.62",Borehamgate Shopping Centre,Property Enhancements & Imps,15 Jun 2023,2324/05,SME,N,
0010059389,COEL PLUMBING & MECHANICAL SERVS LTD,"25,418.18",Borehamgate Shopping Centre,Property Enhancements & Imps,19 Apr 2023,2324/05,SME,N,
0010059391,ANGLIA COMMERCIAL FLOORING LTD,859.29,Voids Maintenance,Repairs,15 Aug 2023,2324/05,SME,N,
0010059395,FELLBRIDGE BUILDING SERVICES,"9,769.55",Major Imps,Repairs,10 Aug 2023,2324/05,SME,N,
0010059396,STANNAH STAIRLIFTS LTD,"2,853.00",Council House Adaptions,Improvements,05 Jul 2023,2324/05,LGE,N,
0010059398,OCN CONTRACTS,"2,840.00",Temporary Accommodation,Furniture,11 Aug 2023,2324/05,SME,N,
0010059399,M & H CIVIL ENGINEERING LTD,"3,250.00",Building Services,Repairs,14 Aug 2023,2324/05,SME,N,
0010059400,AQUAM WATER SERVICES LTD,"1,300.00",Street & Major Road Cleansing,"Equipment, Tools & Materials",02 Aug 2023,2324/05,SME,N,
0010059401,HAYS SPECIALIST RECRUITMENT LTD,"3,540.00",Financial Servs,Agency Staff,14 Aug 2023,2324/05,LGE,Y,50%
0010059402,HAYS SPECIALIST RECRUITMENT LTD,"1,156.65",Pld Maint/Enhncmts-Corp Bldgs,Agency Staff,14 Aug 2023,2324/05,LGE,Y,50%
0010059403,SOCITM ADVISORY LTD,"14,550.00",ICT - Finance System,Contracted Services,14 Aug 2023,2324/05,SME,Y,50%
0010059410,SIGNIX LTD,"6,994.68",Smoke Alarms (Bbgh Standard),Major Contracts,15 Aug 2023,2324/05,SME,N,
0010059411,SAUNDERS BOSTON ARCHITECTS,750.00,"BRRP-Hamilton,Boreham&BelleVue",Prof & Consultancy Fees,31 Jul 2023,2324/05,SME,N,
0010059415,SUFFOLK COUNTY COUNCIL,810.00,Land Chgs,Contracted Services,09 Aug 2023,2324/05,LGE,N,
0010059417,SUFFOLK COUNTY COUNCIL,"1,503.58",General Rechargeable Works,Misc Supplies & Services Costs,09 Aug 2023,2324/05,LGE,N,
0010059418,D W ADAMS LTD,"1,947.00",Council House Adaptions,Improvements,15 Aug 2023,2324/05,SME,N,
0010059420,OPUS PEOPLE SOLUTIONS LTD,557.01,Homeless Prevention Fund,Agency Staff,27 Jul 2023,2324/05,SME,N,
0010059420,OPUS PEOPLE SOLUTIONS LTD,509.52,Devt Management - Apps,Agency Staff,27 Jul 2023,2324/05,SME,N,
0010059420,OPUS PEOPLE SOLUTIONS LTD,358.88,Climate Change and Sustainabil,Agency Staff,27 Jul 2023,2324/05,SME,N,
0010059420,OPUS PEOPLE SOLUTIONS LTD,"1,357.40",Organisational Devt,Agency Staff,27 Jul 2023,2324/05,SME,N,
0010059420,OPUS PEOPLE SOLUTIONS LTD,256.21,Health & Safety,Agency Staff,27 Jul 2023,2324/05,SME,N,
0010059420,OPUS PEOPLE SOLUTIONS LTD,624.44,Building Services,Agency Staff,27 Jul 2023,2324/05,SME,N,
0010059422,OPUS PEOPLE SOLUTIONS LTD,653.25,Homeless Prevention Fund,Agency Staff,03 Aug 2023,2324/05,SME,N,
0010059422,OPUS PEOPLE SOLUTIONS LTD,503.77,Devt Management - Apps,Agency Staff,03 Aug 2023,2324/05,SME,N,
0010059422,OPUS PEOPLE SOLUTIONS LTD,779.63,Climate Change and Sustainabil,Agency Staff,3 Aug 2023,2324/05,SME,N,
0010059422,OPUS PEOPLE SOLUTIONS LTD,"1,377.35",Organisational Devt,Agency Staff,3 Aug 2023,2324/05,SME,N,
0010059422,OPUS PEOPLE SOLUTIONS LTD,206.77,Health & Safety,Agency Staff,3 Aug 2023,2324/05,SME,N,
0010059422,OPUS PEOPLE SOLUTIONS LTD,563.40,Building Services,Agency Staff,3 Aug 2023,2324/05,SME,N,
0010059423,OPUS PEOPLE SOLUTIONS LTD,643.93,Homeless Prevention Fund,Agency Staff,10 Aug 2023,2324/05,SME,N,
0010059423,OPUS PEOPLE SOLUTIONS LTD,580.92,Devt Management - Apps,Agency Staff,10 Aug 2023,2324/05,SME,N,
0010059423,OPUS PEOPLE SOLUTIONS LTD,408.37,Climate Change and Sustainabil,Agency Staff,10 Aug 2023,2324/05,SME,N,
0010059423,OPUS PEOPLE SOLUTIONS LTD,885.78,Organisational Devt,Agency Staff,10 Aug 2023,2324/05,SME,N,
0010059423,OPUS PEOPLE SOLUTIONS LTD,197.78,Health & Safety,Agency Staff,10 Aug 2023,2324/05,SME,N,
0010059423,OPUS PEOPLE SOLUTIONS LTD,563.40,Building Services,Agency Staff,10 Aug 2023,2324/05,SME,N,
0010059425,BELL CONTAINER TRADING LTD,695.27,Public Realm TransitionProject,"Equipment, Tools & Materials",11 Aug 2023,2324/05,SME,N,
0010059431,UNIVERSITY OF ESSEX,"25,000.00",Economy & Business,Prof & Consultancy Fees,15 Aug 2023,2324/05,LGE,Y,50%
0010059433,REACH DIGITAL LTD,"2,500.00",Business Innovation Grants,Grants,15 Aug 2023,2324/05,SME,N,
0010059435,FLAGSHIP HOUSING GROUP LTD-RENT ACCOUNT,616.49,Homeless Prevention Fund,Misc Supplies & Services Costs,15 Aug 2023,2324/05,LGE,N,
0010059437,MONTHIND CLEAN LTD,720.21,Jnt Waste Contract,General Cleaning,15 Aug 2023,2324/05,LGE,Y,50%
0010059440,ANGLIA COMMERCIAL FLOORING LTD,600.33,Voids Maintenance,Repairs,15 Aug 2023,2324/05,SME,N,
0010059446,LAMBERT SMITH HAMPTON GROUP LTD,"5,400.00",Devt Policy & Local Plans,Prof & Consultancy Fees,16 Aug 2023,2324/05,LGE,Y,50%
0010059447,VERTAS GROUP LTD,"8,555.85",Central Postal Serv,Postage,16 Aug 2023,2324/05,SME,Y,50%
0010059449,PAY 360 LIMITED,"4,802.59",Bank Chgs,Bank Charges,16 Aug 2023,2324/05,LGE,N,
0010059450,GREENACRE RECRUITMENT LTD,"3,528.95",HRA General Management,Agency Staff,16 Aug 2023,2324/05,SME,Y,50%
0010059451,GREENACRE RECRUITMENT LTD,"2,550.00",Building Services,Agency Staff,16 Aug 2023,2324/05,SME,Y,50%
0010059452,GREENACRE RECRUITMENT LTD,"2,250.00",Building Services,Agency Staff,16 Aug 2023,2324/05,SME,Y,50%
0010059453,GREENACRE RECRUITMENT LTD,"2,000.00",Building Services Compliance,Agency Staff,16 Aug 2023,2324/05,SME,Y,50%
0010059454,GREENACRE RECRUITMENT LTD,"1,638.00",Building Services,Agency Staff,16 Aug 2023,2324/05,SME,Y,50%
0010059456,PRECISION RESOURCE GROUP LTD T/A PANORAM,"2,812.50",Building Services Compliance,Agency Staff,16 Aug 2023,2324/05,LGE,Y,50%
0010059458,CLARKE FENCING LTD,508.35,"Fences, Gates and Walls",Improvements,14 Aug 2023,2324/05,SME,N,
0010059459,NEWSQUEST MEDIA GROUP,700.40,Devt Management -Applications,Advertising&mkting (non-staff),16 Aug 2023,2324/05,LGE,N,
0010059465,CARE PLUS STAFFORDSHIRE LTD,"6,566.61",Sheltered General Mgmt,Community Alarm Costs,25 Feb 2023,2324/05,SME,N,
0010059465,CARE PLUS STAFFORDSHIRE LTD,58.37,Bldg Control Commercial Income,Telephone Costs,25 Feb 2023,2324/05,SME,N,
0010059465,CARE PLUS STAFFORDSHIRE LTD,58.37,Homelessness Private Sector,Telephone Costs,25 Feb 2023,2324/05,SME,N,
0010059465,CARE PLUS STAFFORDSHIRE LTD,58.37,Civil Protection & Emerg Plg,Telephone Costs,25 Feb 2023,2324/05,SME,N,
0010059465,CARE PLUS STAFFORDSHIRE LTD,496.15,Building Services,Telephone Costs,25 Feb 2023,2324/05,SME,N,
0010059465,CARE PLUS STAFFORDSHIRE LTD,58.37,Other Public Health Matters,Telephone Costs,25 Feb 2023,2324/05,SME,N,
0010059468,HAYS SPECIALIST RECRUITMENT LTD,"1,826.85",ICT - Finance System,Agency Staff,16 Aug 2023,2324/05,LGE,Y,50%
0010059472,LAW MORGAN LTD T/A MORGAN LAW,"2,760.00",Commissioning & Procurement,Agency Staff,17 Aug 2023,2324/05,SME,Y,50%
0010059473,LAW MORGAN LTD T/A MORGAN LAW,"3,025.00",ICT - Finance System,Agency Staff,17 Aug 2023,2324/05,SME,Y,50%
0010059474,LAW MORGAN LTD T/A MORGAN LAW,"4,024.30",Financial Servs,Agency Staff,17 Aug 2023,2324/05,SME,Y,50%
0010059475,BAILEYS HEATING COMPANY LTD,"2,264.51",Responsive maintenance,Repairs,16 Aug 2023,2324/05,SME,N,
0010059476,D W ADAMS LTD,"2,093.00",Council House Adaptions,Improvements,17 Aug 2023,2324/05,SME,N,
0010059477,SUFFOLK COUNTY COUNCIL,"72,374.04",Trade Waste,Trade Waste Disposal,16 Aug 2023,2324/05,LGE,N,
0010059478,THE BRIDGE PROJECT SUDBURY,"5,000.00",Grants & Contrbns,Grants,17 Aug 2023,2324/05,SME,N,
0010059484,MIXBROW LTD,"7,407.04",Council House Adaptions,Improvements,01 Aug 2023,2324/05,SME,N,
0010059485,MIXBROW LTD,"7,933.87",Council House Adaptions,Improvements,08 Aug 2023,2324/05,SME,N,
0010059486,KOMPAN LTD,"5,416.00",Play equip,Repairs,21 Jul 2023,2324/05,SME,N,
0010059489,L A C CLEANING CONTRACTORS LIMITED,995.50,Voids Maintenance,Repairs,18 Aug 2023,2324/05,SME,N,
0010059497,SIGNIX LTD,"2,804.68",Smoke Alarms (Bbgh Standard),Major Contracts,18 Aug 2023,2324/05,SME,N,
0010059511,MERCURY BUILDING SERVICES LTD,"4,486.00",Hadleigh Pool,Repairs,18 Aug 2023,2324/05,SME,N,
0010059517,PRIVATE LANDLORD,550.00,Guaranteed Rent Scheme,Rent Payable,21 Aug 2023,2324/05,ST,N,
0010059520,DAVID BURR LETTINGS,750.00,Guaranteed Rent Scheme,Rent Payable,21 Aug 2023,2324/05,SME,N,
0010059528,ROYAL MAIL,634.52,Elections,Postage,21 Aug 2023,2324/05,LGE,N,
0010059531,THE LAUNDRY GODDESS,"2,250.00",Business Innovation Grants,Grants,21 Aug 2023,2324/05,SME,N,
0010059535,FOURWAYS VEHICLE SOLUTIONS LTD,"1,092.00",Building Services,Lease Cars - Payment,10 May 2023,2324/05,SME,Y,50%
0010059536,FOURWAYS VEHICLE SOLUTIONS LTD,"1,092.00",Building Services,Lease Cars - Payment,07 Jun 2023,2324/05,SME,Y,50%
0010059539,BUILDING RESEARCH ESTABLISHMENT LTD,"112,005.00",Housing Standards,Prof & Consultancy Fees,08 Aug 2023,2324/05,LGE,Y,50%
0010059540,SUFFOLK MARKET EVENTS,937.50,RHSSF,Prof & Consultancy Fees,21 Aug 2023,2324/05,SME,N,
0010059541,HAYS SPECIALIST RECRUITMENT LTD,"3,540.00",Financial Servs,Agency Staff,21 Aug 2023,2324/05,LGE,Y,50%
0010059543,ARAN INSULATION LTD,"9,673.75",Insulation Imps,Repairs,22 Aug 2023,2324/05,SME,N,
0010059546,PRIVATE LANDLORD,595.00,Guaranteed Rent Scheme,Rent Payable,22 Aug 2023,2324/05,ST,N,
0010059547,PRIVATE LANDLORD,700.00,Guaranteed Rent Scheme,Rent Payable,22 Aug 2023,2324/05,ST,N,
0010059548,PRIVATE LANDLORD,650.00,Guaranteed Rent Scheme,Rent Payable,22 Aug 2023,2324/05,ST,N,
0010059550,PRIVATE LANDLORD,575.00,Guaranteed Rent Scheme,Rent Payable,22 Aug 2023,2324/05,ST,N,
0010059554,PIGHTLES DEVELOPMENTS LTD,925.00,Guaranteed Rent Scheme,Rent Payable,22 Aug 2023,2324/05,SME,N,
0010059555,SUFFOLK MARKET EVENTS,682.50,Hadleigh Market,Contracted Services,21 Aug 2023,2324/05,SME,N,
0010059558,REEFER PROPERTIES LTD,695.00,Guaranteed Rent Scheme,Rent Payable,22 Aug 2023,2324/05,SME,N,
0010059565,PRECISION RESOURCE GROUP LTD T/A PANORAM,"2,700.00",Building Servs Tech Staff,Agency Staff,16 Aug 2023,2324/05,LGE,Y,50%
0010059566,OPUS PEOPLE SOLUTIONS LTD,659.27,Homeless Prevention Fund,Agency Staff,17 Aug 2023,2324/05,SME,N,
0010059566,OPUS PEOPLE SOLUTIONS LTD,578.49,Devt Management - Apps,Agency Staff,17 Aug 2023,2324/05,SME,N,
0010059566,OPUS PEOPLE SOLUTIONS LTD,519.75,Climate Change and Sustainabil,Agency Staff,17 Aug 2023,2324/05,SME,N,
0010059566,OPUS PEOPLE SOLUTIONS LTD,"1,659.84",Organisational Devt,Agency Staff,17 Aug 2023,2324/05,SME,N,
0010059566,OPUS PEOPLE SOLUTIONS LTD,260.71,Health & Safety,Agency Staff,17 Aug 2023,2324/05,SME,N,
0010059566,OPUS PEOPLE SOLUTIONS LTD,708.95,Building Services,Agency Staff,17 Aug 2023,2324/05,SME,N,
0010059574,STANNAH STAIRLIFTS LTD,"6,884.00",Mand Disabled Facilities Grant,Grants,23 Aug 2023,2324/05,LGE,N,
0010059585,HADLEIGH UNITED REFORMED CHURCH,"2,875.00",Temporary Accommodation,Rent Payable,23 Aug 2023,2324/05,SME,N,
0010059587,PRECISION RESOURCE GROUP LTD T/A PANORAM,"2,812.50",Building Services Compliance,Agency Staff,23 Aug 2023,2324/05,LGE,Y,50%
0010059592,ABBEYCROFT LEISURE,"6,000.00",Healthy Behaviours Test Bed,Contributions & Donations,23 Aug 2023,2324/05,LGE,N,
0010059594,GREENACRE RECRUITMENT LTD,"4,007.60",HRA General Management,Agency Staff,23 Aug 2023,2324/05,SME,Y,50%
0010059595,GREENACRE RECRUITMENT LTD,"2,550.00",Building Services,Agency Staff,23 Aug 2023,2324/05,SME,Y,50%
0010059597,GREENACRE RECRUITMENT LTD,"1,476.00",Building Services,Agency Staff,23 Aug 2023,2324/05,SME,Y,50%
0010059598,GREENACRE RECRUITMENT LTD,"2,100.00",Building Services,Agency Staff,23 Aug 2023,2324/05,SME,Y,50%
0010059600,HADLEIGH UNITED REFORMED CHURCH,"2,875.00",Temporary Accommodation,Rent Payable,23 Aug 2023,2324/05,SME,N,
0010059602,HAYS SPECIALIST RECRUITMENT LTD,"1,461.48",ICT - Finance System,Agency Staff,22 Aug 2023,2324/05,LGE,Y,50%
0010059608,LICENCE CHECK LTD,"1,500.00",Health & Safety,Contracted Services,24 Aug 2023,2324/05,SME,Y,50%
0010059609,NORTHUMBRIAN WATER LTD,655.50,Water Sampling,Sampling & Analysis,22 Aug 2023,2324/05,LGE,N,
0010059610,LAW MORGAN LTD T/A MORGAN LAW,"3,025.00",ICT - Finance System,Agency Staff,24 Aug 2023,2324/05,SME,Y,50%
0010059611,LAW MORGAN LTD T/A MORGAN LAW,"4,024.30",Financial Servs,Agency Staff,24 Aug 2023,2324/05,SME,Y,50%
0010059612,LAW MORGAN LTD T/A MORGAN LAW,"2,300.00",Commissioning & Procurement,Agency Staff,24 Aug 2023,2324/05,SME,Y,50%
0010059614,NEWSQUEST MEDIA GROUP,741.60,Devt Management -Applications,Advertising&mkting (non-staff),23 Aug 2023,2324/05,LGE,N,
0010059616,PRECISION RESOURCE GROUP LTD T/A PANORAM,"1,875.00",Building Servs Tech Staff,Agency Staff,16 Aug 2023,2324/05,LGE,Y,50%
0010059617,PRECISION RESOURCE GROUP LTD T/A PANORAM,"2,700.00",Building Servs Tech Staff,Agency Staff,23 Aug 2023,2324/05,LGE,Y,50%
0010059626,OPUS PEOPLE SOLUTIONS LTD,455.02,Homeless Prevention Fund,Agency Staff,24 Aug 2023,2324/05,SME,N,
0010059626,OPUS PEOPLE SOLUTIONS LTD,489.07,Devt Management - Apps,Agency Staff,24 Aug 2023,2324/05,SME,N,
0010059626,OPUS PEOPLE SOLUTIONS LTD,321.75,Climate Change and Sustainabil,Agency Staff,24 Aug 2023,2324/05,SME,N,
0010059626,OPUS PEOPLE SOLUTIONS LTD,"1,486.03",Organisational Devt,Agency Staff,24 Aug 2023,2324/05,SME,N,
0010059626,OPUS PEOPLE SOLUTIONS LTD,272.10,Health & Safety,Agency Staff,24 Aug 2023,2324/05,SME,N,
0010059626,OPUS PEOPLE SOLUTIONS LTD,643.21,Building Services,Agency Staff,24 Aug 2023,2324/05,SME,N,
0010059632,HAYES DIGGINS BUILDERS,790.00,Guaranteed Rent Scheme,Misc Supplies & Services Costs,14 Aug 2023,2324/05,SME,N,
0010059638,SUREFIX,900.00,Building Services,Repairs,24 Aug 2023,2324/05,SME,N,
0010059641,SUREFIX,950.00,Window & Door Rplcmts,Repairs,22 Aug 2023,2324/05,SME,N,
0010059643,THE KINETIC SCIENCE FOUNDATION,"1,200.00",HAF Family Fun Days,Contributions & Donations,14 Aug 2023,2324/05,SME,N,
0010059644,SUFFOLK COUNTY COUNCIL,"32,324.00",AONB Contributions,Contributions & Donations,24 Aug 2023,2324/05,LGE,N,
0010059646,AE WHITE SURFACING,"3,975.00",Public Realm TransitionProject,"Equipment, Tools & Materials",20 Jun 2023,2324/05,SME,N,
0010059659,L A C CLEANING CONTRACTORS LIMITED,691.77,Sheltered Accommodation,Contracted Services,28 Aug 2023,2324/05,SME,N,
0010059669,PRIVATE LANDLORD,750.00,Guaranteed Rent Scheme,Rent Payable,29 Aug 2023,2324/05,ST,N,
0010059672,PRIVATE LANDLORD,575.00,Guaranteed Rent Scheme,Rent Payable,29 Aug 2023,2324/05,ST,N,
0010059673,SWITCH PROPERTY SERVICES LTD,"1,025.00",Guaranteed Rent Scheme,Rent Payable,29 Aug 2023,2324/05,SME,N,
0010059674,BYCHOICE LTD,950.00,Guaranteed Rent Scheme,Rent Payable,29 Aug 2023,2324/05,SME,N,
0010059675,PRIVATE LANDLORD,515.00,Guaranteed Rent Scheme,Rent Payable,29 Aug 2023,2324/05,ST,N,
0010059676,HAMILTON SMITH LETTINGS,670.00,Guaranteed Rent Scheme,Rent Payable,29 Aug 2023,2324/05,SME,N,
0010059677,FELGAINS CARE CENTRE,"1,317.00",Mand Disabled Facilities Grant,Grants,29 Aug 2023,2324/05,SME,N,
0010059679,4PRINCIPLES CONSTRUCTION LTD,"7,499.10",Mand Disabled Facilities Grant,Grants,29 Aug 2023,2324/05,SME,N,
0010059680,NEIL ANDREW OFFICE SOLUTIONS LTD,"15,951.00",Pld Maint/Enhncmts-Corp Bldgs,Furniture,29 Aug 2023,2324/05,SME,Y,50%
0010059682,PRIVATE LANDLORD,575.00,Guaranteed Rent Scheme,Rent Payable,29 Aug 2023,2324/05,ST,N,
0010059684,WILES PROPERTY,875.00,Guaranteed Rent Scheme,Rent Payable,29 Aug 2023,2324/05,SME,N,
0010059685,GB ADAPTIONS LTD,"6,926.00",Mand Disabled Facilities Grant,Grants,29 Aug 2023,2324/05,SME,N,
0020028592,AARON SERVICES LTD,"28,228.91",Current Liabilities,Cert IBS Creditors Holding ac,19 Jul 2023,2324/05,SME,N,
0020028594,AARON SERVICES LTD,"32,799.16",Current Liabilities,Cert IBS Creditors Holding ac,26 Jul 2023,2324/05,SME,N,
0020028595,AARON SERVICES LTD,"30,477.26",Current Liabilities,Cert IBS Creditors Holding ac,31 Jul 2023,2324/05,SME,N,
0020028597,EDF ENERGY,518.10,Belle Vue House,Electricity,15 Jul 2023,2324/05,LGE,N,
0020028597,EDF ENERGY,"1,646.75",C Parks General,Electricity,15 Jul 2023,2324/05,LGE,N,
0020028597,EDF ENERGY,26.22,Calais St Depot,Electricity,15 Jul 2023,2324/05,LGE,N,
0020028597,EDF ENERGY,"1,634.48",Climate Change and Sustainabil,Electricity,15 Jul 2023,2324/05,LGE,N,
0020028597,EDF ENERGY,414.18,Community Safety-CCTV,Electricity,15 Jul 2023,2324/05,LGE,N,
0020028597,EDF ENERGY,72.00,Hadleigh Market,Electricity,15 Jul 2023,2324/05,LGE,N,
0020028597,EDF ENERGY,"10,073.51",Hadleigh Pool,Electricity,15 Jul 2023,2324/05,LGE,N,
0020028597,EDF ENERGY,25.31,Headquarters General,Electricity,15 Jul 2023,2324/05,LGE,N,
0020028597,EDF ENERGY,"2,024.15",HQ Energy,Electricity,15 Jul 2023,2324/05,LGE,N,
0020028597,EDF ENERGY,"25,267.80",Kingfisher Leisure Centre,Electricity,15 Jul 2023,2324/05,LGE,N,
0020028597,EDF ENERGY,73.09,Navigation House,Electricity,15 Jul 2023,2324/05,LGE,N,
0020028597,EDF ENERGY,"1,062.74",Public Conveniences,Electricity,15 Jul 2023,2324/05,LGE,N,
0020028597,EDF ENERGY,"1,251.08",Sewage Treatment Works,Electricity,15 Jul 2023,2324/05,LGE,N,
0020028597,EDF ENERGY,"27,110.80",Sheltered Accommodation,Electricity,15 Jul 2023,2324/05,LGE,N,
0020028597,EDF ENERGY,723.94,SP Comm Alarms (Non-SH),Electricity,15 Jul 2023,2324/05,LGE,N,
0020028597,EDF ENERGY,"1,727.20",Temporary Accommodation,Electricity,15 Jul 2023,2324/05,LGE,N,
0020028597,EDF ENERGY,"19,078.10",Tenancy Services,Electricity,15 Jul 2023,2324/05,LGE,N,
0020028597,EDF ENERGY,"1,774.24",Wenham Depot,Electricity,15 Jul 2023,2324/05,LGE,Y,50%
0020028598,SEFE ENERGY LIMITED,101.83,Belle Vue House,Gas,19 Jul 2023,2324/05,LGE,N,
0020028598,SEFE ENERGY LIMITED,61.82,HQ Energy,Gas,19 Jul 2023,2324/05,LGE,N,
0020028598,SEFE ENERGY LIMITED,"1,937.59",Sheltered Accommodation,Gas,19 Jul 2023,2324/05,LGE,N,
0020028598,SEFE ENERGY LIMITED,125.06,Temporary Accommodation,Gas,19 Jul 2023,2324/05,LGE,N,
0020028605,FINCH FUTURES LTD,750.00,Homes for Ukraine,Misc Supplies & Services Costs,10 Aug 2023,2324/05,SME,N,
0020028609,AARON SERVICES LTD,"31,357.98",Current Liabilities,Cert IBS Creditors Holding ac,09 Aug 2023,2324/05,SME,N,
0020028610,GPC BARCLAYS,"7,606.53",Current Assets,Barclaycard Control,16 Aug 2023,2324/05,LGE,Y,6%
0020028611,EDF ENERGY,583.57,C Parks General,Electricity,15 Aug 2023,2324/05,LGE,N,
0020028611,EDF ENERGY,8.99,Calais St Depot,Electricity,15 Aug 2023,2324/05,LGE,N,
0020028611,EDF ENERGY,"37,368.40",Chilton Depot,Electricity,15 Aug 2023,2324/05,LGE,Y,50%
0020028611,EDF ENERGY,"1,104.94",Climate Change and Sustainabil,Electricity,15 Aug 2023,2324/05,LGE,N,
0020028611,EDF ENERGY,166.06,Community Safety-CCTV,Electricity,15 Aug 2023,2324/05,LGE,N,
0020028611,EDF ENERGY,26.06,Hadleigh Market,Electricity,15 Aug 2023,2324/05,LGE,N,
0020028611,EDF ENERGY,"5,869.78",Hadleigh Pool,Electricity,15 Aug 2023,2324/05,LGE,N,
0020028611,EDF ENERGY,12.86,Headquarters General,Electricity,15 Aug 2023,2324/05,LGE,N,
0020028611,EDF ENERGY,413.45,HQ Energy,Electricity,15 Aug 2023,2324/05,LGE,N,
0020028611,EDF ENERGY,"21,875.65",Kingfisher Leisure Centre,Electricity,15 Aug 2023,2324/05,LGE,N,
0020028611,EDF ENERGY,23.92,Navigation House,Electricity,15 Aug 2023,2324/05,LGE,N,
0020028611,EDF ENERGY,431.34,Public Conveniences,Electricity,15 Aug 2023,2324/05,LGE,N,
0020028611,EDF ENERGY,496.09,Sewage Treatment Works,Electricity,15 Aug 2023,2324/05,LGE,N,
0020028611,EDF ENERGY,"7,552.25",Sheltered Accommodation,Electricity,15 Aug 2023,2324/05,LGE,N,
0020028611,EDF ENERGY,347.37,SP Comm Alarms (Non-SH),Electricity,15 Aug 2023,2324/05,LGE,N,
0020028611,EDF ENERGY,"3,161.04",Temporary Accommodation,Electricity,15 Aug 2023,2324/05,LGE,N,
0020028611,EDF ENERGY,"7,259.12",Tenancy Services,Electricity,15 Aug 2023,2324/05,LGE,N,
0020028611,EDF ENERGY,931.99,Wenham Depot,Electricity,15 Aug 2023,2324/05,LGE,Y,50%
0020028612,IMSERV EUROPE LTD,66.33,Belle Vue House,Electricity,11 Aug 2023,2324/05,LGE,N,
0020028612,IMSERV EUROPE LTD,279.11,Climate Change and Sustainabil,Electricity,11 Aug 2023,2324/05,LGE,N,
0020028612,IMSERV EUROPE LTD,22.11,Headquarters General,Electricity,11 Aug 2023,2324/05,LGE,N,
0020028612,IMSERV EUROPE LTD,88.44,Public Conveniences,Electricity,11 Aug 2023,2324/05,LGE,N,
0020028612,IMSERV EUROPE LTD,22.11,Sewage Treatment Works,Electricity,11 Aug 2023,2324/05,LGE,N,
0020028612,IMSERV EUROPE LTD,"1,395.55",Sheltered Accommodation,Electricity,11 Aug 2023,2324/05,LGE,N,
0020028612,IMSERV EUROPE LTD,22.11,SP Comm Alarms (Non-SH),Electricity,11 Aug 2023,2324/05,LGE,N,
0020028612,IMSERV EUROPE LTD,22.11,Temporary Accommodation,Electricity,11 Aug 2023,2324/05,LGE,N,
0020028612,IMSERV EUROPE LTD,"1,211.28",Tenancy Services,Electricity,11 Aug 2023,2324/05,LGE,N,
0020028613,ANGLIAN WATER BUS (NAT) LTD T/A WAVE,16.61,Belle Vue House,Water Rates - Metered,12 Aug 2023,2324/05,LGE,N,
0020028613,ANGLIAN WATER BUS (NAT) LTD T/A WAVE,122.17,C Parks General,Water Rates - Metered,12 Aug 2023,2324/05,LGE,N,
0020028613,ANGLIAN WATER BUS (NAT) LTD T/A WAVE,588.04,Chilton Depot,Water Rates - Metered,12 Aug 2023,2324/05,LGE,N,
0020028613,ANGLIAN WATER BUS (NAT) LTD T/A WAVE,5.90,Friars Meadow Sudb,Water Rates - Metered,12 Aug 2023,2324/05,LGE,N,
0020028613,ANGLIAN WATER BUS (NAT) LTD T/A WAVE,50.17,General Rechargeable Works,Misc Supplies & Services Costs,12 Aug 2023,2324/05,LGE,N,
0020028613,ANGLIAN WATER BUS (NAT) LTD T/A WAVE,83.85,HQ Energy,Water Rates - Metered,12 Aug 2023,2324/05,LGE,N,
0020028613,ANGLIAN WATER BUS (NAT) LTD T/A WAVE,328.47,Public Conveniences,Water Rates - Metered,12 Aug 2023,2324/05,LGE,N,
0020028613,ANGLIAN WATER BUS (NAT) LTD T/A WAVE,"2,560.02",Sheltered Accommodation,Water Rates - Metered,12 Aug 2023,2324/05,LGE,N,
0020028613,ANGLIAN WATER BUS (NAT) LTD T/A WAVE,147.48,Temporary Accommodation,Water Rates - Metered,12 Aug 2023,2324/05,LGE,N,
0020028613,ANGLIAN WATER BUS (NAT) LTD T/A WAVE,104.08,Tenancy Services,Water Rates - Metered,12 Aug 2023,2324/05,LGE,N,
0020028615,AARON SERVICES LTD,"19,341.25",Current Liabilities,Cert IBS Creditors Holding ac,23 Aug 2023,2324/05,SME,N,
0020028616,AARON SERVICES LTD,"10,152.38",Current Liabilities,Cert IBS Creditors Holding ac,23 Aug 2023,2324/05,SME,N,
0020028617,IMSERV EUROPE LTD,105.55,SP Comm Alarms (Non-SH),Electricity,17 Aug 2023,2324/05,LGE,N,
0020028617,IMSERV EUROPE LTD,633.30,Sheltered Accommodation,Electricity,17 Aug 2023,2324/05,LGE,N,
0020028617,IMSERV EUROPE LTD,105.55,Temporary Accommodation,Electricity,17 Aug 2023,2324/05,LGE,N,
0020028617,IMSERV EUROPE LTD,"4,960.85",Tenancy Services,Electricity,17 Aug 2023,2324/05,LGE,N,
0020028617,IMSERV EUROPE LTD,422.20,Public Conveniences,Electricity,17 Aug 2023,2324/05,LGE,N,
0020028617,IMSERV EUROPE LTD,105.55,Sewage Treatment Works,Electricity,17 Aug 2023,2324/05,LGE,N,
0020028617,IMSERV EUROPE LTD,105.55,Headquarters General,Electricity,17 Aug 2023,2324/05,LGE,N,
0020028617,IMSERV EUROPE LTD,316.65,Belle Vue House,Electricity,17 Aug 2023,2324/05,LGE,N,
0020028617,IMSERV EUROPE LTD,105.55,Climate Change and Sustainabil,Electricity,17 Aug 2023,2324/05,LGE,N,
0020028617,IMSERV EUROPE LTD,182.00,HQ Energy,Electricity,17 Aug 2023,2324/05,LGE,N,
0020028617,IMSERV EUROPE LTD,182.00,Wenham Depot,Electricity,17 Aug 2023,2324/05,LGE,Y,50%
0000000319,4PRINCIPLES CONSTRUCTION LTD,"-1,442.44",Mand Disabled Facilities Grant,Grants,03 Aug 2023,2324/05,SME,N,
0010058449,ORWELL REMOVALS & STORAGE LTD,"1,050.00",Homeless Prevention Fund,Removal Expenses,11 Jul 2023,2324/06,SME,N,
0010058671,WADDINGTON BROWN LTD,"1,105.28",Organisational Devt,Agency Staff,17 Jul 2023,2324/06,SME,Y,50%
0010058720,ECOSYSTEMS TREE & GROUNDS CARE,600.00,Tenancy Services,Contracted Services,21 Jul 2023,2324/06,SME,N,
0010058814,WADDINGTON BROWN LTD,891.76,Organisational Devt,Agency Staff,24 Jul 2023,2324/06,SME,Y,50%
0010058904,WHYBROW PROPERTY SOLUTIONS LTD,"3,960.17",Building Services,Repairs,28 Jul 2023,2324/06,SME,N,
0010058957,WADDINGTON BROWN LTD,"1,174.36",Organisational Devt,Agency Staff,31 Jul 2023,2324/06,SME,Y,50%
0010058960,FAITHORN FARRELL TIMMS,"9,680.00",Building Servs Tech Staff,Contracted Services,31 Jul 2023,2324/06,SME,Y,50%
0010058968,THERMATECH,750.00,Temporary Accommodation,Fire Prevention,30 Jul 2023,2324/06,SME,N,
0010058989,ENER-G SWITCH2 LTD,"1,016.70",Building Services,Repairs,31 Jul 2023,2324/06,SME,N,
0010059003,LOFTY HEIGHTS LTD,"6,620.00",Homeless Prevention Fund,Misc Supplies & Services Costs,31 Jul 2023,2324/06,SME,N,
0010059034,PUBLIC SEWER SERVICES,"4,579.10",Unadopted Drains & Sewers,Improvements,31 Jul 2023,2324/06,SME,N,
0010059066,FELLBRIDGE BUILDING SERVICES,"5,321.25",Building Services,Repairs,03 Aug 2023,2324/06,SME,N,
0010059203,FELLBRIDGE BUILDING SERVICES,"5,301.35",Building Services,Repairs,07 Aug 2023,2324/06,SME,N,
0010059211,WADDINGTON BROWN LTD,"1,557.44",Organisational Devt,Agency Staff,07 Aug 2023,2324/06,SME,Y,50%
0010059263,BSI,652.00,Bldg Regs Chargeable Serv,Prof & Consultancy Fees,01 Aug 2023,2324/06,LGE,N,
0010059277,M & H CIVIL ENGINEERING LTD,"1,430.21",Building Services,Repairs,07 Aug 2023,2324/06,SME,N,
0010059327,FAITHORN FARRELL TIMMS,720.00,Building Servs Tech Staff,Contracted Services,10 Aug 2023,2324/06,SME,N,
0010059333,EDMUNDSON ELECTRICAL LTD (IPSWICH),"1,010.57",Building Services,"Equipment, Tools & Materials",09 Aug 2023,2324/06,LGE,N,
0010059353,WHYBROW PROPERTY SOLUTIONS LTD,"20,000.00",Major Imps,Repairs,11 Aug 2023,2324/06,SME,N,
0010059392,D W ADAMS LTD,"4,575.00",Insulation Imps,Repairs,14 Aug 2023,2324/06,SME,N,
0010059426,THERMATECH,350.00,Other HRA Temp Accommodation,Fire Prevention,15 Aug 2023,2324/06,SME,N,
0010059426,THERMATECH,"4,000.00",Sheltered Accommodation,Fire Prevention,15 Aug 2023,2324/06,SME,N,
0010059426,THERMATECH,350.00,Temporary Accommodation,Fire Prevention,15 Aug 2023,2324/06,SME,N,
0010059493,TRANSDEC TRANSPORT LTD,855.00,Regen Fund - HQ Sites,Removal Expenses,04 Apr 2023,2324/06,SME,Y,50%
0010059509,SUREFIX,"3,840.00",Window & Door Rplcmts,Repairs,15 Aug 2023,2324/06,SME,N,
0010059510,SUREFIX,"3,840.00",Window & Door Rplcmts,Repairs,11 Aug 2023,2324/06,SME,N,
0010059513,WHYBROW PROPERTY SOLUTIONS LTD,"15,099.74",Major Imps,Repairs,17 Aug 2023,2324/06,SME,N,
0010059514,WHYBROW PROPERTY SOLUTIONS LTD,"7,000.00",Conversions & Adaptations,Improvements,18 Aug 2023,2324/06,SME,N,
0010059515,WHYBROW PROPERTY SOLUTIONS LTD,"7,406.76",Council House Adaptions,Improvements,17 Aug 2023,2324/06,SME,N,
0010059521,WHYBROW PROPERTY SOLUTIONS LTD,"7,052.66",Voids Maintenance,Repairs,18 Aug 2023,2324/06,SME,N,
0010059524,WHYBROW PROPERTY SOLUTIONS LTD,"2,687.67",Building Services,Repairs,01 Sep 2023,2324/06,SME,N,
0010059534,MIXBROW LTD,"7,383.44",Council House Adaptions,Improvements,17 Aug 2023,2324/06,SME,N,
0010059542,PRO-FLAT SPECIALIST SERVICES LTD,900.00,Building Services,Repairs,31 Jul 2023,2324/06,SME,N,
0010059552,WHYBROW PROPERTY SOLUTIONS LTD,"2,812.37",Major Imps,Repairs,18 Aug 2023,2324/06,SME,N,
0010059563,WHYBROW PROPERTY SOLUTIONS LTD,"11,229.91",Major Imps,Repairs,22 Aug 2023,2324/06,SME,N,
0010059564,WHYBROW PROPERTY SOLUTIONS LTD,"7,454.00",Conversions & Adaptations,Improvements,22 Aug 2023,2324/06,SME,N,
0010059568,EDMUNDSON ELECTRICAL LTD (IPSWICH),928.06,Building Services,"Equipment, Tools & Materials",21 Aug 2023,2324/06,LGE,N,
0010059577,WADDINGTON BROWN LTD,"1,288.51",Organisational Devt,Agency Staff,21 Aug 2023,2324/06,SME,Y,50%
0010059618,MERCURY BUILDING SERVICES LTD,"7,433.00",Pld Maint/Enhncmts-Kingfisher,Improvements,24 Aug 2023,2324/06,SME,N,
0010059621,THERMATECH,"2,800.00",Sheltered Accommodation,Fire Prevention,24 Aug 2023,2324/06,SME,N,
0010059621,THERMATECH,"1,825.00",Other HRA Temp Accommodation,Fire Prevention,24 Aug 2023,2324/06,SME,N,
0010059627,D W ADAMS LTD,557.00,Building Services,Repairs,25 Aug 2023,2324/06,SME,N,
0010059630,GREENACRE RECRUITMENT LTD,"1,695.00",HRA General Management,Agency Staff,07 Aug 2023,2324/06,SME,Y,50%
0010059645,NORTHUMBRIAN WATER LTD,40.66,Building Services,Legionella Testing,25 Aug 2023,2324/06,LGE,N,
0010059645,NORTHUMBRIAN WATER LTD,25.03,Chilton Depot,Legionella Testing,25 Aug 2023,2324/06,LGE,Y,50%
0010059645,NORTHUMBRIAN WATER LTD,360.06,Public Conveniences,Legionella Testing,25 Aug 2023,2324/06,LGE,N,
0010059645,NORTHUMBRIAN WATER LTD,134.51,Sheltered Accommodation,Legionella Testing,25 Aug 2023,2324/06,LGE,N,
0010059645,NORTHUMBRIAN WATER LTD,40.66,Sheltered Accommodation,Fire Prevention,25 Aug 2023,2324/06,LGE,N,
0010059645,NORTHUMBRIAN WATER LTD,180.04,Temporary Accommodation,Legionella Testing,25 Aug 2023,2324/06,LGE,N,
0010059645,NORTHUMBRIAN WATER LTD,34.41,Wenham Depot,Legionella Testing,25 Aug 2023,2324/06,LGE,Y,50%
0010059655,L A C CLEANING CONTRACTORS LIMITED,"1,276.50",Voids Maintenance,Repairs,29 Aug 2023,2324/06,SME,N,
0010059656,L A C CLEANING CONTRACTORS LIMITED,655.50,Voids Maintenance,Repairs,29 Aug 2023,2324/06,SME,N,
0010059658,L A C CLEANING CONTRACTORS LIMITED,936.00,Wenham Depot TDP,General Cleaning,28 Aug 2023,2324/06,SME,Y,50%
0010059665,KEN GRIME & SON LTD,"1,311.31",Voids Maintenance,Repairs,29 Aug 2023,2324/06,SME,N,
0010059668,COLLINS SKIP HIRE,550.00,Building Services,Waste Disposal,29 Aug 2023,2324/06,SME,Y,50%
0010059670,D W ADAMS LTD,557.00,Building Services,Repairs,19 Jul 2023,2324/06,SME,N,
0010059671,PUBLIC SEWER SERVICES,851.15,Unadopted Drains & Sewers,Improvements,01 Aug 2023,2324/06,SME,N,
0010059681,JPK TRADE SUPPLIES LTD,"1,400.00",Street & Major Road Cleansing,"Equipment, Tools & Materials",24 Aug 2023,2324/06,SME,N,
0010059689,HAYS SPECIALIST RECRUITMENT LTD,"3,540.00",Financial Servs,Agency Staff,29 Aug 2023,2324/06,LGE,Y,50%
0010059690,WADDINGTON BROWN LTD,968.09,Organisational Devt,Agency Staff,29 Aug 2023,2324/06,SME,Y,50%
0010059693,IDOX SOFTWARE LTD,"20,195.91",ICT,Line of Business Applications,30 Aug 2023,2324/06,SME,Y,50%
0010059694,TPAS LTD,"1,885.00",Regulatory & Support Services,Subscriptions,01 Feb 2023,2324/06,SME,Y,50%
0010059695,PRO-FLAT SPECIALIST SERVICES LTD,"14,375.00",Building Services,Repairs,30 Aug 2023,2324/06,SME,N,
0010059696,ARAN INSULATION LTD,950.00,Insulation Imps,Repairs,30 Aug 2023,2324/06,SME,N,
0010059697,ARAN INSULATION LTD,800.00,Dampness & Condensation,Repairs,30 Aug 2023,2324/06,SME,N,
0010059698,ABBEYCROFT LEISURE,"1,915.50",Holiday Activity Funding,"Equipment, Tools & Materials",30 Aug 2023,2324/06,LGE,N,
0010059699,PRECISION RESOURCE GROUP LTD T/A PANORAM,"2,812.50",Building Services Compliance,Agency Staff,30 Aug 2023,2324/06,LGE,Y,50%
0010059702,GREENACRE RECRUITMENT LTD,"3,000.00",Building Services,Agency Staff,30 Aug 2023,2324/06,SME,Y,50%
0010059703,GREENACRE RECRUITMENT LTD,"3,425.00",HRA General Management,Agency Staff,30 Aug 2023,2324/06,SME,Y,50%
0010059704,GREENACRE RECRUITMENT LTD,"2,000.00",Building Services Compliance,Agency Staff,30 Aug 2023,2324/06,SME,Y,50%
0010059705,GREENACRE RECRUITMENT LTD,"1,422.00",Building Services,Agency Staff,30 Aug 2023,2324/06,SME,Y,50%
0010059707,HAYS SPECIALIST RECRUITMENT LTD,"1,826.85",ICT - Finance System,Agency Staff,30 Aug 2023,2324/06,LGE,Y,50%
0010059708,CLARKE FENCING LTD,986.45,Neighbourhood Services,Grounds & Site Maintenance,31 Aug 2023,2324/06,SME,N,
0010059711,WILKS HEAD AND EVE LLP,"1,950.00",C Parks General,NNDR Payable,29 Aug 2023,2324/06,SME,N,
0010059713,WILKS HEAD AND EVE LLP,825.00,C Parks General,NNDR Payable,29 Aug 2023,2324/06,SME,N,
0010059714,LAW MORGAN LTD T/A MORGAN LAW,"3,025.00",ICT - Finance System,Agency Staff,31 Aug 2023,2324/06,SME,Y,50%
0010059715,LAW MORGAN LTD T/A MORGAN LAW,"2,300.00",Commissioning & Procurement,Agency Staff,31 Aug 2023,2324/06,SME,Y,50%
0010059716,LAW MORGAN LTD T/A MORGAN LAW,"4,024.30",Financial Servs,Agency Staff,31 Aug 2023,2324/06,SME,Y,50%
0010059717,4PRINCIPLES CONSTRUCTION LTD,"3,867.74",Mand Disabled Facilities Grant,Grants,31 Aug 2023,2324/06,SME,N,
0010059720,NEWSQUEST MEDIA GROUP,700.40,Devt Management -Applications,Advertising&mkting (non-staff),20 Sep 2023,2324/06,LGE,N,
0010059726,SERCO LTD,122.85,Open Spaces,Plant & Vehicle - Other costs,31 Aug 2023,2324/06,LGE,N,
0010059726,SERCO LTD,"3,149.43",Street & Major Road Cleansing,Plant & Vehicle - Other costs,31 Aug 2023,2324/06,LGE,N,
0010059730,THERMATECH,"2,400.00",Sheltered Accommodation,Fire Prevention,30 Aug 2023,2324/06,SME,N,
0010059732,STEVEN JAMES ALLEN LTD,"5,000.00",Building Services,Repairs,31 Aug 2023,2324/06,SME,N,
0010059734,AINGER HOLBROWS LTD,900.00,Taxi & Private Hire Licensing,Contracted Services,01 Sep 2023,2324/06,SME,N,
0010059739,COLLINS SKIP HIRE,600.00,Building Services,Waste Disposal,31 Aug 2023,2324/06,SME,Y,50%
0010059740,PRECISION RESOURCE GROUP LTD T/A PANORAM,"2,700.00",Building Servs Tech Staff,Agency Staff,30 Aug 2023,2324/06,LGE,Y,50%
0010059742,PRECISION RESOURCE GROUP LTD T/A PANORAM,"1,875.00",Building Servs Tech Staff,Agency Staff,30 Aug 2023,2324/06,LGE,Y,50%
0010059743,MIXBROW LTD,"7,487.69",Council House Adaptions,Improvements,30 Aug 2023,2324/06,SME,N,
0010059758,FAITHORN FARRELL TIMMS,"8,500.00",Building Services,Repairs,31 Aug 2023,2324/06,SME,Y,50%
0010059760,COUNTRYSTYLE RECYCLING LTD,"4,335.68",Bring Sites,Contracted Services,31 Aug 2023,2324/06,SME,N,
0010059761,TIAA LTD,"5,000.00",Internal Audit,Contracted Services,01 Sep 2023,2324/06,SME,Y,50%
0010059762,SOCIALSIGNIN LTD TRADING AS ORLO,"4,620.00",Communications,Subscriptions,22 Aug 2023,2324/06,SME,Y,50%
0010059773,EDMUNDSON ELECTRICAL LTD (IPSWICH),809.23,Building Services,"Equipment, Tools & Materials",31 Aug 2023,2324/06,LGE,N,
0010059777,WEST SUFFOLK COUNCIL,"2,000.00",Strategic Housing,Specialist Legal Expenses,29 Aug 2023,2324/06,LGE,Y,50%
0010059779,SUREFIX,"1,025.00",Building Services,Repairs,29 Aug 2023,2324/06,SME,N,
0010059782,SUREFIX,"1,025.00",Window & Door Rplcmts,Repairs,29 Aug 2023,2324/06,SME,N,
0010059783,SUREFIX,"1,025.00",Window & Door Rplcmts,Repairs,29 Aug 2023,2324/06,SME,N,
0010059784,SUREFIX,"1,025.00",Building Services,Repairs,30 Aug 2023,2324/06,SME,N,
0010059785,SUREFIX,566.96,Voids Maintenance,Repairs,30 Aug 2023,2324/06,SME,N,
0010059787,PRIVATE LANDLORD,575.00,Guaranteed Rent Scheme,Rent Payable,30 Apr 2023,2324/06,ST,N,
0010059788,SUREFIX,"1,025.00",Building Services,Repairs,21 Aug 2023,2324/06,SME,N,
0010059792,PRIVATE LANDLORD,786.50,Guaranteed Rent Scheme,Rent Payable,04 Sep 2023,2324/06,ST,N,
0010059793,COPDOCK & WASHBROOK PARISH COUNCIL,"15,000.00",Comm Devt Grants,Grants,31 Aug 2023,2324/06,SME,N,
0010059794,NORFOLK STAIRLIFTS,"5,465.00",Mand Disabled Facilities Grant,Grants,01 Sep 2023,2324/06,SME,N,
0010059795,START AFRESH CLEANING LTD,"1,436.78",Open Spaces,Grounds & Site Maintenance,31 Jul 2023,2324/06,SME,N,
0010059796,APEX ROOFERS LTD,550.00,Building Services,Repairs,13 Aug 2023,2324/06,SME,N,
0010059797,APEX ROOFERS LTD,600.00,Building Services,Repairs,13 Aug 2023,2324/06,SME,N,
0010059798,CUTLERS WOOD LTD,750.00,Guaranteed Rent Scheme,Rent Payable,04 Sep 2023,2324/06,SME,N,
0010059799,WILLIAM H BROWN ESTATE AGENTS - SUDBURY,925.00,Guaranteed Rent Scheme,Rent Payable,04 Sep 2023,2324/06,SME,N,
0010059802,PRIVATE LANDLORD,"1,000.00",Guaranteed Rent Scheme,Rent Payable,04 Sep 2023,2324/06,ST,N,
0010059803,HOME TO RENT LTD,975.00,Guaranteed Rent Scheme,Rent Payable,05 Sep 2023,2324/06,SME,N,
0010059804,PRIVATE LANDLORD,710.00,Guaranteed Rent Scheme,Rent Payable,05 Sep 2023,2324/06,ST,N,
0010059807,HAYS SPECIALIST RECRUITMENT LTD,"3,540.00",Financial Servs,Agency Staff,04 Sep 2023,2324/06,LGE,Y,50%
0010059808,BOTTOMLINE TECHNOLOGIES,736.27,ICT,Software Licnse (Line of Bus) ,31 Aug 2023,2324/06,LGE,Y,50%
0010059810,PRIVATE LANDLORD,750.00,Guaranteed Rent Scheme,Rent Payable,05 Sep 2023,2324/06,ST,N,
0010059812,PRIVATE LANDLORD,"1,320.00",Guaranteed Rent Scheme,Rent Payable,05 Sep 2023,2324/06,ST,N,
0010059814,MRI SOFTWARE,"7,262.00",Software/ICT Projects/Surveys,Prof & Consultancy Fees,31 Aug 2023,2324/06,LGE,N,
0010059815,THE STOWMARKET GLASS COMPANY LTD,"1,170.00",Building Services,Repairs,05 Sep 2023,2324/06,SME,N,
0010059816,SUDBURYS,825.00,Guaranteed Rent Scheme,Rent Payable,05 Sep 2023,2324/06,SME,N,
0010059817,STUDLEY CAPITAL LIMITED,"3,325.00",Hamilton Road Regeneration,Prof & Consultancy Fees,01 Sep 2023,2324/06,ST,N,
0010059818,URBAN FORESTRY (BSE) LTD,"4,371.54","Fences, Gates and Walls",Improvements,31 Aug 2023,2324/06,SME,N,
0010059819,BROXAP LTD,776.00,Street & Major Road Cleansing,Bins,04 Sep 2023,2324/06,LGE,N,
0010059820,J BREHENY CONTRACTORS LTD,"10,080.29","Schoolfield, Glemsford",Improvements,24 Aug 2023,2324/06,LGE,N,
0010059821,ORWELL HOUSING ASSOCIATION LTD,575.80,Sheltered Accommodation,Contracted Services,30 Dec 2022,2324/06,LGE,N,
0010059822,ENER-G SWITCH2 LTD,515.92,Homelessness Private Sector,Electricity,04 Sep 2023,2324/06,SME,N,
0010059824,SUFFOLK COUNTY COUNCIL,"193,361.76",ICT,Major Contracts,01 Sep 2023,2324/06,LGE,Y,50%
0010059825,KEYWAYS THE LOCKSMITHS LTD,547.60,Temporary Accommodation,Misc Premises Costs,05 Sep 2023,2324/06,SME,N,
0010059829,URBAN FORESTRY (BSE) LTD,"5,908.88","Fences, Gates and Walls",Improvements,31 Aug 2023,2324/06,SME,N,
0010059832,WADDINGTON BROWN LTD,"1,130.40",Organisational Devt,Agency Staff,10 Jul 2023,2324/06,SME,Y,50%
0010059833,GCS COMPLIANCE LTD,"1,673.76",Building Services,Prof & Consultancy Fees,31 Aug 2023,2324/06,SME,N,
0010059836,M J BODY REPAIRS LTD,"2,549.05",Public Sector Decarbonisation,Prof & Consultancy Fees,10 Jul 2023,2324/06,SME,N,
0010059838,FINCH FUTURES LTD,850.00,Guaranteed Rent Scheme,Rent Payable,05 Sep 2023,2324/06,SME,N,
0010059840,PRIVATE LANDLORD,520.00,Guaranteed Rent Scheme,Rent Payable,05 Sep 2023,2324/06,ST,N,
0010059841,COPDOCK & WASHBROOK PARISH COUNCIL,"5,998.57",S106 Open Spaces Expenditure,Grants,04 Sep 2023,2324/06,SME,N,
0010059843,AARON SERVICES LTD,"30,330.64",Planned Maint - Heating,Property Servicing,30 Aug 2023,2324/06,SME,N,
0010059845,GREENHALGH KERR,"1,754.15",Shared Revenues Partnership,Misc Supplies & Services Costs,29 Aug 2023,2324/06,SME,N,
0010059849,WADDINGTON BROWN LTD,790.83,Organisational Devt,Agency Staff,04 Sep 2023,2324/06,SME,Y,50%
0010059850,POSTURITE LTD,"1,274.53",Health & Safety,"Equipment, Tools & Materials",05 Sep 2023,2324/06,SME,Y,50%
0010059851,EASTEC UK LTD,780.00,Open Spaces,Training,05 Sep 2023,2324/06,SME,N,
0010059852,PENNA PLC,"10,980.00",Management Team,Agency Staff,04 Sep 2023,2324/06,SME,Y,50%
0010059853,PENNA PLC,"5,940.00",Management Team,Agency Staff,04 Sep 2023,2324/06,SME,Y,50%
0010059854,OPUS PEOPLE SOLUTIONS LTD,"2,005.20",Building Services,Recruitment,03 Apr 2023,2324/06,SME,Y,50%
0010059855,OPUS PEOPLE SOLUTIONS LTD,"1,371.12",Building Services,Recruitment,03 Apr 2023,2324/06,SME,Y,50%
0010059856,OPUS PEOPLE SOLUTIONS LTD,"2,371.12",Building Services,Recruitment,03 Apr 2023,2324/06,SME,Y,50%
0010059857,OPUS PEOPLE SOLUTIONS LTD,"4,742.25",Building Services,Recruitment,14 Mar 2023,2324/06,SME,Y,50%
0010059858,OPUS PEOPLE SOLUTIONS LTD,"2,005.20",Building Services,Recruitment,14 Mar 2023,2324/06,SME,Y,50%
0010059859,DALROD (UK) LTD,"3,500.00",Chilton Depot,Grounds & Site Maintenance,05 Sep 2023,2324/06,SME,Y,50%
0010059862,APEX ROOFERS LTD,550.00,Building Services,Repairs,17 Jul 2023,2324/06,SME,N,
0010059864,APEX ROOFERS LTD,750.00,Building Services,Repairs,17 Aug 2023,2324/06,SME,N,
0010059865,D W ADAMS LTD,"1,930.00",Building Services,Repairs,06 Sep 2023,2324/06,SME,N,
0010059866,ERNEST DOE & SONS LTD,751.50,Open Spaces,"Equipment, Tools & Materials",12 Jun 2023,2324/06,LGE,N,
0010059867,ERNEST DOE & SONS LTD,"2,177.50",Open Spaces,"Equipment, Tools & Materials",10 Aug 2023,2324/06,LGE,N,
0010059868,ERNEST DOE & SONS LTD,"1,196.00",Open Spaces,"Equipment, Tools & Materials",19 Jul 2023,2324/06,LGE,N,
0010059878,ERNEST DOE & SONS LTD,"1,794.00",Open Spaces,"Equipment, Tools & Materials",26 Jun 2023,2324/06,LGE,N,
0010059879,ERNEST DOE & SONS LTD,"1,320.00",Open Spaces,"Equipment, Tools & Materials",12 Jun 2023,2324/06,LGE,N,
0010059880,ERNEST DOE & SONS LTD,"1,794.00",Open Spaces,"Equipment, Tools & Materials",12 Jun 2023,2324/06,LGE,N,
0010059881,ERNEST DOE & SONS LTD,"1,208.00",Open Spaces,"Equipment, Tools & Materials",10 Jul 2023,2324/06,LGE,N,
0010059882,ERNEST DOE & SONS LTD,674.00,Open Spaces,"Equipment, Tools & Materials",10 Jul 2023,2324/06,LGE,N,
0010059887,GREENACRE RECRUITMENT LTD,"2,040.00",Building Services,Agency Staff,06 Sep 2023,2324/06,SME,Y,50%
0010059888,GREENACRE RECRUITMENT LTD,"3,425.00",HRA General Management,Agency Staff,06 Sep 2023,2324/06,SME,Y,50%
0010059889,GREENACRE RECRUITMENT LTD,"2,455.80",Building Services,Agency Staff,06 Sep 2023,2324/06,SME,Y,50%
0010059890,MINI WASTE LTD,"2,404.00",Open Spaces,Waste Disposal,31 Aug 2023,2324/06,SME,N,
0010059891,GREENACRE RECRUITMENT LTD,918.00,Building Services,Agency Staff,06 Sep 2023,2324/06,SME,Y,50%
0010059892,GREENACRE RECRUITMENT LTD,"1,600.00",Building Services Compliance,Agency Staff,06 Sep 2023,2324/06,SME,Y,50%
0010059894,SAUNDERS BOSTON ARCHITECTS,"1,750.00","BRRP-Hamilton,Boreham&BelleVue",Prof & Consultancy Fees,30 Jun 2023,2324/06,SME,N,
0010059895,LOUISE FAIERS,980.00,Waldingfield Rd S106 Andersons,Annual Bldg Maint Contracts,06 Sep 2023,2324/06,ST,N,
0010059896,LOUISE FAIERS,700.00,Bourne Hill Wherstead S106 acq,Prof & Consultancy Fees,06 Sep 2023,2324/06,ST,N,
0010059898,THE STOWMARKET GLASS COMPANY LTD,596.85,Building Services,Repairs,18 Aug 2023,2324/06,SME,N,
0010059910,SEAGER HOME SOLUTIONS,"46,761.64",Kitchens/Bathrooms,Major Contracts,06 Sep 2023,2324/06,SME,N,
0010059912,PRECISION RESOURCE GROUP LTD T/A PANORAM,"1,687.50",Building Services Compliance,Agency Staff,06 Sep 2023,2324/06,LGE,Y,50%
0010059913,KEN GRIME & SON LTD,"1,095.56",Voids Maintenance,Repairs,06 Sep 2023,2324/06,SME,N,
0010059915,M & H CIVIL ENGINEERING LTD,629.00,Building Services,Repairs,06 Sep 2023,2324/06,SME,N,
0010059917,NEWSQUEST MEDIA GROUP,906.40,Devt Management -Applications,Advertising&mkting (non-staff),06 Sep 2023,2324/06,LGE,N,
0010059920,MERCURY BUILDING SERVICES LTD,"9,848.00",Kingfisher Leisure Centre,Repairs,06 Sep 2023,2324/06,SME,N,
0010059926,PRECISION RESOURCE GROUP LTD T/A PANORAM,"1,875.00",Building Servs Tech Staff,Agency Staff,23 Aug 2023,2324/06,LGE,Y,50%
0010059927,CHIPSIDE LTD,528.92,C Parks General,Contracted Services,31 Aug 2023,2324/06,SME,N,
0010059933,SUFFOLK COUNTY COUNCIL,"54,941.00",Enterprise Zones,Contributions to other Bodies,06 Sep 2023,2324/06,LGE,N,
0010059935,LAW MORGAN LTD T/A MORGAN LAW,"3,219.44",Financial Servs,Agency Staff,07 Sep 2023,2324/06,SME,Y,50%
0010059936,LAW MORGAN LTD T/A MORGAN LAW,"1,840.00",Commissioning & Procurement,Agency Staff,07 Sep 2023,2324/06,SME,Y,50%
0010059937,LAW MORGAN LTD T/A MORGAN LAW,"2,420.00",ICT - Finance System,Agency Staff,07 Sep 2023,2324/06,SME,Y,50%
0010059938,STORETEC SERVICES LTD,685.64,ICT,"Equipment, Tools & Materials",31 Aug 2023,2324/06,SME,Y,50%
0010059939,PAY 360 LIMITED,996.87,Bank Chgs,Bank Charges,07 Sep 2023,2324/06,LGE,N,
0010059943,SUFFOLK DOORS & WINDOWS LTD,"4,650.00",Building Services,Repairs,07 Sep 2023,2324/06,SME,N,
0010059944,SUFFOLK DOORS & WINDOWS LTD,"2,480.00",Building Services,Repairs,07 Sep 2023,2324/06,SME,N,
0010059945,EKB CLEANING LTD,"1,689.23",Open Spaces,Grounds & Site Maintenance,31 Aug 2023,2324/06,SME,N,
0010059946,STAGE EVENT SECURITY LTD,"1,488.00",Open Spaces,Misc Premises Costs,31 Aug 2023,2324/06,SME,N,
0010059947,MONTHIND CLEAN LTD,"14,043.24",HRA Strategic Property,Repairs,31 Aug 2023,2324/06,LGE,N,
0010059948,PLACECUBE LTD,"80,000.00",ICT,Line of Business Applications,07 Sep 2023,2324/06,SME,Y,50%
0010059949,ASPECT CONTRACTS LTD,"5,864.00",Asbestos,Improvements,31 Aug 2023,2324/06,LGE,N,
0010059951,SITEIMPROVE LTD,"1,225.33",ICT,Software Licnse (Line of Bus) ,08 Sep 2023,2324/06,SME,Y,50%
0010059952,SUFFOLK DOORS & WINDOWS LTD,800.00,Building Services,Repairs,08 Sep 2023,2324/06,SME,N,
0010059955,PENNA PLC,"3,000.00",Financial Servs,Recruitment,07 Sep 2023,2324/06,SME,Y,50%
0010059963,SUREFIX,"4,625.00",Insulation Imps,Repairs,08 Sep 2023,2324/06,SME,N,
0010059965,OPUS PEOPLE SOLUTIONS LTD,594.84,Homeless Prevention Fund,Agency Staff,31 Aug 2023,2324/06,SME,N,
0010059965,OPUS PEOPLE SOLUTIONS LTD,578.49,Devt Management - Apps,Agency Staff,31 Aug 2023,2324/06,SME,N,
0010059965,OPUS PEOPLE SOLUTIONS LTD,482.63,Climate Change and Sustainabil,Agency Staff,31 Aug 2023,2324/06,SME,N,
0010059965,OPUS PEOPLE SOLUTIONS LTD,"1,298.35",Organisational Devt,Agency Staff,31 Aug 2023,2324/06,SME,N,
0010059965,OPUS PEOPLE SOLUTIONS LTD,244.89,Health & Safety,Agency Staff,31 Aug 2023,2324/06,SME,N,
0010059965,OPUS PEOPLE SOLUTIONS LTD,61.43,Customer Servs,Agency Staff,31 Aug 2023,2324/06,SME,N,
0010059965,OPUS PEOPLE SOLUTIONS LTD,441.33,Building Services,Agency Staff,31 Aug 2023,2324/06,SME,N,
0010059968,BUCHER MUNICIPAL LTD,818.48,Street & Major Road Cleansing,Plant & Vehicle - Other costs,05 Sep 2023,2324/06,LGE,Y,50%
0010059969,ILX GROUP PLC,796.00,Organisational Devt,Training,08 Sep 2023,2324/06,SME,Y,50%
0010059970,OPUS PEOPLE SOLUTIONS LTD,"2,371.12",Building Services,Recruitment,22 May 2023,2324/06,SME,Y,50%
0010059971,SUFFOLK DOORS & WINDOWS LTD,"1,650.00",Building Services,Repairs,08 Sep 2023,2324/06,SME,N,
0010059975,THERMATECH,"4,900.00",Sheltered Accommodation,Fire Prevention,08 Sep 2023,2324/06,SME,N,
0010059976,HAYS SPECIALIST RECRUITMENT LTD,"1,461.48",ICT - Finance System,Agency Staff,08 Sep 2023,2324/06,LGE,Y,50%
0010059977,HAYS SPECIALIST RECRUITMENT LTD,587.31,Pld Maint/Enhncmts-Corp Bldgs,Agency Staff,08 Sep 2023,2324/06,LGE,Y,50%
0010059980,PRIVATE LANDLORD,715.00,Guaranteed Rent Scheme,Rent Payable,11 Sep 2023,2324/06,ST,N,
0010059981,PRIVATE LANDLORD,650.00,Guaranteed Rent Scheme,Rent Payable,11 Sep 2023,2324/06,ST,N,
0010059985,SSI SCHAEFER PLASTICS UK LTD,"18,614.00",Bins,Bins,11 Sep 2023,2324/06,SME,N,
0010059986,SSI SCHAEFER PLASTICS UK LTD,"18,614.00",Bins,Bins,11 Sep 2023,2324/06,SME,N,
0010059988,PRIVATE LANDLORD,650.00,Guaranteed Rent Scheme,Rent Payable,11 Sep 2023,2324/06,ST,N,
0010059989,PRIVATE LANDLORD,675.00,Guaranteed Rent Scheme,Rent Payable,11 Sep 2023,2324/06,ST,N,
0010059990,SUFFOLK COUNTY COUNCIL,850.00,Land Chgs,Contracted Services,06 Sep 2023,2324/06,LGE,N,
0010059991,AARON SERVICES LTD,"8,088.17",Planned Maint - Heating,Property Servicing,11 Sep 2023,2324/06,SME,N,
0010059994,M & H CIVIL ENGINEERING LTD,850.00,Building Services,Repairs,08 Sep 2023,2324/06,SME,N,
0010059995,M & H CIVIL ENGINEERING LTD,"1,100.00",Building Services,Repairs,08 Sep 2023,2324/06,SME,N,
0010059997,STUTTON COMMUNITY ASSOCIATION,"9,767.52",CIL Funded REFCUS,Grants,11 Sep 2023,2324/06,SME,N,
0010059999,PRIVATE LANDLORD,675.00,Guaranteed Rent Scheme,Rent Payable,11 Sep 2023,2324/06,ST,N,
0010060000,PRIVATE LANDLORD,550.00,Guaranteed Rent Scheme,Rent Payable,11 Sep 2023,2324/06,ST,N,
0010060003,SHELTERED HOUSING RENTALS LTD,660.00,Guaranteed Rent Scheme,Rent Payable,11 Sep 2023,2324/06,SME,N,
0010060004,SEQUENCE UK LTD (WILLIAM H BROWN),"1,500.00",Waldingfield Rd S106 Andersons,Prof & Consultancy Fees,07 Sep 2023,2324/06,LGE,N,
0010060008,PRIVATE LANDLORD,835.00,Guaranteed Rent Scheme,Rent Payable,11 Sep 2023,2324/06,ST,N,
0010060009,WILLIAM H BROWN ESTATE AGENTS - SUDBURY,775.00,Guaranteed Rent Scheme,Rent Payable,11 Sep 2023,2324/06,SME,N,
0010060010,KBM HOUSE SHARE & PROPERTY MANAGEMENT LT,600.00,Guaranteed Rent Scheme,Rent Payable,11 Sep 2023,2324/06,SME,N,
0010060011,FROST AND PARTNERS,"1,100.00",Homes for Ukraine,Rent Payable,11 Sep 2023,2324/06,SME,N,
0010060014,THE CLEARANCE SOLUTION,"1,700.00",Guaranteed Rent Scheme,Misc Supplies & Services Costs,11 Sep 2023,2324/06,SME,N,
0010060017,ORWELL REMOVALS & STORAGE LTD,750.00,Homeless Prevention Fund,Removal Expenses,11 Sep 2023,2324/06,SME,N,
0010060018,BEN THE PLUMBER,840.00,Waldingfield Rd S106 Andersons,Annual Bldg Maint Contracts,25 Aug 2023,2324/06,SME,N,
0010060019,HAYS SPECIALIST RECRUITMENT LTD,"3,540.00",Financial Servs,Agency Staff,11 Sep 2023,2324/06,LGE,Y,50%
0010060023,ANGLIA COMMERCIAL FLOORING LTD,721.51,Voids Maintenance,Repairs,11 Sep 2023,2324/06,SME,N,
0010060032,M & H CIVIL ENGINEERING LTD,750.00,Building Services,Repairs,12 Sep 2023,2324/06,SME,N,
0010060033,M & H CIVIL ENGINEERING LTD,850.00,Building Services,Repairs,12 Sep 2023,2324/06,SME,N,
0010060035,ARAN INSULATION LTD,"2,691.62",Insulation Imps,Repairs,29 Jun 2023,2324/06,SME,N,
0010060040,ARAN INSULATION LTD,"5,113.00",Insulation Imps,Repairs,12 Sep 2023,2324/06,SME,N,
0010060041,ARAN INSULATION LTD,"13,008.46",Insulation Imps,Repairs,12 Sep 2023,2324/06,SME,N,
0010060044,BINDER LTD,"2,769.44",Sewage Treatment Works,Improvements,12 Sep 2023,2324/06,SME,N,
0010060047,CAPEL ST MARY PARISH COUNCIL,"100,000.00",CIL Funded REFCUS,Grants,12 Sep 2023,2324/06,SME,N,
0010060049,WADDINGTON BROWN LTD,"1,063.53",Organisational Devt,Agency Staff,11 Sep 2023,2324/06,SME,Y,50%
0010060050,TOTALMOBILE LTD,"14,475.84",Health & Safety,"Equipment, Tools & Materials",13 Sep 2023,2324/06,SME,Y,50%
0010060051,NEW ANGLIA LOCAL ENTERPRISE PARTNERSHIP,"439,527.96",Enterprise Zones,Prof & Consultancy Fees,13 Sep 2023,2324/06,SME,N,
0010060052,HAYS SPECIALIST RECRUITMENT LTD,797.07,Pld Maint/Enhncmts-Corp Bldgs,Agency Staff,12 Sep 2023,2324/06,LGE,Y,50%
0010060053,EDMUNDSON ELECTRICAL LTD (IPSWICH),973.50,Building Services,"Equipment, Tools & Materials",30 Aug 2023,2324/06,LGE,N,
0010060056,M & H CIVIL ENGINEERING LTD,632.65,Building Services,Repairs,11 Sep 2023,2324/06,SME,N,
0010060058,GREENACRE RECRUITMENT LTD,"2,397.50",HRA General Management,Agency Staff,13 Sep 2023,2324/06,SME,Y,50%
0010060061,GREENACRE RECRUITMENT LTD,"1,530.00",Building Services,Agency Staff,13 Sep 2023,2324/06,SME,Y,50%
0010060062,GREENACRE RECRUITMENT LTD,"3,000.00",Building Services,Agency Staff,13 Sep 2023,2324/06,SME,Y,50%
0010060063,GREENACRE RECRUITMENT LTD,"1,152.00",Building Services,Agency Staff,13 Sep 2023,2324/06,SME,Y,50%
0010060064,GREENACRE RECRUITMENT LTD,"2,000.00",Building Services Compliance,Agency Staff,13 Sep 2023,2324/06,SME,Y,50%
0010060065,KOMPAN LTD,"34,975.55",Play equip,Repairs,13 Sep 2023,2324/06,SME,N,
0010060067,SUFFOLK COUNTY COUNCIL,"17,207.49",Garden Waste,Garden Waste Disposal,12 Sep 2023,2324/06,LGE,N,
0010060067,SUFFOLK COUNTY COUNCIL,"21,510.62",Domestic Waste,MRF Disposal,12 Sep 2023,2324/06,LGE,N,
0010060069,PRECISION RESOURCE GROUP LTD T/A PANORAM,"2,812.50",Building Services Compliance,Agency Staff,13 Sep 2023,2324/06,LGE,Y,50%
0010060070,GB ADAPTIONS LTD,"6,256.00",Mand Disabled Facilities Grant,Grants,13 Sep 2023,2324/06,SME,N,
0010060073,KOMPAN LTD,"24,999.58",Play equip,Repairs,13 Sep 2023,2324/06,SME,N,
0010060077,THE PLANNING INSPECTORATE,"6,578.63",Local Plans,Prof & Consultancy Fees,07 Sep 2023,2324/06,LGE,Y,100%
0010060077,THE PLANNING INSPECTORATE,"6,578.62",Devt Policy & Local Plans,Prof & Consultancy Fees,07 Sep 2023,2324/06,LGE,N,
0010060081,INSIGHT TECHNOLOGY (SUFFOLK) LTD,"2,101.10",Sheltered Accommodation,Fire Prevention,13 Sep 2023,2324/06,SME,N,
0010060082,PINSENT MASONS LLP,"5,668.84",Organisational Devt,Corporate Training,11 Sep 2023,2324/06,LGE,Y,50%
0010060085,SIGNIX LTD,"3,978.48",Smoke Alarms (Bbgh Standard),Major Contracts,28 Jul 2023,2324/06,SME,N,
0010060089,LAW MORGAN LTD T/A MORGAN LAW,"4,024.30",Financial Servs,Agency Staff,14 Sep 2023,2324/06,SME,Y,50%
0010060090,LAW MORGAN LTD T/A MORGAN LAW,"3,025.00",ICT - Finance System,Agency Staff,14 Sep 2023,2324/06,SME,Y,50%
0010060091,LAW MORGAN LTD T/A MORGAN LAW,"2,300.00",Commissioning & Procurement,Agency Staff,14 Sep 2023,2324/06,SME,Y,50%
0010060093,PRECISION RESOURCE GROUP LTD T/A PANORAM,"1,500.00",Building Servs Tech Staff,Agency Staff,06 Sep 2023,2324/06,LGE,Y,50%
0010060094,PRECISION RESOURCE GROUP LTD T/A PANORAM,"1,875.00",Building Servs Tech Staff,Agency Staff,13 Sep 2023,2324/06,LGE,Y,50%
0010060095,TILLER (THE PADDOCKS) LTD,"101,352.00","The Paddocks, Lavenham",Purchase of Land & Buildings,14 Sep 2023,2324/06,SME,N,
0010060096,PRECISION RESOURCE GROUP LTD T/A PANORAM,"1,800.00",Building Servs Tech Staff,Agency Staff,06 Sep 2023,2324/06,LGE,Y,50%
0010060102,OPUS PEOPLE SOLUTIONS LTD,285.71,Homeless Prevention Fund,Agency Staff,07 Sep 2023,2324/06,SME,N,
0010060102,OPUS PEOPLE SOLUTIONS LTD,487.28,Devt Management - Apps,Agency Staff,07 Sep 2023,2324/06,SME,N,
0010060102,OPUS PEOPLE SOLUTIONS LTD,495.00,Climate Change and Sustainabil,Agency Staff,7 Sep 2023,2324/06,SME,N,
0010060102,OPUS PEOPLE SOLUTIONS LTD,"1,236.49",Organisational Devt,Agency Staff,7 Sep 2023,2324/06,SME,N,
0010060102,OPUS PEOPLE SOLUTIONS LTD,217.68,Health & Safety,Agency Staff,7 Sep 2023,2324/06,SME,N,
0010060102,OPUS PEOPLE SOLUTIONS LTD,188.67,Customer Servs,Agency Staff,7 Sep 2023,2324/06,SME,N,
0010060102,OPUS PEOPLE SOLUTIONS LTD,563.40,Building Services,Agency Staff,7 Sep 2023,2324/06,SME,N,
0010060104,MONTHIND CLEAN LTD,720.21,Jnt Waste Contract,General Cleaning,15 Sep 2023,2324/06,LGE,Y,50%
0010060105,SUDBURY OFFICE SUPPLIES,738.00,ICT,Photocopying,08 Sep 2023,2324/06,SME,Y,50%
0010060111,SUREFIX,"2,975.00",Building Services,Repairs,15 Sep 2023,2324/06,SME,N,
0010060112,KARCHER UK LTD,"1,014.25",Street & Major Road Cleansing,"Equipment, Tools & Materials",14 Sep 2023,2324/06,LGE,N,
0010060113,PAY 360 LIMITED,"5,577.43",Bank Chgs,Bank Charges,15 Sep 2023,2324/06,LGE,N,
0010060115,JOHN FORD GROUP LTD,"6,668.49",Mand Disabled Facilities Grant,Grants,15 Sep 2023,2324/06,SME,N,
0010060117,M & H CIVIL ENGINEERING LTD,"1,100.00",Building Services,Repairs,14 Sep 2023,2324/06,SME,N,
0010060118,WHYBROW PROPERTY SOLUTIONS LTD,"16,995.37",Major Imps,Repairs,14 Sep 2023,2324/06,SME,N,
0010060119,WHYBROW PROPERTY SOLUTIONS LTD,"15,855.89",Major Imps,Repairs,14 Sep 2023,2324/06,SME,N,
0010060121,VERTAS GROUP LTD,"12,713.86",Central Postal Serv,Postage,21 Jul 2023,2324/06,SME,Y,50%
0010060126,SIGNIX LTD,"3,623.12",Smoke Alarms (Bbgh Standard),Major Contracts,15 Sep 2023,2324/06,SME,N,
0010060127,GB ADAPTIONS LTD,"21,201.66",Mand Disabled Facilities Grant,Grants,15 Sep 2023,2324/06,SME,N,
0010060128,FELGAINS CARE CENTRE,"8,311.00",Mand Disabled Facilities Grant,Grants,15 Sep 2023,2324/06,SME,N,
0010060130,KOMPAN LTD,"2,014.92",Play equip,Repairs,15 Sep 2023,2324/06,SME,N,
0010060132,REED SPECIALIST RECRUITMENT LTD,506.88,Financial Servs,Recruitment,08 Sep 2023,2324/06,LGE,Y,50%
0010060150,KENDA-CLEAN,25.00,Chilton Depot,Window Cleaning,17 Sep 2023,2324/06,SME,Y,50%
0010060150,KENDA-CLEAN,"1,420.00",Sheltered Accommodation,Window Cleaning,17 Sep 2023,2324/06,SME,N,
0010060150,KENDA-CLEAN,15.00,Temporary Accommodation,Window Cleaning,17 Sep 2023,2324/06,SME,N,
0010060150,KENDA-CLEAN,227.00,Tenancy Services,Window Cleaning,17 Sep 2023,2324/06,SME,N,
0010060161,ORMISTON ACADEMIES TRUST,"1,000.00",Grants & Contrbns,Contributions & Donations,15 Sep 2023,2324/06,SME,N,
0010060165,CAPEL ST MARY PARISH COUNCIL,"25,483.23",S106 Open Spaces Expenditure,Grants,18 Sep 2023,2324/06,SME,N,
0010060166,PRIVATE LANDLORD,725.00,Guaranteed Rent Scheme,Rent Payable,18 Sep 2023,2324/06,ST,N,
0010060168,APEX ROOFERS LTD,650.00,Building Services,Repairs,05 Sep 2023,2324/06,SME,N,
0010060169,EAST OF ENGLAND LGA,"2,000.00",Management Team,Prof & Consultancy Fees,11 Sep 2023,2324/06,SME,N,
0010060174,OPUS PEOPLE SOLUTIONS LTD,332.56,Homeless Prevention Fund,Agency Staff,14 Sep 2023,2324/06,SME,N,
0010060174,OPUS PEOPLE SOLUTIONS LTD,272.25,Climate Change and Sustainabil,Agency Staff,14 Sep 2023,2324/06,SME,N,
0010060174,OPUS PEOPLE SOLUTIONS LTD,"1,282.85",Organisational Devt,Agency Staff,14 Sep 2023,2324/06,SME,N,
0010060174,OPUS PEOPLE SOLUTIONS LTD,188.66,Customer Servs,Agency Staff,14 Sep 2023,2324/06,SME,N,
0010060174,OPUS PEOPLE SOLUTIONS LTD,676.09,Building Services,Agency Staff,14 Sep 2023,2324/06,SME,N,
0010060177,PRIVATE LANDLORD,595.00,Guaranteed Rent Scheme,Rent Payable,18 Sep 2023,2324/06,ST,N,
0010060178,PRIVATE LANDLORD,650.00,Guaranteed Rent Scheme,Rent Payable,18 Sep 2023,2324/06,ST,N,
0010060179,PIGHTLES DEVELOPMENTS LTD,925.00,Guaranteed Rent Scheme,Rent Payable,18 Sep 2023,2324/06,SME,N,
0010060182,PRIVATE LANDLORD,700.00,Guaranteed Rent Scheme,Rent Payable,18 Sep 2023,2324/06,ST,N,
0010060184,SUFFOLK COUNTY COUNCIL,"1,593.14",Environmental Protection,"Equipment, Tools & Materials",15 Sep 2023,2324/06,LGE,Y,50%
0010060192,ECOSYSTEMS TREE & GROUNDS CARE,600.00,Public Tree Programme,Tree felling/maintenance,18 Sep 2023,2324/06,SME,N,
0010060193,ECOSYSTEMS TREE & GROUNDS CARE,600.00,Public Tree Programme,Tree felling/maintenance,18 Sep 2023,2324/06,SME,N,
0010060194,ECOSYSTEMS TREE & GROUNDS CARE,900.00,Public Tree Programme,Tree felling/maintenance,18 Sep 2023,2324/06,SME,N,
0010060197,ECOSYSTEMS TREE & GROUNDS CARE,690.00,Public Tree Programme,Tree felling/maintenance,18 Sep 2023,2324/06,SME,N,
0010060199,L A C CLEANING CONTRACTORS LIMITED,"1,675.50",Voids Maintenance,Repairs,19 Sep 2023,2324/06,SME,N,
0010060201,SUFFOLK DOORS & WINDOWS LTD,650.00,Building Services,Repairs,27 Jul 2023,2324/06,SME,N,
0010060204,ARMSTRONG YORK ASBESTOS ENVIRONMENTAL,"8,089.49",Asbestos Survey & Reinspection,Prof & Consultancy Fees,31 Aug 2023,2324/06,SME,N,
0010060211,DEDHAM VALE TREE SURGERY LTD,900.00,Amenity Areas,Tree felling/maintenance,24 Jul 2023,2324/06,SME,N,
0010060212,APEX ROOFERS LTD,"1,350.00",Building Services,Repairs,18 Sep 2023,2324/06,SME,N,
0010060213,PRIVATE LANDLORD,"1,198.00",Guaranteed Rent Scheme,Misc Supplies & Services Costs,19 Sep 2023,2324/06,ST,N,
0010060214,CIVICA UK LIMITED,"10,850.00",Lettings & Allocations,Contracted Services,19 Sep 2023,2324/06,LGE,N,
0010060216,J COOK CARPENTRY LTD,515.00,Tenancy Services,Fire Prevention,19 Sep 2023,2324/06,SME,N,
0010060229,GREENACRE RECRUITMENT LTD,"1,130.00",HRA General Management,Misc Employee Costs,12 Sep 2023,2324/06,SME,Y,50%
0010060237,COOKS BLIND AND SHUTTERS LTD,"2,414.00",Chilton Depot,Repairs,20 Sep 2023,2324/06,SME,Y,50%
0010060237,COOKS BLIND AND SHUTTERS LTD,588.00,Wenham Depot,Repairs,20 Sep 2023,2324/06,SME,Y,50%
0010060238,PRECISION RESOURCE GROUP LTD T/A PANORAM,"2,812.50",Building Services Compliance,Agency Staff,20 Sep 2023,2324/06,LGE,Y,50%
0010060239,SUFFOLK MARKET EVENTS,937.50,RHSSF,Prof & Consultancy Fees,20 Sep 2023,2324/06,SME,N,
0010060240,GREENACRE RECRUITMENT LTD,"2,000.00",Building Services Compliance,Agency Staff,20 Sep 2023,2324/06,SME,Y,50%
0010060241,GREENACRE RECRUITMENT LTD,"1,422.00",Building Services,Agency Staff,20 Sep 2023,2324/06,SME,Y,50%
0010060242,GREENACRE RECRUITMENT LTD,"2,550.00",Building Services,Agency Staff,20 Sep 2023,2324/06,SME,Y,50%
0010060249,CIVICA ELECTION SERVICES,"2,301.55",Electoral Registration,Returning Officer Fees,25 Apr 2023,2324/06,LGE,N,
0010060251,HAYS SPECIALIST RECRUITMENT LTD,730.74,ICT - Finance System,Agency Staff,20 Sep 2023,2324/06,LGE,Y,50%
0010060254,L A C CLEANING CONTRACTORS LIMITED,"1,465.50",Voids Maintenance,Repairs,21 Sep 2023,2324/06,SME,N,
0010060259,SUFFOLK DOORS & WINDOWS LTD,"2,100.00",Building Services,Repairs,20 Sep 2023,2324/06,SME,N,
0010060261,LAW MORGAN LTD T/A MORGAN LAW,"3,025.00",Financial Servs,Agency Staff,21 Sep 2023,2324/06,SME,Y,50%
0010060262,LAW MORGAN LTD T/A MORGAN LAW,"4,024.30",Financial Servs,Agency Staff,21 Sep 2023,2324/06,SME,Y,50%
0010060263,LAW MORGAN LTD T/A MORGAN LAW,"2,300.00",Commissioning & Procurement,Agency Staff,21 Sep 2023,2324/06,SME,Y,50%
0010060272,GB ADAPTIONS LTD,"6,982.00",Mand Disabled Facilities Grant,Grants,20 Sep 2023,2324/06,SME,N,
0010060273,PLUMBUILD LTD,"7,500.00",Mand Disabled Facilities Grant,Grants,20 Sep 2023,2324/06,SME,N,
0010060274,R HARBORNE PLUMBING SERVICES,"6,290.00",Mand Disabled Facilities Grant,Grants,21 Sep 2023,2324/06,SME,N,
0010060282,BOTTOMLINE TECHNOLOGIES,"1,459.48",ICT,Line of Business Applications,21 Sep 2023,2324/06,LGE,Y,50%
0010060283,GREENACRE RECRUITMENT LTD,"1,975.00",Building Services,Agency Staff,20 Sep 2023,2324/06,SME,Y,50%
0010060284,GREENACRE RECRUITMENT LTD,"1,777.50",Building Services,Agency Staff,13 Sep 2023,2324/06,SME,Y,50%
0010060285,CORNERSTONE BARRISTERS,"5,880.00",Devt Management -Appeals,Legal ex - Appeal related,25 Aug 2023,2324/06,SME,N,
0010060288,PRECISION RESOURCE GROUP LTD T/A PANORAM,"1,875.00",Building Servs Tech Staff,Agency Staff,20 Sep 2023,2324/06,LGE,Y,50%
0010060289,WHYBROW PROPERTY SOLUTIONS LTD,"2,202.51",Building Services,Repairs,21 Sep 2023,2324/06,SME,N,
0010060290,VERTAS GROUP LTD,"8,324.84",Central Postal Serv,Postage,21 Sep 2023,2324/06,SME,Y,50%
0010060292,WHYBROW PROPERTY SOLUTIONS LTD,"14,998.77",Major Imps,Repairs,21 Sep 2023,2324/06,SME,N,
0010060294,ECOSYSTEMS TREE & GROUNDS CARE,975.00,Amenity Areas,Tree felling/maintenance,21 Sep 2023,2324/06,SME,N,
0010060300,ECOSYSTEMS TREE & GROUNDS CARE,675.00,Tenancy Services,Tree felling/maintenance,21 Sep 2023,2324/06,SME,N,
0010060301,ECOSYSTEMS TREE & GROUNDS CARE,"1,200.00",Public Tree Programme,Tree felling/maintenance,21 Sep 2023,2324/06,SME,N,
0010060306,ECOSYSTEMS TREE & GROUNDS CARE,525.00,Public Tree Programme,Tree felling/maintenance,21 Sep 2023,2324/06,SME,N,
0010060311,SUREFIX,"1,275.00",Window & Door Rplcmts,Repairs,18 Sep 2023,2324/06,SME,N,
0010060315,SUREFIX,"1,480.00",Building Services,Repairs,22 Sep 2023,2324/06,SME,N,
0010060318,CIVICA ELECTION SERVICES,"2,497.86",Electoral Registration,Returning Officer Fees,05 Sep 2023,2324/06,LGE,N,
0010060322,HAYS SPECIALIST RECRUITMENT LTD,"4,800.35",Financial Servs,Recruitment,15 Aug 2023,2324/06,LGE,Y,50%
0010060325,REEFER PROPERTIES LTD,695.00,Guaranteed Rent Scheme,Rent Payable,25 Sep 2023,2324/06,SME,N,
0010060327,PRIVATE LANDLORD,550.00,Guaranteed Rent Scheme,Rent Payable,25 Sep 2023,2324/06,ST,N,
0010060328,PRIVATE LANDLORD,575.00,Guaranteed Rent Scheme,Rent Payable,25 Sep 2023,2324/06,ST,N,
0010060330,PRIVATE LANDLORD,750.00,Guaranteed Rent Scheme,Rent Payable,25 Sep 2023,2324/06,ST,N,
0010060343,EAST BERGHOLT PARISH COUNCIL,664.64,Current Assets,AR Refunds,20 Sep 2023,2324/06,SME,N,
0010060346,PRIVATE LANDLORD,575.00,Guaranteed Rent Scheme,Rent Payable,25 Sep 2023,2324/06,ST,N,
0010060348,DAVID BURR LETTINGS,750.00,Guaranteed Rent Scheme,Rent Payable,25 Sep 2023,2324/06,SME,N,
0010060353,BYCHOICE LTD,950.00,Guaranteed Rent Scheme,Rent Payable,25 Sep 2023,2324/06,SME,N,
0010060360,AE WHITE SURFACING,735.00,C Parks General,Repairs,20 Sep 2023,2324/06,SME,N,
0010060361,PRIVATE LANDLORD,575.00,Guaranteed Rent Scheme,Rent Payable,25 Sep 2023,2324/06,ST,N,
0010060363,HAMILTON SMITH LETTINGS,670.00,Guaranteed Rent Scheme,Rent Payable,25 Sep 2023,2324/06,SME,N,
0010060364,SUFFOLK COUNTY COUNCIL,"3,196.62",ICT,Contracted Services,22 Sep 2023,2324/06,LGE,Y,50%
0010060366,CLOSOMAT LTD,"4,128.00",Mand Disabled Facilities Grant,Grants,25 Sep 2023,2324/06,SME,N,
0010060367,CHRISTIAN YOUTH MINISTRIES,625.00,Grants & Contrbns,Contributions & Donations,25 Sep 2023,2324/06,SME,N,
0010060368,WILES PROPERTY,875.00,Guaranteed Rent Scheme,Rent Payable,25 Sep 2023,2324/06,SME,N,
0010060369,RRR CONSULTANCY LTD,"3,663.33",Devt Policy & Local Plans,Prof & Consultancy Fees,13 Sep 2023,2324/06,SME,Y,50%
0010060373,HAYS SPECIALIST RECRUITMENT LTD,"3,540.00",Financial Servs,Agency Staff,25 Sep 2023,2324/06,LGE,Y,50%
0010060379,ANNETTE FEENEY,910.00,Devt Policy & Local Plans,Prof & Consultancy Fees,19 Sep 2023,2324/06,ST,Y,50%
0010060396,OPUS PEOPLE SOLUTIONS LTD,992.41,Homeless Prevention Fund,Agency Staff,20 Sep 2023,2324/06,SME,N,
0010060396,OPUS PEOPLE SOLUTIONS LTD,136.85,Devt Management - Apps,Agency Staff,20 Sep 2023,2324/06,SME,N,
0010060396,OPUS PEOPLE SOLUTIONS LTD,631.13,Climate Change and Sustainabil,Agency Staff,20 Sep 2023,2324/06,SME,N,
0010060396,OPUS PEOPLE SOLUTIONS LTD,295.26,Organisational Devt,Agency Staff,20 Sep 2023,2324/06,SME,N,
0010060396,OPUS PEOPLE SOLUTIONS LTD,217.68,Health & Safety,Agency Staff,20 Sep 2023,2324/06,SME,N,
0010060396,OPUS PEOPLE SOLUTIONS LTD,122.85,Customer Servs,Agency Staff,20 Sep 2023,2324/06,SME,N,
0010060396,OPUS PEOPLE SOLUTIONS LTD,516.45,Building Services,Agency Staff,20 Sep 2023,2324/06,SME,N,
0010060397,THE HOUSING OMBUDSMAN,"20,774.75",Regulatory & Support Services,Subscriptions,04 May 2023,2324/06,LGE,N,
0010060454,EAST BERGHOLT PARISH COUNCIL,"1,482.83",Current Assets,AR Refunds,28 Sep 2023,2324/06,SME,N,
0020028620,SUDBURYS,"1,076.00",Rent Deposit Scheme,Misc Premises Costs,29 Aug 2023,2324/06,SME,N,
0020028622,PRIVATE LANDLORD,"1,750.00",Rent Deposit Scheme,Misc Premises Costs,01 Sep 2023,2324/06,ST,N,
0020028623,AESTIMA LTD,"1,020.00",Building Services,BMBS Repairs Work,01 Sep 2023,2324/06,SME,N,
0020028624,EMERALD LAW,"4,076.04",Building Services,Payments to Tenants,25 Aug 2023,2324/06,SME,N,
0020028626,RIX PETROLEUM (EAST ANGLIA) LTD,"1,619.67",Open Spaces,Plant & Vehicle Fuel,01 Sep 2023,2324/06,SME,Y,50%
0020028626,RIX PETROLEUM (EAST ANGLIA) LTD,992.64,Tenancy Services,Heating Oil,01 Sep 2023,2324/06,SME,N,
0020028627,AARON SERVICES LTD,"93,508.14",Current Liabilities,Cert IBS Creditors Holding ac,30 Aug 2023,2324/06,SME,N,
0020028628,SEFE ENERGY LIMITED,94.60,Belle Vue House,Gas,15 Aug 2023,2324/06,LGE,N,
0020028628,SEFE ENERGY LIMITED,73.17,HQ Energy,Gas,15 Aug 2023,2324/06,LGE,N,
0020028628,SEFE ENERGY LIMITED,"1,921.53",Sheltered Accommodation,Gas,15 Aug 2023,2324/06,LGE,N,
0020028628,SEFE ENERGY LIMITED,110.79,Temporary Accommodation,Gas,15 Aug 2023,2324/06,LGE,N,
0020028629,IMSERV EUROPE LTD,137.40,HQ Energy,Electricity,11 Sep 2023,2324/06,LGE,N,
0020028629,IMSERV EUROPE LTD,137.40,Kingfisher Leisure Centre,Electricity,11 Sep 2023,2324/06,LGE,N,
0020028629,IMSERV EUROPE LTD,137.40,Hadleigh Pool,Electricity,11 Sep 2023,2324/06,LGE,N,
0020028629,IMSERV EUROPE LTD,312.00,Sheltered Accommodation,Electricity,11 Sep 2023,2324/06,LGE,N,
0020028629,IMSERV EUROPE LTD,62.40,Climate Change and Sustainabil,Electricity,11 Sep 2023,2324/06,LGE,N,
0020028633,PRIVATE LANDLORD,827.19,Guaranteed Rent Scheme,Rent Payable,08 Sep 2023,2324/06,ST,N,
0020028634,AARON SERVICES LTD,"22,366.63",Current Liabilities,Cert IBS Creditors Holding ac,11 Sep 2023,2324/06,SME,N,
0020028637,PRIVATE LANDLORD,694.32,Guaranteed Rent Scheme,Rent Payable,13 Sep 2023,2324/06,ST,N,
0020028638,PRIVATE LANDLORD,750.00,Guaranteed Rent Scheme,Misc Supplies & Services Costs,19 Sep 2023,2324/06,ST,N,
0020028638,PRIVATE LANDLORD,880.00,Guaranteed Rent Scheme,Rent Payable,19 Sep 2023,2324/06,ST,N,
0020028639,AARON SERVICES LTD,"29,133.19",Current Liabilities,Cert IBS Creditors Holding ac,21 Sep 2023,2324/06,SME,N,
0020028640,SEQUENCE UK LTD (WILLIAM H BROWN),"1,971.00",Homes for Ukraine,Rent Payable,20 Sep 2023,2324/06,LGE,N,
0020028641,CORNERSTONE REMOVALS,"1,523.81",Homeless Prevention Fund,Removal Expenses,20 Sep 2023,2324/06,SME,N,
0020028642,PRIVATE LANDLORD,750.00,Guaranteed Rent Scheme,Misc Supplies & Services Costs,20 Sep 2023,2324/06,ST,N,
0020028643,SEFE ENERGY LIMITED,"6,326.89",Kingfisher Leisure Centre,Gas,16 Jun 2021,2324/06,LGE,N,
0020028644,ANGLIAN WATER BUS (NAT) LTD T/A WAVE,-47.68,Belle Vue House,Water Rates - Metered,12 Sep 2023,2324/06,LGE,N,
0020028644,ANGLIAN WATER BUS (NAT) LTD T/A WAVE,129.20,C Parks General,Water Rates - Metered,12 Sep 2023,2324/06,LGE,N,
0020028644,ANGLIAN WATER BUS (NAT) LTD T/A WAVE,309.56,Chilton Depot,Water Rates - Metered,12 Sep 2023,2324/06,LGE,N,
0020028644,ANGLIAN WATER BUS (NAT) LTD T/A WAVE,5.90,Friars Meadow Sudb,Water Rates - Metered,12 Sep 2023,2324/06,LGE,N,
0020028644,ANGLIAN WATER BUS (NAT) LTD T/A WAVE,50.17,General Rechargeable Works,Misc Supplies & Services Costs,12 Sep 2023,2324/06,LGE,N,
0020028644,ANGLIAN WATER BUS (NAT) LTD T/A WAVE,83.85,HQ Energy,Water Rates - Metered,12 Sep 2023,2324/06,LGE,N,
0020028644,ANGLIAN WATER BUS (NAT) LTD T/A WAVE,328.46,Public Conveniences,Water Rates - Metered,12 Sep 2023,2324/06,LGE,N,
0020028644,ANGLIAN WATER BUS (NAT) LTD T/A WAVE,"3,581.01",Sheltered Accommodation,Water Rates - Metered,12 Sep 2023,2324/06,LGE,N,
0020028644,ANGLIAN WATER BUS (NAT) LTD T/A WAVE,147.47,Temporary Accommodation,Water Rates - Metered,12 Sep 2023,2324/06,LGE,N,
0020028644,ANGLIAN WATER BUS (NAT) LTD T/A WAVE,104.08,Tenancy Services,Water Rates - Metered,12 Sep 2023,2324/06,LGE,N,
0020028646,SEFE ENERGY LIMITED,95.27,Belle Vue House,Gas,15 Sep 2023,2324/06,LGE,N,
0020028646,SEFE ENERGY LIMITED,63.88,HQ Energy,Gas,15 Sep 2023,2324/06,LGE,N,
0020028646,SEFE ENERGY LIMITED,"1,861.11",Sheltered Accommodation,Gas,15 Sep 2023,2324/06,LGE,N,
0020028646,SEFE ENERGY LIMITED,133.75,Temporary Accommodation,Gas,15 Sep 2023,2324/06,LGE,N,
0020028647,EDF ENERGY,453.88,Belle Vue House,Electricity,15 Sep 2023,2324/06,LGE,N,
0020028647,EDF ENERGY,583.57,C Parks General,Electricity,15 Sep 2023,2324/06,LGE,N,
0020028647,EDF ENERGY,8.99,Calais St Depot,Electricity,15 Sep 2023,2324/06,LGE,N,
0020028647,EDF ENERGY,"5,852.93",Chilton Depot,Electricity,15 Sep 2023,2324/06,LGE,Y,50%
0020028647,EDF ENERGY,"1,136.08",Climate Change and Sustainabil,Electricity,15 Sep 2023,2324/06,LGE,N,
0020028647,EDF ENERGY,166.06,Community Safety-CCTV,Electricity,15 Sep 2023,2324/06,LGE,N,
0020028647,EDF ENERGY,24.96,Hadleigh Market,Electricity,15 Sep 2023,2324/06,LGE,N,
0020028647,EDF ENERGY,"6,117.06",Hadleigh Pool,Electricity,15 Sep 2023,2324/06,LGE,N,
0020028647,EDF ENERGY,12.86,Headquarters General,Electricity,15 Sep 2023,2324/06,LGE,N,
0020028647,EDF ENERGY,387.48,HQ Energy,Electricity,15 Sep 2023,2324/06,LGE,N,
0020028647,EDF ENERGY,10.59,HRA Strategic Property,Electricity,15 Sep 2023,2324/06,LGE,N,
0020028647,EDF ENERGY,"23,286.56",Kingfisher Leisure Centre,Electricity,15 Sep 2023,2324/06,LGE,N,
0020028647,EDF ENERGY,25.15,Navigation House,Electricity,15 Sep 2023,2324/06,LGE,N,
0020028647,EDF ENERGY,472.23,Public Conveniences,Electricity,15 Sep 2023,2324/06,LGE,N,
0020028647,EDF ENERGY,391.37,Sewage Treatment Works,Electricity,15 Sep 2023,2324/06,LGE,N,
0020028647,EDF ENERGY,"-13,614.63",Sheltered Accommodation,Electricity,15 Sep 2023,2324/06,LGE,N,
0020028647,EDF ENERGY,273.66,SP Comm Alarms (Non-SH),Electricity,15 Sep 2023,2324/06,LGE,N,
0020028647,EDF ENERGY,636.32,Temporary Accommodation,Electricity,15 Sep 2023,2324/06,LGE,N,
0020028647,EDF ENERGY,"7,607.63",Tenancy Services,Electricity,15 Sep 2023,2324/06,LGE,N,
0020028647,EDF ENERGY,"1,132.17",Wenham Depot,Electricity,15 Sep 2023,2324/06,LGE,Y,50%
0020028649,GPC BARCLAYS,"5,242.36",Current Assets,Barclaycard Control,16 Sep 2023,2324/06,LGE,Y,18%
0020028653,AARON SERVICES LTD,"28,789.00",Current Liabilities,Cert IBS Creditors Holding ac,27 Sep 2023,2324/06,SME,N,
